Workbook

Sheet Форма 4
A1: < 9 * 13 * 64 > | D1: ПК РИК (вер.1.3.170208) тел./факс (495) 347-33-01 | J1: Форма 4
A3: «СОГЛАСОВАНО» | F3: «УТВЕРЖДАЮ»
A4: Смета на сумму: | C4: =H4 -> 2393004.946 | D4: руб. | F4: Смета на сумму: | H4: =F2128 -> 2393004.946 | I4: руб.
A7: ________________ /______________________ / | F7: ________________ /______________________ /
A9: «______»____________________ 20___г. | F9: «______»____________________ 20___г.
B12: Стройка: | C12: Новокузнецк,Центральный район | P12: Эталон с изм. 2014 г.
B13: Объект: | C13: Благоустройство 2017 | Q13: Благоустройство 2017
A14: ЛОКАЛЬНАЯ СМЕТА № 64 | R14: ЛОКАЛЬНАЯ СМЕТА № 64
A15: (Локальный сметный расчет) | R15: (Локальный сметный расчет)
A16: на ремонт придомовой территории по адресу: ул. Кирова,97 С) | R16: на Кирова,97 .Собственники
A17: Составлена в базисных ценах на 01.01.2000.
A19: № поз | B19: Шифр и № позиции норматива, Наименование работ и затрат, Единица измерения | C19: Количе-ство | D19: Стоим. ед., руб. | F19: Общая стоимость, руб. | I19: Затр. труда рабочих, не зан. обсл. машин, чел-ч
D20: всего | E20: экс. маш. | F20: всего | G20: оплата труда осн. раб. | H20: экс. маш. | I20: обслуж. машины
D21: оплата труда осн. раб. | E21: в т.ч. опл. труда мех. | H21: в т.ч. опл. труда мех. | I21: на ед. | J21: всего
A22: 1 | B22: 2 | C22: 3 | D22: 4 | E22: 5 | F22: 6 | G22: 7 | H22: 8 | I22: 9 | J22: 10
B23: Заготовительно-складские расходы 2%, транспортные расходы 10,3%
B25: Раздел 1. Валка деревьев
A27: 1. | B27: Е68-3-3 Валка деревьев в городских условиях ( береза, ) диаметром до 300 мм, 1 складочный м3 кряжей | C27: 1.08 | D27: ='Базовые цены за единицу'!B9 -> 43.86 | E27: ='Базовые цены за единицу'!D9 -> 13.95 | F27: ='Базовые цены с учетом расхода'!B9 -> 47 | G27: ='Базовые цены с учетом расхода'!C9 -> 32 | H27: ='Базовые цены с учетом расхода'!D9 -> 15 | I27: 2.97 | J27: ='Базовые цены с учетом расхода'!I9 -> 3.2076 | K27: sum | L27: IsZPR | N27: ='Базовые цены с учетом расхода'!F9 -> 0
D28: ='Базовые цены за единицу'!C9 -> 29.91 | E28: ='Базовые цены за единицу'!E9 -> 0 | H28: ='Базовые цены с учетом расхода'!E9 -> 0 | J28: ='Базовые цены с учетом расхода'!K9 -> 0 | K28: sum_b | L28: IsZPM
B29: Зарплата рабочих | F29: 32
B30: Эксплуатация машин | F30: 15
B31: в т.ч. зарплата машинистов
B32: Материалы
B33: в т.ч. Вспомогательные материалы от стоимости материалов
B34: в т.ч. Вспомогательные ненормируемые материалы | K34: NenormMatOtZPR | L34: IsMater
B35: в т.ч. Ненормированная з.п. рабочих
B36: в т.ч. Ненормированная стоимость эксплуатации машин
B37: в т.ч. Ненормированная оплата механизаторов
B38: Накладные расходы | C38: 104 | F38: =IF('Базовые цены с учетом расхода'!N9>0,'Базовые цены с учетом расхода'!N9,IF('Базовые цены с учетом расхода'!N9<0,'Базовые цены с учетом расхода'!N9,"")) -> 33 | L38: Nakl
B39: НР от ЗПР | C39: 104 | F39: =IF('Базовые цены с учетом расхода'!P9>0,'Базовые цены с учетом расхода'!P9,IF('Базовые цены с учетом расхода'!P9<0,'Базовые цены с учетом расхода'!P9,"")) -> 34 | L39: Nakl_ZPR
B40: НР от ЗПМ | F40: =IF('Базовые цены с учетом расхода'!Q9>0,'Базовые цены с учетом расхода'!Q9,IF('Базовые цены с учетом расхода'!Q9<0,'Базовые цены с учетом расхода'!Q9,"")) ->  | L40: Nakl_ZPM
B41: Сметная прибыль | C41: 60 | F41: =IF('Базовые цены с учетом расхода'!O9>0,'Базовые цены с учетом расхода'!O9,IF('Базовые цены с учетом расхода'!O9<0,'Базовые цены с учетом расхода'!O9,"")) -> 19 | L41: Plan
B42: СП от ЗПР | C42: 60 | F42: =IF('Базовые цены с учетом расхода'!R9>0,'Базовые цены с учетом расхода'!R9,IF('Базовые цены с учетом расхода'!R9<0,'Базовые цены с учетом расхода'!R9,"")) -> 19 | L42: Plan_ZPR
B43: СП от ЗПМ | F43: =IF('Базовые цены с учетом расхода'!S9>0,'Базовые цены с учетом расхода'!S9,IF('Базовые цены с учетом расхода'!S9<0,'Базовые цены с учетом расхода'!S9,"")) ->  | L43: Plan_ZPM
A45: 2. | B45: Е68-3-4 Валка деревьев в городских условиях (ель, пихта, береза, лиственница, ольха) диаметром более 300 мм, 1 складочный м3 кряжей | C45: 8.63 | D45: ='Базовые цены за единицу'!B10 -> 90.13 | E45: ='Базовые цены за единицу'!D10 -> 28.6 | F45: ='Базовые цены с учетом расхода'!B10 -> 778 | G45: ='Базовые цены с учетом расхода'!C10 -> 531 | H45: ='Базовые цены с учетом расхода'!D10 -> 247 | I45: 6.11 | J45: ='Базовые цены с учетом расхода'!I10 -> 52.7293 | K45: sum | L45: IsZPR | N45: ='Базовые цены с учетом расхода'!F10 -> 0
D46: ='Базовые цены за единицу'!C10 -> 61.53 | E46: ='Базовые цены за единицу'!E10 -> 0 | H46: ='Базовые цены с учетом расхода'!E10 -> 0 | J46: ='Базовые цены с учетом расхода'!K10 -> 0 | K46: sum_b | L46: IsZPM
B47: Зарплата рабочих | F47: 531
B48: Эксплуатация машин | F48: 247
B49: в т.ч. зарплата машинистов
B50: Материалы
B51: в т.ч. Вспомогательные материалы от стоимости материалов
B52: в т.ч. Вспомогательные ненормируемые материалы | K52: NenormMatOtZPR | L52: IsMater
B53: в т.ч. Ненормированная з.п. рабочих
B54: в т.ч. Ненормированная стоимость эксплуатации машин
B55: в т.ч. Ненормированная оплата механизаторов
B56: Накладные расходы | C56: 104 | F56: =IF('Базовые цены с учетом расхода'!N10>0,'Базовые цены с учетом расхода'!N10,IF('Базовые цены с учетом расхода'!N10<0,'Базовые цены с учетом расхода'!N10,"")) -> 552 | L56: Nakl
B57: НР от ЗПР | C57: 104 | F57: =IF('Базовые цены с учетом расхода'!P10>0,'Базовые цены с учетом расхода'!P10,IF('Базовые цены с учетом расхода'!P10<0,'Базовые цены с учетом расхода'!P10,"")) -> 552 | L57: Nakl_ZPR
B58: НР от ЗПМ | F58: =IF('Базовые цены с учетом расхода'!Q10>0,'Базовые цены с учетом расхода'!Q10,IF('Базовые цены с учетом расхода'!Q10<0,'Базовые цены с учетом расхода'!Q10,"")) ->  | L58: Nakl_ZPM
B59: Сметная прибыль | C59: 60 | F59: =IF('Базовые цены с учетом расхода'!O10>0,'Базовые цены с учетом расхода'!O10,IF('Базовые цены с учетом расхода'!O10<0,'Базовые цены с учетом расхода'!O10,"")) -> 319 | L59: Plan
B60: СП от ЗПР | C60: 60 | F60: =IF('Базовые цены с учетом расхода'!R10>0,'Базовые цены с учетом расхода'!R10,IF('Базовые цены с учетом расхода'!R10<0,'Базовые цены с учетом расхода'!R10,"")) -> 319 | L60: Plan_ZPR
B61: СП от ЗПМ | F61: =IF('Базовые цены с учетом расхода'!S10>0,'Базовые цены с учетом расхода'!S10,IF('Базовые цены с учетом расхода'!S10<0,'Базовые цены с учетом расхода'!S10,"")) ->  | L61: Plan_ZPM
A63: 3. | B63: Е01-02-105-02 Корчевка пней в грунтах естественного залегания корчевателями-собирателями на тракторе мощностью 79 кВт (108 л.с.) с перемещением пней до 5 м, диаметр пней до 32 см, 100 пней | C63: 0.02 | D63: ='Базовые цены за единицу'!B11 -> 670.64 | E63: ='Базовые цены за единицу'!D11 -> 670.64 | F63: ='Базовые цены с учетом расхода'!B11 -> 13 | G63: ='Базовые цены с учетом расхода'!C11 -> 0 | H63: ='Базовые цены с учетом расхода'!D11 -> 13 | J63: ='Базовые цены с учетом расхода'!I11 -> 0 | K63: sum | L63: IsZPR | N63: ='Базовые цены с учетом расхода'!F11 -> 0
D64: ='Базовые цены за единицу'!C11 -> 0 | E64: ='Базовые цены за единицу'!E11 -> 71.62 | H64: ='Базовые цены с учетом расхода'!E11 -> 1 | I64: 4.14 | J64: ='Базовые цены с учетом расхода'!K11 -> 0.0828 | K64: sum_b | L64: IsZPM
B65: Зарплата рабочих
B66: Эксплуатация машин | F66: 13
B67: в т.ч. зарплата машинистов | F67: 1
B68: Материалы
B69: в т.ч. Вспомогательные материалы от стоимости материалов
B70: в т.ч. Вспомогательные ненормируемые материалы | K70: NenormMatOtZPR | L70: IsMater
B71: в т.ч. Ненормированная з.п. рабочих
B72: в т.ч. Ненормированная стоимость эксплуатации машин
B73: в т.ч. Ненормированная оплата механизаторов
B74: Накладные расходы | C74: 80 | F74: =IF('Базовые цены с учетом расхода'!N11>0,'Базовые цены с учетом расхода'!N11,IF('Базовые цены с учетом расхода'!N11<0,'Базовые цены с учетом расхода'!N11,"")) -> 1 | L74: Nakl
B75: НР от ЗПР | F75: =IF('Базовые цены с учетом расхода'!P11>0,'Базовые цены с учетом расхода'!P11,IF('Базовые цены с учетом расхода'!P11<0,'Базовые цены с учетом расхода'!P11,"")) ->  | L75: Nakl_ZPR
B76: НР от ЗПМ | C76: 80 | F76: =IF('Базовые цены с учетом расхода'!Q11>0,'Базовые цены с учетом расхода'!Q11,IF('Базовые цены с учетом расхода'!Q11<0,'Базовые цены с учетом расхода'!Q11,"")) -> 1 | L76: Nakl_ZPM
B77: Сметная прибыль | C77: 38 | F77: =IF('Базовые цены с учетом расхода'!O11>0,'Базовые цены с учетом расхода'!O11,IF('Базовые цены с учетом расхода'!O11<0,'Базовые цены с учетом расхода'!O11,"")) ->  | L77: Plan
B78: СП от ЗПР | F78: =IF('Базовые цены с учетом расхода'!R11>0,'Базовые цены с учетом расхода'!R11,IF('Базовые цены с учетом расхода'!R11<0,'Базовые цены с учетом расхода'!R11,"")) ->  | L78: Plan_ZPR
B79: СП от ЗПМ | C79: 38 | F79: =IF('Базовые цены с учетом расхода'!S11>0,'Базовые цены с учетом расхода'!S11,IF('Базовые цены с учетом расхода'!S11<0,'Базовые цены с учетом расхода'!S11,"")) -> 1 | L79: Plan_ZPM
A81: 4. | B81: Е01-02-105-03 Корчевка пней в грунтах естественного залегания корчевателями-собирателями на тракторе мощностью 79 кВт (108 л.с.) с перемещением пней до 5 м, диаметр пней свыше 32 см, 100 пней | C81: 0.06 | D81: ='Базовые цены за единицу'!B12 -> 1086.95 | E81: ='Базовые цены за единицу'!D12 -> 1086.95 | F81: ='Базовые цены с учетом расхода'!B12 -> 65 | G81: ='Базовые цены с учетом расхода'!C12 -> 0 | H81: ='Базовые цены с учетом расхода'!D12 -> 65 | J81: ='Базовые цены с учетом расхода'!I12 -> 0 | K81: sum | L81: IsZPR | N81: ='Базовые цены с учетом расхода'!F12 -> 0
D82: ='Базовые цены за единицу'!C12 -> 0 | E82: ='Базовые цены за единицу'!E12 -> 116.08 | H82: ='Базовые цены с учетом расхода'!E12 -> 7 | I82: 6.71 | J82: ='Базовые цены с учетом расхода'!K12 -> 0.4026 | K82: sum_b | L82: IsZPM
B83: Зарплата рабочих
B84: Эксплуатация машин | F84: 65
B85: в т.ч. зарплата машинистов | F85: 7
B86: Материалы
B87: в т.ч. Вспомогательные материалы от стоимости материалов
B88: в т.ч. Вспомогательные ненормируемые материалы | K88: NenormMatOtZPR | L88: IsMater
B89: в т.ч. Ненормированная з.п. рабочих
B90: в т.ч. Ненормированная стоимость эксплуатации машин
B91: в т.ч. Ненормированная оплата механизаторов
B92: Накладные расходы | C92: 80 | F92: =IF('Базовые цены с учетом расхода'!N12>0,'Базовые цены с учетом расхода'!N12,IF('Базовые цены с учетом расхода'!N12<0,'Базовые цены с учетом расхода'!N12,"")) -> 6 | L92: Nakl
B93: НР от ЗПР | F93: =IF('Базовые цены с учетом расхода'!P12>0,'Базовые цены с учетом расхода'!P12,IF('Базовые цены с учетом расхода'!P12<0,'Базовые цены с учетом расхода'!P12,"")) ->  | L93: Nakl_ZPR
B94: НР от ЗПМ | C94: 80 | F94: =IF('Базовые цены с учетом расхода'!Q12>0,'Базовые цены с учетом расхода'!Q12,IF('Базовые цены с учетом расхода'!Q12<0,'Базовые цены с учетом расхода'!Q12,"")) -> 6 | L94: Nakl_ZPM
B95: Сметная прибыль | C95: 38 | F95: =IF('Базовые цены с учетом расхода'!O12>0,'Базовые цены с учетом расхода'!O12,IF('Базовые цены с учетом расхода'!O12<0,'Базовые цены с учетом расхода'!O12,"")) -> 3 | L95: Plan
B96: СП от ЗПР | F96: =IF('Базовые цены с учетом расхода'!R12>0,'Базовые цены с учетом расхода'!R12,IF('Базовые цены с учетом расхода'!R12<0,'Базовые цены с учетом расхода'!R12,"")) ->  | L96: Plan_ZPR
B97: СП от ЗПМ | C97: 38 | F97: =IF('Базовые цены с учетом расхода'!S12>0,'Базовые цены с учетом расхода'!S12,IF('Базовые цены с учетом расхода'!S12<0,'Базовые цены с учетом расхода'!S12,"")) -> 3 | L97: Plan_ZPM
A99: 5. | B99: Е01-02-107-01 Засыпка ям подкоренных бульдозерами мощностью 79 (108) кВт (л.с.) под проезжей частью, 100 ям | C99: 0.08 | D99: ='Базовые цены за единицу'!B13 -> 295.4 | E99: ='Базовые цены за единицу'!D13 -> 295.4 | F99: ='Базовые цены с учетом расхода'!B13 -> 24 | G99: ='Базовые цены с учетом расхода'!C13 -> 0 | H99: ='Базовые цены с учетом расхода'!D13 -> 24 | J99: ='Базовые цены с учетом расхода'!I13 -> 0 | K99: sum | L99: IsZPR | N99: ='Базовые цены с учетом расхода'!F13 -> 0
D100: ='Базовые цены за единицу'!C13 -> 0 | E100: ='Базовые цены за единицу'!E13 -> 37.77 | H100: ='Базовые цены с учетом расхода'!E13 -> 3 | I100: 2.33 | J100: ='Базовые цены с учетом расхода'!K13 -> 0.1864 | K100: sum_b | L100: IsZPM
B101: Зарплата рабочих
B102: Эксплуатация машин | F102: 24
B103: в т.ч. зарплата машинистов | F103: 3
B104: Материалы
B105: в т.ч. Вспомогательные материалы от стоимости материалов
B106: в т.ч. Вспомогательные ненормируемые материалы | K106: NenormMatOtZPR | L106: IsMater
B107: в т.ч. Ненормированная з.п. рабочих
B108: в т.ч. Ненормированная стоимость эксплуатации машин
B109: в т.ч. Ненормированная оплата механизаторов
B110: Накладные расходы | C110: 80 | F110: =IF('Базовые цены с учетом расхода'!N13>0,'Базовые цены с учетом расхода'!N13,IF('Базовые цены с учетом расхода'!N13<0,'Базовые цены с учетом расхода'!N13,"")) -> 2 | L110: Nakl
B111: НР от ЗПР | F111: =IF('Базовые цены с учетом расхода'!P13>0,'Базовые цены с учетом расхода'!P13,IF('Базовые цены с учетом расхода'!P13<0,'Базовые цены с учетом расхода'!P13,"")) ->  | L111: Nakl_ZPR
B112: НР от ЗПМ | C112: 80 | F112: =IF('Базовые цены с учетом расхода'!Q13>0,'Базовые цены с учетом расхода'!Q13,IF('Базовые цены с учетом расхода'!Q13<0,'Базовые цены с учетом расхода'!Q13,"")) -> 2 | L112: Nakl_ZPM
B113: Сметная прибыль | C113: 38 | F113: =IF('Базовые цены с учетом расхода'!O13>0,'Базовые цены с учетом расхода'!O13,IF('Базовые цены с учетом расхода'!O13<0,'Базовые цены с учетом расхода'!O13,"")) -> 1 | L113: Plan
B114: СП от ЗПР | F114: =IF('Базовые цены с учетом расхода'!R13>0,'Базовые цены с учетом расхода'!R13,IF('Базовые цены с учетом расхода'!R13<0,'Базовые цены с учетом расхода'!R13,"")) ->  | L114: Plan_ZPR
B115: СП от ЗПМ | C115: 38 | F115: =IF('Базовые цены с учетом расхода'!S13>0,'Базовые цены с учетом расхода'!S13,IF('Базовые цены с учетом расхода'!S13<0,'Базовые цены с учетом расхода'!S13,"")) -> 1 | L115: Plan_ZPM
A117: 6. | B117: С Прайс "СГМК". Щебень из доменного шлака фр. 40-70 т.ч. прил. 27.2 (363,79*1,02*1,103), м3 | C117: 1.5 | D117: ='Базовые цены за единицу'!B14 -> 64.76 | E117: ='Базовые цены за единицу'!D14 -> 0 | F117: ='Базовые цены с учетом расхода'!B14 -> 97 | G117: ='Базовые цены с учетом расхода'!C14 -> 0 | H117: ='Базовые цены с учетом расхода'!D14 -> 0 | J117: ='Базовые цены с учетом расхода'!I14 -> 0 | K117: sum | L117: IsZPR | N117: ='Базовые цены с учетом расхода'!F14 -> 97
D118: ='Базовые цены за единицу'!C14 -> 0 | E118: ='Базовые цены за единицу'!E14 -> 0 | H118: ='Базовые цены с учетом расхода'!E14 -> 0 | J118: ='Базовые цены с учетом расхода'!K14 -> 0 | K118: sum_b | L118: IsZPM
B119: Поправки: М: =363.79*1.103*1.02/6.32
B120: Зарплата рабочих
B121: Эксплуатация машин
B122: в т.ч. зарплата машинистов
B123: Материалы | F123: 97
B124: в т.ч. Вспомогательные материалы от стоимости материалов
B125: в т.ч. Вспомогательные ненормируемые материалы | K125: NenormMatOtZPR | L125: IsMater
B126: в т.ч. Ненормированная з.п. рабочих
B127: в т.ч. Ненормированная стоимость эксплуатации машин
B128: в т.ч. Ненормированная оплата механизаторов
B129: Накладные расходы | F129: =IF('Базовые цены с учетом расхода'!N14>0,'Базовые цены с учетом расхода'!N14,IF('Базовые цены с учетом расхода'!N14<0,'Базовые цены с учетом расхода'!N14,"")) ->  | L129: Nakl
B130: НР от ЗПР | F130: =IF('Базовые цены с учетом расхода'!P14>0,'Базовые цены с учетом расхода'!P14,IF('Базовые цены с учетом расхода'!P14<0,'Базовые цены с учетом расхода'!P14,"")) ->  | L130: Nakl_ZPR
B131: НР от ЗПМ | F131: =IF('Базовые цены с учетом расхода'!Q14>0,'Базовые цены с учетом расхода'!Q14,IF('Базовые цены с учетом расхода'!Q14<0,'Базовые цены с учетом расхода'!Q14,"")) ->  | L131: Nakl_ZPM
B132: Сметная прибыль | F132: =IF('Базовые цены с учетом расхода'!O14>0,'Базовые цены с учетом расхода'!O14,IF('Базовые цены с учетом расхода'!O14<0,'Базовые цены с учетом расхода'!O14,"")) ->  | L132: Plan
B133: СП от ЗПР | F133: =IF('Базовые цены с учетом расхода'!R14>0,'Базовые цены с учетом расхода'!R14,IF('Базовые цены с учетом расхода'!R14<0,'Базовые цены с учетом расхода'!R14,"")) ->  | L133: Plan_ZPR
B134: СП от ЗПМ | F134: =IF('Базовые цены с учетом расхода'!S14>0,'Базовые цены с учетом расхода'!S14,IF('Базовые цены с учетом расхода'!S14<0,'Базовые цены с учетом расхода'!S14,"")) ->  | L134: Plan_ZPM
A136: 7. | B136: Т01-01-01-045 Погрузка при автомобильных перевозках прочих материалов, деталей (с использованием погрузчика), 1 т груза | C136: 6.81 | D136: ='Базовые цены за единицу'!B15 -> 18.98 | E136: ='Базовые цены за единицу'!D15 -> 9.73 | F136: ='Базовые цены с учетом расхода'!B15 -> 129 | G136: ='Базовые цены с учетом расхода'!C15 -> 18 | H136: ='Базовые цены с учетом расхода'!D15 -> 66 | I136: 0.289 | J136: ='Базовые цены с учетом расхода'!I15 -> 1.96809 | K136: sum | L136: IsZPR | N136: ='Базовые цены с учетом расхода'!F15 -> 0
D137: ='Базовые цены за единицу'!C15 -> 2.71 | E137: ='Базовые цены за единицу'!E15 -> 1.38 | H137: ='Базовые цены с учетом расхода'!E15 -> 9 | I137: 0.114 | J137: ='Базовые цены с учетом расхода'!K15 -> 0.77634 | K137: sum_b | L137: IsZPM
B138: =IF(ROUND(((1.08+0.16+8.63+1.3)*0.61)/1,2)=C136,"Объем: (1,08+0,16+8,63+1,3)*0,61","") -> Объем: (1,08+0,16+8,63+1,3)*0,61
B139: Зарплата рабочих | F139: 18
B140: Эксплуатация машин | F140: 66
B141: в т.ч. зарплата машинистов | F141: 9
B142: Материалы
B143: в т.ч. Вспомогательные материалы от стоимости материалов
B144: в т.ч. Вспомогательные ненормируемые материалы | K144: NenormMatOtZPR | L144: IsMater
B145: в т.ч. Ненормированная з.п. рабочих
B146: в т.ч. Ненормированная стоимость эксплуатации машин
B147: в т.ч. Ненормированная оплата механизаторов
B148: в т.ч. Накладные расходы | C148: 100 | F148: =IF('Базовые цены с учетом расхода'!AF15>0,'Базовые цены с учетом расхода'!AF15,IF('Базовые цены с учетом расхода'!AF15<0,'Базовые цены с учетом расхода'!AF15,"")) -> 28 | L148: Nakl
B149: НР от ЗПР | C149: 100 | F149: =IF('Базовые цены с учетом расхода'!P15>0,'Базовые цены с учетом расхода'!P15,IF('Базовые цены с учетом расхода'!P15<0,'Базовые цены с учетом расхода'!P15,"")) -> 18 | L149: Nakl_ZPR
B150: НР от ЗПМ | C150: 100 | F150: =IF('Базовые цены с учетом расхода'!Q15>0,'Базовые цены с учетом расхода'!Q15,IF('Базовые цены с учетом расхода'!Q15<0,'Базовые цены с учетом расхода'!Q15,"")) -> 9 | L150: Nakl_ZPM
B151: в т.ч. Сметная прибыль | C151: 60 | F151: =IF('Базовые цены с учетом расхода'!AG15>0,'Базовые цены с учетом расхода'!AG15,IF('Базовые цены с учетом расхода'!AG15<0,'Базовые цены с учетом расхода'!AG15,"")) -> 17 | L151: Plan
B152: СП от ЗПР | C152: 60 | F152: =IF('Базовые цены с учетом расхода'!R15>0,'Базовые цены с учетом расхода'!R15,IF('Базовые цены с учетом расхода'!R15<0,'Базовые цены с учетом расхода'!R15,"")) -> 11 | L152: Plan_ZPR
B153: СП от ЗПМ | C153: 60 | F153: =IF('Базовые цены с учетом расхода'!S15>0,'Базовые цены с учетом расхода'!S15,IF('Базовые цены с учетом расхода'!S15<0,'Базовые цены с учетом расхода'!S15,"")) -> 6 | L153: Plan_ZPM
A155: 8. | B155: Т03-21-01-015 Перевозка грузов I класса автомобилями-самосвалами грузоподъемностью 10 т работающих вне карьера на расстояние до 15 км, 1 т груза | C155: 6.81 | D155: ='Базовые цены за единицу'!B16 -> 15.36 | E155: ='Базовые цены за единицу'!D16 -> 15.36 | F155: ='Базовые цены с учетом расхода'!B16 -> 105 | G155: ='Базовые цены с учетом расхода'!C16 -> 0 | H155: ='Базовые цены с учетом расхода'!D16 -> 105 | J155: ='Базовые цены с учетом расхода'!I16 -> 0 | K155: sum | L155: IsZPR | N155: ='Базовые цены с учетом расхода'!F16 -> 0
D156: ='Базовые цены за единицу'!C16 -> 0 | E156: ='Базовые цены за единицу'!E16 -> 0 | H156: ='Базовые цены с учетом расхода'!E16 -> 0 | J156: ='Базовые цены с учетом расхода'!K16 -> 0 | K156: sum_b | L156: IsZPM
B157: Зарплата рабочих
B158: Эксплуатация машин | F158: 105
B159: в т.ч. зарплата машинистов
B160: Материалы
B161: в т.ч. Вспомогательные материалы от стоимости материалов
B162: в т.ч. Вспомогательные ненормируемые материалы | K162: NenormMatOtZPR | L162: IsMater
B163: в т.ч. Ненормированная з.п. рабочих
B164: в т.ч. Ненормированная стоимость эксплуатации машин
B165: в т.ч. Ненормированная оплата механизаторов
B166: в т.ч. Накладные расходы | F166: =IF('Базовые цены с учетом расхода'!AF16>0,'Базовые цены с учетом расхода'!AF16,IF('Базовые цены с учетом расхода'!AF16<0,'Базовые цены с учетом расхода'!AF16,"")) ->  | L166: Nakl
B167: НР от ЗПР | F167: =IF('Базовые цены с учетом расхода'!P16>0,'Базовые цены с учетом расхода'!P16,IF('Базовые цены с учетом расхода'!P16<0,'Базовые цены с учетом расхода'!P16,"")) ->  | L167: Nakl_ZPR
B168: НР от ЗПМ | F168: =IF('Базовые цены с учетом расхода'!Q16>0,'Базовые цены с учетом расхода'!Q16,IF('Базовые цены с учетом расхода'!Q16<0,'Базовые цены с учетом расхода'!Q16,"")) ->  | L168: Nakl_ZPM
B169: в т.ч. Сметная прибыль | F169: =IF('Базовые цены с учетом расхода'!AG16>0,'Базовые цены с учетом расхода'!AG16,IF('Базовые цены с учетом расхода'!AG16<0,'Базовые цены с учетом расхода'!AG16,"")) ->  | L169: Plan
B170: СП от ЗПР | F170: =IF('Базовые цены с учетом расхода'!R16>0,'Базовые цены с учетом расхода'!R16,IF('Базовые цены с учетом расхода'!R16<0,'Базовые цены с учетом расхода'!R16,"")) ->  | L170: Plan_ZPR
B171: СП от ЗПМ | F171: =IF('Базовые цены с учетом расхода'!S16>0,'Базовые цены с учетом расхода'!S16,IF('Базовые цены с учетом расхода'!S16<0,'Базовые цены с учетом расхода'!S16,"")) ->  | L171: Plan_ZPM
B173: . ИТОГО ПО РАЗДЕЛУ 1 | F173: ='Базовые концовки'!F10 -> 1258 | G173: ='Базовые концовки'!G10 -> 581 | H173: ='Базовые концовки'!H10 -> 535 | J173: ='Базовые концовки'!J10 -> 57.90499 | N173: ='Базовые концовки'!L10 -> 97 | R173: ='Базовые концовки'!M10 -> 0
H174: ='Базовые концовки'!I10 -> 20 | J174: ='Базовые концовки'!K10 -> 1.44814
B175: СТОИМОСТЬ ОБОРУДОВАНИЯ - | F175: ='Базовые концовки'!F11 -> 0 | G175: ='Базовые концовки'!G11 -> 0 | H175: ='Базовые концовки'!H11 -> 0 | J175: ='Базовые концовки'!J11 -> 0 | N175: ='Базовые концовки'!L11 -> 0 | R175: ='Базовые концовки'!M11 -> 0
B176: . ЗАПАСНЫЕ ЧАСТИ - | F176: ='Базовые концовки'!F12 -> 0
B177: . ТАРА И УПАКОВКА - | F177: ='Базовые концовки'!F13 -> 0
B178: . ТРАНСПОРТНЫЕ РАСХОДЫ - | F178: ='Базовые концовки'!F14 -> 0
B179: . КОМПЛЕКТАЦИЯ - | F179: ='Базовые концовки'!F15 -> 0
B180: . НАЦЕНКА СНАБА - | F180: ='Базовые концовки'!F16 -> 0
B181: . ЗАГОТОВИТЕЛЬНО-СКЛАДСКИЕ РАСХОДЫ - | F181: ='Базовые концовки'!F17 -> 0
B182: . ШЕФМОНТАЖ ПО ОБОРУДОВАНИЮ - | F182: ='Базовые концовки'!F18 -> 0
B183: . ШЕФМОНТАЖ - | F183: ='Базовые концовки'!F19 -> 0
B184: ВСЕГО, СТОИМОСТЬ ОБОРУДОВАНИЯ - | F184: ='Базовые концовки'!F20 -> 0
B185: Оборудование ТЦ | F185: ='Базовые концовки'!F21 -> 0
B186: СТОИМОСТЬ МОНТАЖНЫХ РАБОТ - | F186: ='Базовые концовки'!F22 -> 0 | G186: ='Базовые концовки'!G22 -> 0 | H186: ='Базовые концовки'!H22 -> 0 | J186: ='Базовые концовки'!J22 -> 0 | N186: ='Базовые концовки'!L22 -> 0 | R186: ='Базовые концовки'!M22 -> 0
B187: . В ТОМ ЧИСЛЕ:
B188: . ОТКЛОНЕНИЕ ПО ЗАРАБОТНОЙ ПЛАТЕ - | G188: ='Базовые концовки'!G24 -> 0
B189: . КОСВЕННЫЕ РАСХОДЫ - | F189: ='Базовые концовки'!F25 -> 0
B190: . МАТЕРИАЛЬНЫЕ РЕСУРСЫ НЕ УЧТЕННЫЕ В РАСЦЕНКАХ - | F190: ='Базовые концовки'!F26 -> 0
B191: . СТОИМОСТЬ ВОЗВРАЩАЕМЫХ МАТЕРИАЛОВ - | F191: ='Базовые концовки'!F27 -> 0
B192: . НАКЛАДНЫЕ РАСХОДЫ - | F192: ='Базовые концовки'!F28 -> 0
B193: . СМЕТНАЯ ПРИБЫЛЬ - | F193: ='Базовые концовки'!F29 -> 0
B194: . ШЕФМОНТАЖ - | F194: ='Базовые концовки'!F30 -> 0
B195: ВСЕГО, СТОИМОСТЬ МОНТАЖНЫХ РАБОТ - | F195: ='Базовые концовки'!F31 -> 0
B196: Монтажные работы БЦ ЭМ | F196: ='Базовые концовки'!F32 -> 0
B197: Монтажные работы БЦ ЗПМ | F197: ='Базовые концовки'!F33 -> 0
B198: Монтажные работы ТЦ ЗП | F198: ='Базовые концовки'!F34 -> 0
B199: Монтажные работы ТЦ ЗПМ | F199: ='Базовые концовки'!F35 -> 0
B200: Монтажные работы ТЦ ЭМ | F200: ='Базовые концовки'!F36 -> 0
B201: Монтажные работы ТЦ материалы | F201: ='Базовые концовки'!F37 -> 0
B202: Монтажные работы ТЦ НР | F202: ='Базовые концовки'!F38 -> 0
B203: Монтажные работы ТЦ СП | F203: ='Базовые концовки'!F39 -> 0
B204: Монтажные работы ТЦ всего | F204: ='Базовые концовки'!F40 -> 0
B205: СТОИМОСТЬ ОБЩЕСТРОИТЕЛЬНЫХ РАБОТ - | F205: ='Базовые концовки'!F41 -> 1024 | G205: ='Базовые концовки'!G41 -> 563 | H205: ='Базовые концовки'!H41 -> 364 | J205: ='Базовые концовки'!J41 -> 55.9369 | N205: ='Базовые концовки'!L41 -> 97 | R205: ='Базовые концовки'!M41 -> 0
H206: ='Базовые концовки'!I41 -> 11 | J206: ='Базовые концовки'!K41 -> 0.6718
B207: . В ТОМ ЧИСЛЕ:
B208: . МАТЕРИАЛОВ - | F208: ='Базовые концовки'!F43 -> 0
B209: . СТОИМОСТЬ ВОЗВРАЩАЕМЫХ МАТЕРИАЛОВ - | F209: ='Базовые концовки'!F44 -> 0
B210: . НАКЛАДНЫЕ РАСХОДЫ - (%=104 - по стр. 1, 2; %=80 - по стр. 3-5) | F210: ='Базовые концовки'!F45 -> 594
B211: . СМЕТНАЯ ПРИБЫЛЬ - (%=60 - по стр. 1, 2; %=38 - по стр. 3-5) | F211: ='Базовые концовки'!F46 -> 342
B212: ВСЕГО, СТОИМОСТЬ ОБЩЕСТРОИТЕЛЬНЫХ РАБОТ - | F212: ='Базовые концовки'!F47 -> 1960
B213: СТОИМОСТЬ МЕТАЛЛОМОНТАЖНЫХ РАБОТ - | F213: ='Базовые концовки'!F48 -> 0 | G213: ='Базовые концовки'!G48 -> 0 | H213: ='Базовые концовки'!H48 -> 0 | J213: ='Базовые концовки'!J48 -> 0 | N213: ='Базовые концовки'!L48 -> 0 | R213: ='Базовые концовки'!M48 -> 0
B214: . СТОИМОСТЬ ВОЗВРАЩАЕМЫХ МАТЕРИАЛОВ - | F214: ='Базовые концовки'!F49 -> 0
B215: . НАКЛАДНЫЕ РАСХОДЫ - | F215: ='Базовые концовки'!F50 -> 0
B216: . СМЕТНАЯ ПРИБЫЛЬ - | F216: ='Базовые концовки'!F51 -> 0
B217: ВСЕГО, СТОИМОСТЬ МЕТАЛЛОМОНТАЖНЫХ РАБОТ - | F217: ='Базовые концовки'!F52 -> 0
... 1866 more rows

Sheet Базовые цены за единицу без нач
B1: C1 | C1: C2 | D1: C3 | E1: C4 | F1: C5 | G1: C6 | H1: VOZVR | I1: C8 | J1: C9 | K1: C10 | L1: C11 | M1: C12 | N1: NAKL | O1: PLAN | P1: NAKL_ZPR | Q1: NAKL_ZPM | R1: PLAN_ZPR | S1: PLAN_ZPM | T1: RN11 | U1: RN12 | V1: RN13 | X1: OBORUD_VSPOMOG | Y1: NAKL_PN | Z1: NAKL_VX | AA1: PLAN_PN | AB1: PLAN_VX | AC1: VTCH_PN | AD1: VTCH_VX | AE1: MR_BY_ZPR_VSPOMOG | AF1: NAKL_INC | AG1: PLAN_INC | AH1: RN14 | AI1: RN15 | AJ1: RN16 | AK1: OBORUD
B3: N = < 9 * 13 * 64 >
B4: Кирова,97 .Собственники
A6: ='Форма 4'!A27 -> 1. | B6: =ROUND(C6+D6+F6+AF6+AG6,2) -> 43.86 | C6: 29.91 | D6: 13.95 | E6: 0 | F6: 0 | G6: 0 | H6: 0 | I6: ='Форма 4'!I27 -> 2.97 | J6: 0 | K6: ='Форма 4'!I28 -> 0 | L6: 0 | M6: 0 | N6: 31.1064 | O6: 17.946 | P6: 31.1064 | Q6: 0 | R6: 17.946 | S6: 0 | T6: 0 | U6: 0 | V6: 0 | X6: 0 | Y6: 0 | Z6: 0 | AA6: 0 | AB6: 0 | AC6: 0 | AD6: 0 | AE6: 0 | AH6: 0 | AI6: 0 | AJ6: 0 | AK6: 0
A7: ='Форма 4'!A45 -> 2. | B7: 90.13 | C7: 61.53 | D7: 28.6 | E7: 0 | F7: 0 | G7: 0 | H7: 0 | I7: ='Форма 4'!I45 -> 6.11 | J7: 0 | K7: ='Форма 4'!I46 -> 0 | L7: 0 | M7: 0 | N7: 63.9912 | O7: 36.918 | P7: 63.9912 | Q7: 0 | R7: 36.918 | S7: 0 | T7: 0 | U7: 0 | V7: 0 | X7: 0 | Y7: 0 | Z7: 0 | AA7: 0 | AB7: 0 | AC7: 0 | AD7: 0 | AE7: 0 | AH7: 0 | AI7: 0 | AJ7: 0 | AK7: 0
A8: ='Форма 4'!A63 -> 3. | B8: 670.64 | C8: 0 | D8: 670.64 | E8: 71.62 | F8: 0 | G8: 0 | H8: 0 | I8: ='Форма 4'!I63 -> 0 | J8: 0 | K8: ='Форма 4'!I64 -> 4.14 | L8: 0 | M8: 0 | N8: 57.296 | O8: 27.2156 | P8: 0 | Q8: 57.296 | R8: 0 | S8: 27.2156 | T8: 0 | U8: 0 | V8: 0 | X8: 0 | Y8: 0 | Z8: 0 | AA8: 0 | AB8: 0 | AC8: 0 | AD8: 0 | AE8: 0 | AH8: 0 | AI8: 0 | AJ8: 0 | AK8: 0
A9: ='Форма 4'!A81 -> 4. | B9: 1086.95 | C9: 0 | D9: 1086.95 | E9: 116.08 | F9: 0 | G9: 0 | H9: 0 | I9: ='Форма 4'!I81 -> 0 | J9: 0 | K9: ='Форма 4'!I82 -> 6.71 | L9: 0 | M9: 0 | N9: 92.864 | O9: 44.1104 | P9: 0 | Q9: 92.864 | R9: 0 | S9: 44.1104 | T9: 0 | U9: 0 | V9: 0 | X9: 0 | Y9: 0 | Z9: 0 | AA9: 0 | AB9: 0 | AC9: 0 | AD9: 0 | AE9: 0 | AH9: 0 | AI9: 0 | AJ9: 0 | AK9: 0
A10: ='Форма 4'!A99 -> 5. | B10: 295.4 | C10: 0 | D10: 295.4 | E10: 37.77 | F10: 0 | G10: 0 | H10: 0 | I10: ='Форма 4'!I99 -> 0 | J10: 0 | K10: ='Форма 4'!I100 -> 2.33 | L10: 0 | M10: 0 | N10: 30.216 | O10: 14.3526 | P10: 0 | Q10: 30.216 | R10: 0 | S10: 14.3526 | T10: 0 | U10: 0 | V10: 0 | X10: 0 | Y10: 0 | Z10: 0 | AA10: 0 | AB10: 0 | AC10: 0 | AD10: 0 | AE10: 0 | AH10: 0 | AI10: 0 | AJ10: 0 | AK10: 0
A11: ='Форма 4'!A117 -> 6. | B11: 0 | C11: 0 | D11: 0 | E11: 0 | F11: 0 | G11: 0 | H11: 0 | I11: ='Форма 4'!I117 -> 0 | J11: 0 | K11: ='Форма 4'!I118 -> 0 | L11: 0 | M11: 0 | N11: 0 | O11: 0 | P11: 0 | Q11: 0 | R11: 0 | S11: 0 | T11: 0 | U11: 0 | V11: 0 | X11: 0 | Y11: 0 | Z11: 0 | AA11: 0 | AB11: 0 | AC11: 0 | AD11: 0 | AE11: 0 | AH11: 0 | AI11: 0 | AJ11: 0 | AK11: 0
A12: ='Форма 4'!A136 -> 7. | B12: 18.98 | C12: 2.71 | D12: 9.73 | E12: 1.38 | F12: 0 | G12: 0 | H12: 0 | I12: ='Форма 4'!I136 -> 0.289 | J12: 0 | K12: ='Форма 4'!I137 -> 0.114 | L12: 0 | M12: 0 | P12: 2.71 | Q12: 1.38 | R12: 1.63 | S12: 0.83 | T12: 0 | U12: 0 | V12: 0 | X12: 0 | Y12: 0 | Z12: 0 | AA12: 0 | AB12: 0 | AC12: 0 | AD12: 0 | AE12: 0 | AF12: 4.09 | AG12: 2.45 | AH12: 0 | AI12: 0 | AJ12: 0 | AK12: 0
A13: ='Форма 4'!A155 -> 8. | B13: 15.36 | C13: 0 | D13: 15.36 | E13: 0 | F13: 0 | G13: 0 | H13: 0 | I13: ='Форма 4'!I155 -> 0 | J13: 0 | K13: ='Форма 4'!I156 -> 0 | L13: 0 | M13: 0 | P13: 0 | Q13: 0 | R13: 0 | S13: 0 | T13: 0 | U13: 0 | V13: 0 | X13: 0 | Y13: 0 | Z13: 0 | AA13: 0 | AB13: 0 | AC13: 0 | AD13: 0 | AE13: 0 | AH13: 0 | AI13: 0 | AJ13: 0 | AK13: 0
A14: ='Форма 4'!A334 -> 9. | B14: 1008.65 | C14: 525.77 | D14: 482.88 | E14: 77.31 | F14: 0 | G14: 0 | H14: 0 | I14: ='Форма 4'!I334 -> 52.63 | J14: 0 | K14: ='Форма 4'!I335 -> 6.4 | L14: 0 | M14: 0 | N14: 627.2032 | O14: 361.848 | P14: 546.8008 | Q14: 80.4024 | R14: 315.462 | S14: 46.386 | T14: 0 | U14: 0 | V14: 0 | X14: 0 | Y14: 0 | Z14: 0 | AA14: 0 | AB14: 0 | AC14: 0 | AD14: 0 | AE14: 0 | AH14: 0 | AI14: 0 | AJ14: 0 | AK14: 0
A15: ='Форма 4'!A352 -> 10. | B15: 18.98 | C15: 2.71 | D15: 9.73 | E15: 1.38 | F15: 0 | G15: 0 | H15: 0 | I15: ='Форма 4'!I352 -> 0.289 | J15: 0 | K15: ='Форма 4'!I353 -> 0.114 | L15: 0 | M15: 0 | P15: 2.71 | Q15: 1.38 | R15: 1.63 | S15: 0.83 | T15: 0 | U15: 0 | V15: 0 | X15: 0 | Y15: 0 | Z15: 0 | AA15: 0 | AB15: 0 | AC15: 0 | AD15: 0 | AE15: 0 | AF15: 4.09 | AG15: 2.45 | AH15: 0 | AI15: 0 | AJ15: 0 | AK15: 0
A16: ='Форма 4'!A371 -> 11. | B16: 15.36 | C16: 0 | D16: 15.36 | E16: 0 | F16: 0 | G16: 0 | H16: 0 | I16: ='Форма 4'!I371 -> 0 | J16: 0 | K16: ='Форма 4'!I372 -> 0 | L16: 0 | M16: 0 | P16: 0 | Q16: 0 | R16: 0 | S16: 0 | T16: 0 | U16: 0 | V16: 0 | X16: 0 | Y16: 0 | Z16: 0 | AA16: 0 | AB16: 0 | AC16: 0 | AD16: 0 | AE16: 0 | AH16: 0 | AI16: 0 | AJ16: 0 | AK16: 0
A17: ='Форма 4'!A550 -> 12. | B17: 949.58 | C17: 0 | D17: 949.58 | E17: 121.41 | F17: 0 | G17: 0 | H17: 0 | I17: ='Форма 4'!I550 -> 0 | J17: 0 | K17: ='Форма 4'!I551 -> 7.49 | L17: 0 | M17: 0 | N17: 115.3395 | O17: 52.2063 | P17: 0 | Q17: 115.3395 | R17: 0 | S17: 52.2063 | T17: 0 | U17: 0 | V17: 0 | X17: 0 | Y17: 0 | Z17: 0 | AA17: 0 | AB17: 0 | AC17: 0 | AD17: 0 | AE17: 0 | AH17: 0 | AI17: 0 | AJ17: 0 | AK17: 0
A18: ='Форма 4'!A569 -> 13. | B18: 18.98 | C18: 2.71 | D18: 9.73 | E18: 1.38 | F18: 0 | G18: 0 | H18: 0 | I18: ='Форма 4'!I569 -> 0.289 | J18: 0 | K18: ='Форма 4'!I570 -> 0.114 | L18: 0 | M18: 0 | P18: 2.71 | Q18: 1.38 | R18: 1.63 | S18: 0.83 | T18: 0 | U18: 0 | V18: 0 | X18: 0 | Y18: 0 | Z18: 0 | AA18: 0 | AB18: 0 | AC18: 0 | AD18: 0 | AE18: 0 | AF18: 4.09 | AG18: 2.45 | AH18: 0 | AI18: 0 | AJ18: 0 | AK18: 0
A19: ='Форма 4'!A588 -> 14. | B19: 15.36 | C19: 0 | D19: 15.36 | E19: 0 | F19: 0 | G19: 0 | H19: 0 | I19: ='Форма 4'!I588 -> 0 | J19: 0 | K19: ='Форма 4'!I589 -> 0 | L19: 0 | M19: 0 | P19: 0 | Q19: 0 | R19: 0 | S19: 0 | T19: 0 | U19: 0 | V19: 0 | X19: 0 | Y19: 0 | Z19: 0 | AA19: 0 | AB19: 0 | AC19: 0 | AD19: 0 | AE19: 0 | AH19: 0 | AI19: 0 | AJ19: 0 | AK19: 0
A20: ='Форма 4'!A607 -> 15. | B20: 4617.09 | C20: 121.95 | D20: 4465.64 | E20: 478.22 | F20: 29.5 | G20: 0 | H20: 0 | I20: ='Форма 4'!I607 -> 12.77 | J20: 0 | K20: ='Форма 4'!I608 -> 29.74 | L20: 0 | M20: 0 | N20: 852.2414 | O20: 486.1377 | P20: 173.169 | Q20: 679.0724 | R20: 98.7795 | S20: 387.3582 | T20: 0 | U20: 0 | V20: 0 | X20: 0 | Y20: 0 | Z20: 0 | AA20: 0 | AB20: 0 | AC20: 0 | AD20: 0 | AE20: 0 | AH20: 0 | AI20: 0 | AJ20: 0 | AK20: 0
A21: ='Форма 4'!A626 -> 16. | B21: 0 | C21: 0 | D21: 0 | E21: 0 | F21: 0 | G21: 0 | H21: 0 | I21: ='Форма 4'!I626 -> 0 | J21: 0 | K21: ='Форма 4'!I627 -> 0 | L21: 0 | M21: 0 | N21: 0 | O21: 0 | P21: 0 | Q21: 0 | R21: 0 | S21: 0 | T21: 0 | U21: 0 | V21: 0 | X21: 0 | Y21: 0 | Z21: 0 | AA21: 0 | AB21: 0 | AC21: 0 | AD21: 0 | AE21: 0 | AH21: 0 | AI21: 0 | AJ21: 0 | AK21: 0
A22: ='Форма 4'!A646 -> 17. | B22: 0 | C22: 0 | D22: 0 | E22: 0 | F22: 0 | G22: 0 | H22: 0 | I22: ='Форма 4'!I646 -> 0 | J22: 0 | K22: ='Форма 4'!I647 -> 0 | L22: 0 | M22: 0 | N22: 0 | O22: 0 | P22: 0 | Q22: 0 | R22: 0 | S22: 0 | T22: 0 | U22: 0 | V22: 0 | X22: 0 | Y22: 0 | Z22: 0 | AA22: 0 | AB22: 0 | AC22: 0 | AD22: 0 | AE22: 0 | AH22: 0 | AI22: 0 | AJ22: 0 | AK22: 0
A23: ='Форма 4'!A666 -> 18. | B23: 4617.09 | C23: 121.95 | D23: 4465.64 | E23: 478.22 | F23: 29.5 | G23: 0 | H23: 0 | I23: ='Форма 4'!I666 -> 12.77 | J23: 0 | K23: ='Форма 4'!I667 -> 29.74 | L23: 0 | M23: 0 | N23: 852.2414 | O23: 486.1377 | P23: 173.169 | Q23: 679.0724 | R23: 98.7795 | S23: 387.3582 | T23: 0 | U23: 0 | V23: 0 | X23: 0 | Y23: 0 | Z23: 0 | AA23: 0 | AB23: 0 | AC23: 0 | AD23: 0 | AE23: 0 | AH23: 0 | AI23: 0 | AJ23: 0 | AK23: 0
A24: ='Форма 4'!A685 -> 19. | B24: 0 | C24: 0 | D24: 0 | E24: 0 | F24: 0 | G24: 0 | H24: 0 | I24: ='Форма 4'!I685 -> 0 | J24: 0 | K24: ='Форма 4'!I686 -> 0 | L24: 0 | M24: 0 | N24: 0 | O24: 0 | P24: 0 | Q24: 0 | R24: 0 | S24: 0 | T24: 0 | U24: 0 | V24: 0 | X24: 0 | Y24: 0 | Z24: 0 | AA24: 0 | AB24: 0 | AC24: 0 | AD24: 0 | AE24: 0 | AH24: 0 | AI24: 0 | AJ24: 0 | AK24: 0
A25: ='Форма 4'!A705 -> 20. | B25: 3259.67 | C25: 442.75 | D25: 2761.87 | E25: 314.9 | F25: 55.05 | G25: 0 | H25: 0 | I25: ='Форма 4'!I705 -> 38.3 | J25: 0 | K25: ='Форма 4'!I706 -> 19.05 | L25: 0 | M25: 0 | N25: 1075.863 | O25: 613.6965 | P25: 628.705 | Q25: 447.158 | R25: 358.6275 | S25: 255.069 | T25: 0 | U25: 0 | V25: 0 | X25: 0 | Y25: 0 | Z25: 0 | AA25: 0 | AB25: 0 | AC25: 0 | AD25: 0 | AE25: 0 | AH25: 0 | AI25: 0 | AJ25: 0 | AK25: 0
A26: ='Форма 4'!A723 -> 21. | B26: 518.6 | C26: 0 | D26: 0 | E26: 0 | F26: 518.6 | G26: 486.02 | H26: 0 | I26: ='Форма 4'!I723 -> 0 | J26: 0 | K26: ='Форма 4'!I724 -> 0 | L26: 1000 | M26: 0 | N26: 0 | O26: 0 | P26: 0 | Q26: 0 | R26: 0 | S26: 0 | T26: 0 | U26: 0 | V26: 0 | X26: 0 | Y26: 0 | Z26: 0 | AA26: 0 | AB26: 0 | AC26: 0 | AD26: 0 | AE26: 0 | AH26: 0 | AI26: 0 | AJ26: 0 | AK26: 0
A27: ='Форма 4'!A742 -> 22. | B27: 3437.9 | C27: 442.75 | D27: 2769.94 | E27: 315.39 | F27: 225.21 | G27: 0 | H27: 0 | I27: ='Форма 4'!I742 -> 38.3 | J27: 0 | K27: ='Форма 4'!I743 -> 19.08 | L27: 0 | M27: 0 | N27: 1076.5588 | O27: 614.0934 | P27: 628.705 | Q27: 447.8538 | R27: 358.6275 | S27: 255.4659 | T27: 0 | U27: 0 | V27: 0 | X27: 0 | Y27: 0 | Z27: 0 | AA27: 0 | AB27: 0 | AC27: 0 | AD27: 0 | AE27: 0 | AH27: 0 | AI27: 0 | AJ27: 0 | AK27: 0
A28: ='Форма 4'!A760 -> 23. | B28: 7.39 | C28: 1.04 | D28: 3.72 | E28: 0 | F28: 2.63 | G28: 0 | H28: 0 | I28: ='Форма 4'!I760 -> 0.09 | J28: 0 | K28: ='Форма 4'!I761 -> 0 | L28: 0 | M28: 0 | N28: 1.4768 | O28: 0.8424 | P28: 1.4768 | Q28: 0 | R28: 0.8424 | S28: 0 | T28: 0 | U28: 0 | V28: 0 | X28: 0 | Y28: 0 | Z28: 0 | AA28: 0 | AB28: 0 | AC28: 0 | AD28: 0 | AE28: 0 | AH28: 0 | AI28: 0 | AJ28: 0 | AK28: 0
A29: ='Форма 4'!A779 -> 24. | B29: 570.7 | C29: 0 | D29: 0 | E29: 0 | F29: 570.7 | G29: 537.1 | H29: 0 | I29: ='Форма 4'!I779 -> 0 | J29: 0 | K29: ='Форма 4'!I780 -> 0 | L29: 1000 | M29: 0 | N29: 0 | O29: 0 | P29: 0 | Q29: 0 | R29: 0 | S29: 0 | T29: 0 | U29: 0 | V29: 0 | X29: 0 | Y29: 0 | Z29: 0 | AA29: 0 | AB29: 0 | AC29: 0 | AD29: 0 | AE29: 0 | AH29: 0 | AI29: 0 | AJ29: 0 | AK29: 0
A30: ='Форма 4'!A959 -> 25. | B30: 4424.18 | C30: 772.97 | D30: 104.2 | E30: 11.02 | F30: 3547.01 | G30: 0 | H30: 0 | I30: ='Форма 4'!I959 -> 76.08 | J30: 0 | K30: ='Форма 4'!I960 -> 0.68 | L30: 0 | M30: 0 | N30: 1113.2658 | O30: 635.0319 | P30: 1097.6174 | Q30: 15.6484 | R30: 626.1057 | S30: 8.9262 | T30: 0 | U30: 0 | V30: 0 | X30: 0 | Y30: 0 | Z30: 0 | AA30: 0 | AB30: 0 | AC30: 0 | AD30: 0 | AE30: 0 | AH30: 0 | AI30: 0 | AJ30: 0 | AK30: 0
A31: ='Форма 4'!A979 -> 26. | B31: 64895.61 | C31: 1686.6 | D31: 2609.79 | E31: 291.78 | F31: 60599.22 | G31: 53507.16 | H31: 0 | I31: ='Форма 4'!I979 -> 180 | J31: 0 | K31: ='Форма 4'!I980 -> 18 | L31: 0 | M31: 0 | N31: 2077.299 | O31: 1088.109 | P31: 1770.93 | Q31: 306.369 | R31: 927.63 | S31: 160.479 | T31: 0 | U31: 0 | V31: 0 | X31: 0 | Y31: 0 | Z31: 0 | AA31: 0 | AB31: 0 | AC31: 0 | AD31: 0 | AE31: 0 | AH31: 0 | AI31: 0 | AJ31: 0 | AK31: 0
A32: ='Форма 4'!A1000 -> 27. | B32: 0 | C32: 0 | D32: 0 | E32: 0 | F32: 0 | G32: 0 | H32: 0 | I32: ='Форма 4'!I1000 -> 0 | J32: 0 | K32: ='Форма 4'!I1001 -> 0 | L32: 0 | M32: 0 | N32: 0 | O32: 0 | P32: 0 | Q32: 0 | R32: 0 | S32: 0 | T32: 0 | U32: 0 | V32: 0 | X32: 0 | Y32: 0 | Z32: 0 | AA32: 0 | AB32: 0 | AC32: 0 | AD32: 0 | AE32: 0 | AH32: 0 | AI32: 0 | AJ32: 0 | AK32: 0
A33: ='Форма 4'!A1020 -> 28. | B33: 0 | C33: 0 | D33: 0 | E33: 0 | F33: 0 | G33: 0 | H33: 0 | I33: ='Форма 4'!I1020 -> 0 | J33: 0 | K33: ='Форма 4'!I1021 -> 0 | L33: 0 | M33: 0 | N33: 0 | O33: 0 | P33: 0 | Q33: 0 | R33: 0 | S33: 0 | T33: 0 | U33: 0 | V33: 0 | X33: 0 | Y33: 0 | Z33: 0 | AA33: 0 | AB33: 0 | AC33: 0 | AD33: 0 | AE33: 0 | AH33: 0 | AI33: 0 | AJ33: 0 | AK33: 0
A34: ='Форма 4'!A1040 -> 29. | B34: 0 | C34: 0 | D34: 0 | E34: 0 | F34: 0 | G34: 0 | H34: 0 | I34: ='Форма 4'!I1040 -> 0 | J34: 0 | K34: ='Форма 4'!I1041 -> 0 | L34: 0 | M34: 0 | N34: 0 | O34: 0 | P34: 0 | Q34: 0 | R34: 0 | S34: 0 | T34: 0 | U34: 0 | V34: 0 | X34: 0 | Y34: 0 | Z34: 0 | AA34: 0 | AB34: 0 | AC34: 0 | AD34: 0 | AE34: 0 | AH34: 0 | AI34: 0 | AJ34: 0 | AK34: 0
A35: ='Форма 4'!A1219 -> 30. | B35: 592.78 | C35: 266.6 | D35: 322.22 | E35: 42.03 | F35: 3.96 | G35: 0 | H35: 0 | I35: ='Форма 4'!I1219 -> 26.24 | J35: 0 | K35: ='Форма 4'!I1220 -> 3.17 | L35: 0 | M35: 0 | N35: 438.2546 | O35: 249.9903 | P35: 378.572 | Q35: 59.6826 | R35: 215.946 | S35: 34.0443 | T35: 0 | U35: 0 | V35: 0 | X35: 0 | Y35: 0 | Z35: 0 | AA35: 0 | AB35: 0 | AC35: 0 | AD35: 0 | AE35: 0 | AH35: 0 | AI35: 0 | AJ35: 0 | AK35: 0
A36: ='Форма 4'!A1239 -> 31. | B36: 14.02 | C36: 5.49 | D36: 8.53 | E36: 1.21 | F36: 0 | G36: 0 | H36: 0 | I36: ='Форма 4'!I1239 -> 0.54 | J36: 0 | K36: ='Форма 4'!I1240 -> 0.1 | L36: 0 | M36: 0 | N36: 9.514 | O36: 5.427 | P36: 7.7958 | Q36: 1.7182 | R36: 4.4469 | S36: 0.9801 | T36: 0 | U36: 0 | V36: 0 | X36: 0 | Y36: 0 | Z36: 0 | AA36: 0 | AB36: 0 | AC36: 0 | AD36: 0 | AE36: 0 | AH36: 0 | AI36: 0 | AJ36: 0 | AK36: 0
A37: ='Форма 4'!A1259 -> 32. | B37: 0 | C37: 0 | D37: 0 | E37: 0 | F37: 0 | G37: 0 | H37: 0 | I37: ='Форма 4'!I1259 -> 0 | J37: 0 | K37: ='Форма 4'!I1260 -> 0 | L37: 0 | M37: 0 | N37: 0 | O37: 0 | P37: 0 | Q37: 0 | R37: 0 | S37: 0 | T37: 0 | U37: 0 | V37: 0 | X37: 0 | Y37: 0 | Z37: 0 | AA37: 0 | AB37: 0 | AC37: 0 | AD37: 0 | AE37: 0 | AH37: 0 | AI37: 0 | AJ37: 0 | AK37: 0
A38: ='Форма 4'!A1279 -> 33. | B38: 592.78 | C38: 266.6 | D38: 322.22 | E38: 42.03 | F38: 3.96 | G38: 0 | H38: 0 | I38: ='Форма 4'!I1279 -> 26.24 | J38: 0 | K38: ='Форма 4'!I1280 -> 3.17 | L38: 0 | M38: 0 | N38: 438.2546 | O38: 249.9903 | P38: 378.572 | Q38: 59.6826 | R38: 215.946 | S38: 34.0443 | T38: 0 | U38: 0 | V38: 0 | X38: 0 | Y38: 0 | Z38: 0 | AA38: 0 | AB38: 0 | AC38: 0 | AD38: 0 | AE38: 0 | AH38: 0 | AI38: 0 | AJ38: 0 | AK38: 0
A39: ='Форма 4'!A1298 -> 34. | B39: 14.02 | C39: 5.49 | D39: 8.53 | E39: 1.21 | F39: 0 | G39: 0 | H39: 0 | I39: ='Форма 4'!I1298 -> 0.54 | J39: 0 | K39: ='Форма 4'!I1299 -> 0.1 | L39: 0 | M39: 0 | N39: 9.514 | O39: 5.427 | P39: 7.7958 | Q39: 1.7182 | R39: 4.4469 | S39: 0.9801 | T39: 0 | U39: 0 | V39: 0 | X39: 0 | Y39: 0 | Z39: 0 | AA39: 0 | AB39: 0 | AC39: 0 | AD39: 0 | AE39: 0 | AH39: 0 | AI39: 0 | AJ39: 0 | AK39: 0
A40: ='Форма 4'!A1318 -> 35. | B40: 0 | C40: 0 | D40: 0 | E40: 0 | F40: 0 | G40: 0 | H40: 0 | I40: ='Форма 4'!I1318 -> 0 | J40: 0 | K40: ='Форма 4'!I1319 -> 0 | L40: 0 | M40: 0 | N40: 0 | O40: 0 | P40: 0 | Q40: 0 | R40: 0 | S40: 0 | T40: 0 | U40: 0 | V40: 0 | X40: 0 | Y40: 0 | Z40: 0 | AA40: 0 | AB40: 0 | AC40: 0 | AD40: 0 | AE40: 0 | AH40: 0 | AI40: 0 | AJ40: 0 | AK40: 0
A41: ='Форма 4'!A1338 -> 36. | B41: 304.01 | C41: 118.03 | D41: 73.39 | E41: 0.32 | F41: 112.59 | G41: 0 | H41: 0 | I41: ='Форма 4'!I1338 -> 10.21 | J41: 0 | K41: ='Форма 4'!I1339 -> 0.02 | L41: 0 | M41: 0 | N41: 168.057 | O41: 95.8635 | P41: 167.6026 | Q41: 0.4544 | R41: 95.6043 | S41: 0.2592 | T41: 0 | U41: 0 | V41: 0 | X41: 0 | Y41: 0 | Z41: 0 | AA41: 0 | AB41: 0 | AC41: 0 | AD41: 0 | AE41: 0 | AH41: 0 | AI41: 0 | AJ41: 0 | AK41: 0
A42: ='Форма 4'!A1357 -> 37. | B42: 37.64 | C42: 25.89 | D42: 11.75 | E42: 0 | F42: 0 | G42: 0 | H42: 0 | I42: ='Форма 4'!I1357 -> 2.32 | J42: 0 | K42: ='Форма 4'!I1358 -> 0 | L42: 0 | M42: 0 | N42: 36.7638 | O42: 20.9709 | P42: 36.7638 | Q42: 0 | R42: 20.9709 | S42: 0 | T42: 0 | U42: 0 | V42: 0 | X42: 0 | Y42: 0 | Z42: 0 | AA42: 0 | AB42: 0 | AC42: 0 | AD42: 0 | AE42: 0 | AH42: 0 | AI42: 0 | AJ42: 0 | AK42: 0
A43: ='Форма 4'!A1377 -> 38. | B43: 570.7 | C43: 0 | D43: 0 | E43: 0 | F43: 570.7 | G43: 537.1 | H43: 0 | I43: ='Форма 4'!I1377 -> 0 | J43: 0 | K43: ='Форма 4'!I1378 -> 0 | L43: 1000 | M43: 0 | N43: 0 | O43: 0 | P43: 0 | Q43: 0 | R43: 0 | S43: 0 | T43: 0 | U43: 0 | V43: 0 | X43: 0 | Y43: 0 | Z43: 0 | AA43: 0 | AB43: 0 | AC43: 0 | AD43: 0 | AE43: 0 | AH43: 0 | AI43: 0 | AJ43: 0 | AK43: 0
A44: ='Форма 4'!A1555 -> 39. | B44: 2061.55 | C44: 382 | D44: 0 | E44: 0 | F44: 1679.55 | G44: 0 | H44: 0 | I44: ='Форма 4'!I1555 -> 40 | J44: 0 | K44: ='Форма 4'!I1556 -> 0 | L44: 0 | M44: 0 | N44: 439.3 | O44: 294.14 | P44: 439.3 | Q44: 0 | R44: 294.14 | S44: 0 | T44: 0 | U44: 0 | V44: 0 | X44: 0 | Y44: 0 | Z44: 0 | AA44: 0 | AB44: 0 | AC44: 0 | AD44: 0 | AE44: 0 | AH44: 0 | AI44: 0 | AJ44: 0 | AK44: 0
A45: ='Форма 4'!A1730 -> 40. | B45: 22.21 | C45: 13.6 | D45: 8.61 | E45: 0 | F45: 0 | G45: 0 | H45: 0 | I45: ='Форма 4'!I1730 -> 0.786 | J45: 0 | K45: ='Форма 4'!I1731 -> 0 | L45: 0 | M45: 0 | N45: 17.68 | O45: 10.336 | P45: 17.68 | Q45: 0 | R45: 10.336 | S45: 0 | T45: 0 | U45: 0 | V45: 0 | X45: 0 | Y45: 0 | Z45: 0 | AA45: 0 | AB45: 0 | AC45: 0 | AD45: 0 | AE45: 0 | AH45: 0 | AI45: 0 | AJ45: 0 | AK45: 0
A46: ='Форма 4'!A1749 -> 41. | B46: 36619.72 | C46: 5897.22 | D46: 29076.89 | E46: 2719.39 | F46: 1645.61 | G46: 0 | H46: 0 | I46: ='Форма 4'!I1749 -> 547.56 | J46: 0 | K46: ='Форма 4'!I1750 -> 167.76 | L46: 0 | M46: 0 | N46: 11201.593 | O46: 6203.9592 | P46: 7666.386 | Q46: 3535.207 | R46: 4245.9984 | S46: 1957.9608 | T46: 0 | U46: 0 | V46: 0 | X46: 0 | Y46: 0 | Z46: 0 | AA46: 0 | AB46: 0 | AC46: 0 | AD46: 0 | AE46: 0 | AH46: 0 | AI46: 0 | AJ46: 0 | AK46: 0
A47: ='Форма 4'!A1768 -> 42. | B47: 0 | C47: 0 | D47: 0 | E47: 0 | F47: 0 | G47: 0 | H47: 0 | I47: ='Форма 4'!I1768 -> 0 | J47: 0 | K47: ='Форма 4'!I1769 -> 0 | L47: 0 | M47: 0 | N47: 0 | O47: 0 | P47: 0 | Q47: 0 | R47: 0 | S47: 0 | T47: 0 | U47: 0 | V47: 0 | X47: 0 | Y47: 0 | Z47: 0 | AA47: 0 | AB47: 0 | AC47: 0 | AD47: 0 | AE47: 0 | AH47: 0 | AI47: 0 | AJ47: 0 | AK47: 0
A48: ='Форма 4'!A1788 -> 43. | B48: 1102.16 | C48: 13.6 | D48: 8.61 | E48: 0 | F48: 1079.95 | G48: 0 | H48: 0 | I48: ='Форма 4'!I1788 -> 1.31 | J48: 0 | K48: ='Форма 4'!I1789 -> 0 | L48: 0 | M48: 0 | N48: 17.68 | O48: 10.336 | P48: 17.68 | Q48: 0 | R48: 10.336 | S48: 0 | T48: 0 | U48: 0 | V48: 0 | X48: 0 | Y48: 0 | Z48: 0 | AA48: 0 | AB48: 0 | AC48: 0 | AD48: 0 | AE48: 0 | AH48: 0 | AI48: 0 | AJ48: 0 | AK48: 0

Sheet Базовые цены за единицу
B1: C1 | C1: C2 | D1: C3 | E1: C4 | F1: C5 | G1: C6 | H1: VOZVR | I1: C8 | J1: C9 | K1: C10 | L1: C11 | M1: C12 | N1: NAKL | O1: PLAN | P1: NAKL_ZPR | Q1: NAKL_ZPM | R1: PLAN_ZPR | S1: PLAN_ZPM | T1: RN11 | U1: RN12 | V1: RN13 | X1: OBORUD_VSPOMOG | Y1: NAKL_PN | Z1: NAKL_VX | AA1: PLAN_PN | AB1: PLAN_VX | AC1: VTCH_PN | AD1: VTCH_VX | AE1: MR_BY_ZPR_VSPOMOG | AF1: NAKL_INC | AG1: PLAN_INC | AH1: RN14 | AI1: RN15 | AJ1: RN16 | AK1: OBORUD
B3: N = < 9 * 13 * 64 >
B4: Кирова,97 .Собственники
B7: Раздел 1. Валка деревьев
A9: ='Форма 4'!A27 -> 1. | B9: =ROUND(C9+D9+F9+AF9+AG9,2) -> 43.86 | C9: 29.91 | D9: 13.95 | E9: 0 | F9: 0 | G9: 0 | H9: 0 | I9: ='Форма 4'!I27 -> 2.97 | J9: 0 | K9: ='Форма 4'!I28 -> 0 | L9: 0 | M9: 0 | N9: 31.1064 | O9: 17.946 | P9: 31.1064 | Q9: 0 | R9: 17.946 | S9: 0 | T9: 0 | U9: 0 | V9: 0 | X9: 0 | Y9: 0 | Z9: 0 | AA9: 0 | AB9: 0 | AC9: 0 | AD9: 0 | AE9: 0 | AH9: 0 | AI9: 0 | AJ9: 0 | AK9: 0
A10: ='Форма 4'!A45 -> 2. | B10: 90.13 | C10: 61.53 | D10: 28.6 | E10: 0 | F10: 0 | G10: 0 | H10: 0 | I10: ='Форма 4'!I45 -> 6.11 | J10: 0 | K10: ='Форма 4'!I46 -> 0 | L10: 0 | M10: 0 | N10: 63.9912 | O10: 36.918 | P10: 63.9912 | Q10: 0 | R10: 36.918 | S10: 0 | T10: 0 | U10: 0 | V10: 0 | X10: 0 | Y10: 0 | Z10: 0 | AA10: 0 | AB10: 0 | AC10: 0 | AD10: 0 | AE10: 0 | AH10: 0 | AI10: 0 | AJ10: 0 | AK10: 0
A11: ='Форма 4'!A63 -> 3. | B11: 670.64 | C11: 0 | D11: 670.64 | E11: 71.62 | F11: 0 | G11: 0 | H11: 0 | I11: ='Форма 4'!I63 -> 0 | J11: 0 | K11: ='Форма 4'!I64 -> 4.14 | L11: 0 | M11: 0 | N11: 57.296 | O11: 27.2156 | P11: 0 | Q11: 57.296 | R11: 0 | S11: 27.2156 | T11: 0 | U11: 0 | V11: 0 | X11: 0 | Y11: 0 | Z11: 0 | AA11: 0 | AB11: 0 | AC11: 0 | AD11: 0 | AE11: 0 | AH11: 0 | AI11: 0 | AJ11: 0 | AK11: 0
A12: ='Форма 4'!A81 -> 4. | B12: 1086.95 | C12: 0 | D12: 1086.95 | E12: 116.08 | F12: 0 | G12: 0 | H12: 0 | I12: ='Форма 4'!I81 -> 0 | J12: 0 | K12: ='Форма 4'!I82 -> 6.71 | L12: 0 | M12: 0 | N12: 92.864 | O12: 44.1104 | P12: 0 | Q12: 92.864 | R12: 0 | S12: 44.1104 | T12: 0 | U12: 0 | V12: 0 | X12: 0 | Y12: 0 | Z12: 0 | AA12: 0 | AB12: 0 | AC12: 0 | AD12: 0 | AE12: 0 | AH12: 0 | AI12: 0 | AJ12: 0 | AK12: 0
A13: ='Форма 4'!A99 -> 5. | B13: 295.4 | C13: 0 | D13: 295.4 | E13: 37.77 | F13: 0 | G13: 0 | H13: 0 | I13: ='Форма 4'!I99 -> 0 | J13: 0 | K13: ='Форма 4'!I100 -> 2.33 | L13: 0 | M13: 0 | N13: 30.216 | O13: 14.3526 | P13: 0 | Q13: 30.216 | R13: 0 | S13: 14.3526 | T13: 0 | U13: 0 | V13: 0 | X13: 0 | Y13: 0 | Z13: 0 | AA13: 0 | AB13: 0 | AC13: 0 | AD13: 0 | AE13: 0 | AH13: 0 | AI13: 0 | AJ13: 0 | AK13: 0
A14: ='Форма 4'!A117 -> 6. | B14: 64.76 | C14: 0 | D14: 0 | E14: 0 | F14: 64.76 | G14: 64.76 | H14: 0 | I14: ='Форма 4'!I117 -> 0 | J14: 0 | K14: ='Форма 4'!I118 -> 0 | L14: 0 | M14: 0 | N14: 0 | O14: 0 | P14: 0 | Q14: 0 | R14: 0 | S14: 0 | T14: 0 | U14: 0 | V14: 0 | X14: 0 | Y14: 0 | Z14: 0 | AA14: 0 | AB14: 0 | AC14: 0 | AD14: 0 | AE14: 0 | AH14: 0 | AI14: 0 | AJ14: 0 | AK14: 0
A15: ='Форма 4'!A136 -> 7. | B15: 18.98 | C15: 2.71 | D15: 9.73 | E15: 1.38 | F15: 0 | G15: 0 | H15: 0 | I15: ='Форма 4'!I136 -> 0.289 | J15: 0 | K15: ='Форма 4'!I137 -> 0.114 | L15: 0 | M15: 0 | P15: 2.71 | Q15: 1.38 | R15: 1.63 | S15: 0.83 | T15: 0 | U15: 0 | V15: 0 | X15: 0 | Y15: 0 | Z15: 0 | AA15: 0 | AB15: 0 | AC15: 0 | AD15: 0 | AE15: 0 | AF15: 4.09 | AG15: 2.45 | AH15: 0 | AI15: 0 | AJ15: 0 | AK15: 0
A16: ='Форма 4'!A155 -> 8. | B16: 15.36 | C16: 0 | D16: 15.36 | E16: 0 | F16: 0 | G16: 0 | H16: 0 | I16: ='Форма 4'!I155 -> 0 | J16: 0 | K16: ='Форма 4'!I156 -> 0 | L16: 0 | M16: 0 | P16: 0 | Q16: 0 | R16: 0 | S16: 0 | T16: 0 | U16: 0 | V16: 0 | X16: 0 | Y16: 0 | Z16: 0 | AA16: 0 | AB16: 0 | AC16: 0 | AD16: 0 | AE16: 0 | AH16: 0 | AI16: 0 | AJ16: 0 | AK16: 0
B18: Раздел 2. Разборка бортовых камней и а/бетонного покрытия
A20: ='Форма 4'!A334 -> 9. | B20: =ROUND(C20+D20+F20+AF20+AG20,2) -> 1008.65 | C20: 525.77 | D20: 482.88 | E20: 77.31 | F20: 0 | G20: 0 | H20: 0 | I20: ='Форма 4'!I334 -> 52.63 | J20: 0 | K20: ='Форма 4'!I335 -> 6.4 | L20: 0 | M20: 0 | N20: 627.2032 | O20: 361.848 | P20: 546.8008 | Q20: 80.4024 | R20: 315.462 | S20: 46.386 | T20: 0 | U20: 0 | V20: 0 | X20: 0 | Y20: 0 | Z20: 0 | AA20: 0 | AB20: 0 | AC20: 0 | AD20: 0 | AE20: 0 | AH20: 0 | AI20: 0 | AJ20: 0 | AK20: 0
A21: ='Форма 4'!A352 -> 10. | B21: =ROUND(C21+D21+F21+AF21+AG21,2) -> 18.98 | C21: 2.71 | D21: 9.73 | E21: 1.38 | F21: 0 | G21: 0 | H21: 0 | I21: ='Форма 4'!I352 -> 0.289 | J21: 0 | K21: ='Форма 4'!I353 -> 0.114 | L21: 0 | M21: 0 | P21: 2.71 | Q21: 1.38 | R21: 1.63 | S21: 0.83 | T21: 0 | U21: 0 | V21: 0 | X21: 0 | Y21: 0 | Z21: 0 | AA21: 0 | AB21: 0 | AC21: 0 | AD21: 0 | AE21: 0 | AF21: 4.09 | AG21: 2.45 | AH21: 0 | AI21: 0 | AJ21: 0 | AK21: 0
A22: ='Форма 4'!A371 -> 11. | B22: =ROUND(C22+D22+F22+AF22+AG22,2) -> 15.36 | C22: 0 | D22: 15.36 | E22: 0 | F22: 0 | G22: 0 | H22: 0 | I22: ='Форма 4'!I371 -> 0 | J22: 0 | K22: ='Форма 4'!I372 -> 0 | L22: 0 | M22: 0 | P22: 0 | Q22: 0 | R22: 0 | S22: 0 | T22: 0 | U22: 0 | V22: 0 | X22: 0 | Y22: 0 | Z22: 0 | AA22: 0 | AB22: 0 | AC22: 0 | AD22: 0 | AE22: 0 | AH22: 0 | AI22: 0 | AJ22: 0 | AK22: 0
B24: Раздел 3. Устройство новой дорожной одежды на уширениях и парковках
A26: ='Форма 4'!A550 -> 12. | B26: =ROUND(C26+D26+F26+AF26+AG26,2) -> 949.58 | C26: 0 | D26: 949.58 | E26: 121.41 | F26: 0 | G26: 0 | H26: 0 | I26: ='Форма 4'!I550 -> 0 | J26: 0 | K26: ='Форма 4'!I551 -> 7.49 | L26: 0 | M26: 0 | N26: 115.3395 | O26: 52.2063 | P26: 0 | Q26: 115.3395 | R26: 0 | S26: 52.2063 | T26: 0 | U26: 0 | V26: 0 | X26: 0 | Y26: 0 | Z26: 0 | AA26: 0 | AB26: 0 | AC26: 0 | AD26: 0 | AE26: 0 | AH26: 0 | AI26: 0 | AJ26: 0 | AK26: 0
A27: ='Форма 4'!A569 -> 13. | B27: 18.98 | C27: 2.71 | D27: 9.73 | E27: 1.38 | F27: 0 | G27: 0 | H27: 0 | I27: ='Форма 4'!I569 -> 0.289 | J27: 0 | K27: ='Форма 4'!I570 -> 0.114 | L27: 0 | M27: 0 | P27: 2.71 | Q27: 1.38 | R27: 1.63 | S27: 0.83 | T27: 0 | U27: 0 | V27: 0 | X27: 0 | Y27: 0 | Z27: 0 | AA27: 0 | AB27: 0 | AC27: 0 | AD27: 0 | AE27: 0 | AF27: 4.09 | AG27: 2.45 | AH27: 0 | AI27: 0 | AJ27: 0 | AK27: 0
A28: ='Форма 4'!A588 -> 14. | B28: 15.36 | C28: 0 | D28: 15.36 | E28: 0 | F28: 0 | G28: 0 | H28: 0 | I28: ='Форма 4'!I588 -> 0 | J28: 0 | K28: ='Форма 4'!I589 -> 0 | L28: 0 | M28: 0 | P28: 0 | Q28: 0 | R28: 0 | S28: 0 | T28: 0 | U28: 0 | V28: 0 | X28: 0 | Y28: 0 | Z28: 0 | AA28: 0 | AB28: 0 | AC28: 0 | AD28: 0 | AE28: 0 | AH28: 0 | AI28: 0 | AJ28: 0 | AK28: 0
A29: ='Форма 4'!A607 -> 15. | B29: 4617.09 | C29: 121.95 | D29: 4465.64 | E29: 478.22 | F29: 29.5 | G29: 0 | H29: 0 | I29: ='Форма 4'!I607 -> 12.77 | J29: 0 | K29: ='Форма 4'!I608 -> 29.74 | L29: 0 | M29: 0 | N29: 852.2414 | O29: 486.1377 | P29: 173.169 | Q29: 679.0724 | R29: 98.7795 | S29: 387.3582 | T29: 0 | U29: 0 | V29: 0 | X29: 0 | Y29: 0 | Z29: 0 | AA29: 0 | AB29: 0 | AC29: 0 | AD29: 0 | AE29: 0 | AH29: 0 | AI29: 0 | AJ29: 0 | AK29: 0
A30: ='Форма 4'!A626 -> 16. | B30: 64.76 | C30: 0 | D30: 0 | E30: 0 | F30: 64.76 | G30: 64.76 | H30: 0 | I30: ='Форма 4'!I626 -> 0 | J30: 0 | K30: ='Форма 4'!I627 -> 0 | L30: 0 | M30: 0 | N30: 0 | O30: 0 | P30: 0 | Q30: 0 | R30: 0 | S30: 0 | T30: 0 | U30: 0 | V30: 0 | X30: 0 | Y30: 0 | Z30: 0 | AA30: 0 | AB30: 0 | AC30: 0 | AD30: 0 | AE30: 0 | AH30: 0 | AI30: 0 | AJ30: 0 | AK30: 0
A31: ='Форма 4'!A646 -> 17. | B31: 66.94 | C31: 0 | D31: 0 | E31: 0 | F31: 66.94 | G31: 66.94 | H31: 0 | I31: ='Форма 4'!I646 -> 0 | J31: 0 | K31: ='Форма 4'!I647 -> 0 | L31: 0 | M31: 0 | N31: 0 | O31: 0 | P31: 0 | Q31: 0 | R31: 0 | S31: 0 | T31: 0 | U31: 0 | V31: 0 | X31: 0 | Y31: 0 | Z31: 0 | AA31: 0 | AB31: 0 | AC31: 0 | AD31: 0 | AE31: 0 | AH31: 0 | AI31: 0 | AJ31: 0 | AK31: 0
A32: ='Форма 4'!A666 -> 18. | B32: 4617.09 | C32: 121.95 | D32: 4465.64 | E32: 478.22 | F32: 29.5 | G32: 0 | H32: 0 | I32: ='Форма 4'!I666 -> 12.77 | J32: 0 | K32: ='Форма 4'!I667 -> 29.74 | L32: 0 | M32: 0 | N32: 852.2414 | O32: 486.1377 | P32: 173.169 | Q32: 679.0724 | R32: 98.7795 | S32: 387.3582 | T32: 0 | U32: 0 | V32: 0 | X32: 0 | Y32: 0 | Z32: 0 | AA32: 0 | AB32: 0 | AC32: 0 | AD32: 0 | AE32: 0 | AH32: 0 | AI32: 0 | AJ32: 0 | AK32: 0
A33: ='Форма 4'!A685 -> 19. | B33: 64.76 | C33: 0 | D33: 0 | E33: 0 | F33: 64.76 | G33: 64.76 | H33: 0 | I33: ='Форма 4'!I685 -> 0 | J33: 0 | K33: ='Форма 4'!I686 -> 0 | L33: 0 | M33: 0 | N33: 0 | O33: 0 | P33: 0 | Q33: 0 | R33: 0 | S33: 0 | T33: 0 | U33: 0 | V33: 0 | X33: 0 | Y33: 0 | Z33: 0 | AA33: 0 | AB33: 0 | AC33: 0 | AD33: 0 | AE33: 0 | AH33: 0 | AI33: 0 | AJ33: 0 | AK33: 0
A34: ='Форма 4'!A705 -> 20. | B34: 3259.67 | C34: 442.75 | D34: 2761.87 | E34: 314.9 | F34: 55.05 | G34: 0 | H34: 0 | I34: ='Форма 4'!I705 -> 38.3 | J34: 0 | K34: ='Форма 4'!I706 -> 19.05 | L34: 0 | M34: 0 | N34: 1075.863 | O34: 613.6965 | P34: 628.705 | Q34: 447.158 | R34: 358.6275 | S34: 255.069 | T34: 0 | U34: 0 | V34: 0 | X34: 0 | Y34: 0 | Z34: 0 | AA34: 0 | AB34: 0 | AC34: 0 | AD34: 0 | AE34: 0 | AH34: 0 | AI34: 0 | AJ34: 0 | AK34: 0
A35: ='Форма 4'!A723 -> 21. | B35: 518.6 | C35: 0 | D35: 0 | E35: 0 | F35: 518.6 | G35: 486.02 | H35: 0 | I35: ='Форма 4'!I723 -> 0 | J35: 0 | K35: ='Форма 4'!I724 -> 0 | L35: 1000 | M35: 0 | N35: 0 | O35: 0 | P35: 0 | Q35: 0 | R35: 0 | S35: 0 | T35: 0 | U35: 0 | V35: 0 | X35: 0 | Y35: 0 | Z35: 0 | AA35: 0 | AB35: 0 | AC35: 0 | AD35: 0 | AE35: 0 | AH35: 0 | AI35: 0 | AJ35: 0 | AK35: 0
A36: ='Форма 4'!A742 -> 22. | B36: 3437.9 | C36: 442.75 | D36: 2769.94 | E36: 315.39 | F36: 225.21 | G36: 0 | H36: 0 | I36: ='Форма 4'!I742 -> 38.3 | J36: 0 | K36: ='Форма 4'!I743 -> 19.08 | L36: 0 | M36: 0 | N36: 1076.5588 | O36: 614.0934 | P36: 628.705 | Q36: 447.8538 | R36: 358.6275 | S36: 255.4659 | T36: 0 | U36: 0 | V36: 0 | X36: 0 | Y36: 0 | Z36: 0 | AA36: 0 | AB36: 0 | AC36: 0 | AD36: 0 | AE36: 0 | AH36: 0 | AI36: 0 | AJ36: 0 | AK36: 0
A37: ='Форма 4'!A760 -> 23. | B37: 7.39 | C37: 1.04 | D37: 3.72 | E37: 0 | F37: 2.63 | G37: 0 | H37: 0 | I37: ='Форма 4'!I760 -> 0.09 | J37: 0 | K37: ='Форма 4'!I761 -> 0 | L37: 0 | M37: 0 | N37: 1.4768 | O37: 0.8424 | P37: 1.4768 | Q37: 0 | R37: 0.8424 | S37: 0 | T37: 0 | U37: 0 | V37: 0 | X37: 0 | Y37: 0 | Z37: 0 | AA37: 0 | AB37: 0 | AC37: 0 | AD37: 0 | AE37: 0 | AH37: 0 | AI37: 0 | AJ37: 0 | AK37: 0
A38: ='Форма 4'!A779 -> 24. | B38: 570.7 | C38: 0 | D38: 0 | E38: 0 | F38: 570.7 | G38: 537.1 | H38: 0 | I38: ='Форма 4'!I779 -> 0 | J38: 0 | K38: ='Форма 4'!I780 -> 0 | L38: 1000 | M38: 0 | N38: 0 | O38: 0 | P38: 0 | Q38: 0 | R38: 0 | S38: 0 | T38: 0 | U38: 0 | V38: 0 | X38: 0 | Y38: 0 | Z38: 0 | AA38: 0 | AB38: 0 | AC38: 0 | AD38: 0 | AE38: 0 | AH38: 0 | AI38: 0 | AJ38: 0 | AK38: 0
B40: Раздел 4. Установка бортовых камней
A42: ='Форма 4'!A959 -> 25. | B42: =ROUND(C42+D42+F42+AF42+AG42,2) -> 4424.18 | C42: 772.97 | D42: 104.2 | E42: 11.02 | F42: 3547.01 | G42: 0 | H42: 0 | I42: ='Форма 4'!I959 -> 76.08 | J42: 0 | K42: ='Форма 4'!I960 -> 0.68 | L42: 0 | M42: 0 | N42: 1113.2658 | O42: 635.0319 | P42: 1097.6174 | Q42: 15.6484 | R42: 626.1057 | S42: 8.9262 | T42: 0 | U42: 0 | V42: 0 | X42: 0 | Y42: 0 | Z42: 0 | AA42: 0 | AB42: 0 | AC42: 0 | AD42: 0 | AE42: 0 | AH42: 0 | AI42: 0 | AJ42: 0 | AK42: 0
A43: ='Форма 4'!A979 -> 26. | B43: =ROUND(C43+D43+F43+AF43+AG43,2) -> 64895.61 | C43: 1686.6 | D43: 2609.79 | E43: 291.78 | F43: 60599.22 | G43: 53507.16 | H43: 0 | I43: ='Форма 4'!I979 -> 180 | J43: 0 | K43: ='Форма 4'!I980 -> 18 | L43: 0 | M43: 0 | N43: 2077.299 | O43: 1088.109 | P43: 1770.93 | Q43: 306.369 | R43: 927.63 | S43: 160.479 | T43: 0 | U43: 0 | V43: 0 | X43: 0 | Y43: 0 | Z43: 0 | AA43: 0 | AB43: 0 | AC43: 0 | AD43: 0 | AE43: 0 | AH43: 0 | AI43: 0 | AJ43: 0 | AK43: 0
A44: ='Форма 4'!A1000 -> 27. | B44: =ROUND(C44+D44+F44+AF44+AG44,2) -> 1568.2 | C44: 0 | D44: 0 | E44: 0 | F44: 1568.2 | G44: 1568.2 | H44: 0 | I44: ='Форма 4'!I1000 -> 0 | J44: 0 | K44: ='Форма 4'!I1001 -> 0 | L44: 0 | M44: 0 | N44: 0 | O44: 0 | P44: 0 | Q44: 0 | R44: 0 | S44: 0 | T44: 0 | U44: 0 | V44: 0 | X44: 0 | Y44: 0 | Z44: 0 | AA44: 0 | AB44: 0 | AC44: 0 | AD44: 0 | AE44: 0 | AH44: 0 | AI44: 0 | AJ44: 0 | AK44: 0
A45: ='Форма 4'!A1020 -> 28. | B45: =ROUND(C45+D45+F45+AF45+AG45,2) -> 1814.02 | C45: 0 | D45: 0 | E45: 0 | F45: 1814.02 | G45: 1814.02 | H45: 0 | I45: ='Форма 4'!I1020 -> 0 | J45: 0 | K45: ='Форма 4'!I1021 -> 0 | L45: 0 | M45: 0 | N45: 0 | O45: 0 | P45: 0 | Q45: 0 | R45: 0 | S45: 0 | T45: 0 | U45: 0 | V45: 0 | X45: 0 | Y45: 0 | Z45: 0 | AA45: 0 | AB45: 0 | AC45: 0 | AD45: 0 | AE45: 0 | AH45: 0 | AI45: 0 | AJ45: 0 | AK45: 0
A46: ='Форма 4'!A1040 -> 29. | B46: =ROUND(C46+D46+F46+AF46+AG46,2) -> 1877.16 | C46: 0 | D46: 0 | E46: 0 | F46: 1877.16 | G46: 1877.16 | H46: 0 | I46: ='Форма 4'!I1040 -> 0 | J46: 0 | K46: ='Форма 4'!I1041 -> 0 | L46: 0 | M46: 0 | N46: 0 | O46: 0 | P46: 0 | Q46: 0 | R46: 0 | S46: 0 | T46: 0 | U46: 0 | V46: 0 | X46: 0 | Y46: 0 | Z46: 0 | AA46: 0 | AB46: 0 | AC46: 0 | AD46: 0 | AE46: 0 | AH46: 0 | AI46: 0 | AJ46: 0 | AK46: 0
B48: Раздел 5. Устройство тротуаров
A50: ='Форма 4'!A1219 -> 30. | B50: =ROUND(C50+D50+F50+AF50+AG50,2) -> 592.78 | C50: 266.6 | D50: 322.22 | E50: 42.03 | F50: 3.96 | G50: 0 | H50: 0 | I50: ='Форма 4'!I1219 -> 26.24 | J50: 0 | K50: ='Форма 4'!I1220 -> 3.17 | L50: 0 | M50: 0 | N50: 438.2546 | O50: 249.9903 | P50: 378.572 | Q50: 59.6826 | R50: 215.946 | S50: 34.0443 | T50: 0 | U50: 0 | V50: 0 | X50: 0 | Y50: 0 | Z50: 0 | AA50: 0 | AB50: 0 | AC50: 0 | AD50: 0 | AE50: 0 | AH50: 0 | AI50: 0 | AJ50: 0 | AK50: 0
A51: ='Форма 4'!A1239 -> 31. | B51: 14.02 | C51: 5.49 | D51: 8.53 | E51: 1.21 | F51: 0 | G51: 0 | H51: 0 | I51: ='Форма 4'!I1239 -> 0.54 | J51: 0 | K51: ='Форма 4'!I1240 -> 0.1 | L51: 0 | M51: 0 | N51: 9.514 | O51: 5.427 | P51: 7.7958 | Q51: 1.7182 | R51: 4.4469 | S51: 0.9801 | T51: 0 | U51: 0 | V51: 0 | X51: 0 | Y51: 0 | Z51: 0 | AA51: 0 | AB51: 0 | AC51: 0 | AD51: 0 | AE51: 0 | AH51: 0 | AI51: 0 | AJ51: 0 | AK51: 0
A52: ='Форма 4'!A1259 -> 32. | B52: 66.94 | C52: 0 | D52: 0 | E52: 0 | F52: 66.94 | G52: 66.94 | H52: 0 | I52: ='Форма 4'!I1259 -> 0 | J52: 0 | K52: ='Форма 4'!I1260 -> 0 | L52: 0 | M52: 0 | N52: 0 | O52: 0 | P52: 0 | Q52: 0 | R52: 0 | S52: 0 | T52: 0 | U52: 0 | V52: 0 | X52: 0 | Y52: 0 | Z52: 0 | AA52: 0 | AB52: 0 | AC52: 0 | AD52: 0 | AE52: 0 | AH52: 0 | AI52: 0 | AJ52: 0 | AK52: 0
A53: ='Форма 4'!A1279 -> 33. | B53: 592.78 | C53: 266.6 | D53: 322.22 | E53: 42.03 | F53: 3.96 | G53: 0 | H53: 0 | I53: ='Форма 4'!I1279 -> 26.24 | J53: 0 | K53: ='Форма 4'!I1280 -> 3.17 | L53: 0 | M53: 0 | N53: 438.2546 | O53: 249.9903 | P53: 378.572 | Q53: 59.6826 | R53: 215.946 | S53: 34.0443 | T53: 0 | U53: 0 | V53: 0 | X53: 0 | Y53: 0 | Z53: 0 | AA53: 0 | AB53: 0 | AC53: 0 | AD53: 0 | AE53: 0 | AH53: 0 | AI53: 0 | AJ53: 0 | AK53: 0
A54: ='Форма 4'!A1298 -> 34. | B54: 14.02 | C54: 5.49 | D54: 8.53 | E54: 1.21 | F54: 0 | G54: 0 | H54: 0 | I54: ='Форма 4'!I1298 -> 0.54 | J54: 0 | K54: ='Форма 4'!I1299 -> 0.1 | L54: 0 | M54: 0 | N54: 9.514 | O54: 5.427 | P54: 7.7958 | Q54: 1.7182 | R54: 4.4469 | S54: 0.9801 | T54: 0 | U54: 0 | V54: 0 | X54: 0 | Y54: 0 | Z54: 0 | AA54: 0 | AB54: 0 | AC54: 0 | AD54: 0 | AE54: 0 | AH54: 0 | AI54: 0 | AJ54: 0 | AK54: 0
A55: ='Форма 4'!A1318 -> 35. | B55: 66.94 | C55: 0 | D55: 0 | E55: 0 | F55: 66.94 | G55: 66.94 | H55: 0 | I55: ='Форма 4'!I1318 -> 0 | J55: 0 | K55: ='Форма 4'!I1319 -> 0 | L55: 0 | M55: 0 | N55: 0 | O55: 0 | P55: 0 | Q55: 0 | R55: 0 | S55: 0 | T55: 0 | U55: 0 | V55: 0 | X55: 0 | Y55: 0 | Z55: 0 | AA55: 0 | AB55: 0 | AC55: 0 | AD55: 0 | AE55: 0 | AH55: 0 | AI55: 0 | AJ55: 0 | AK55: 0
A56: ='Форма 4'!A1338 -> 36. | B56: 304.01 | C56: 118.03 | D56: 73.39 | E56: 0.32 | F56: 112.59 | G56: 0 | H56: 0 | I56: ='Форма 4'!I1338 -> 10.21 | J56: 0 | K56: ='Форма 4'!I1339 -> 0.02 | L56: 0 | M56: 0 | N56: 168.057 | O56: 95.8635 | P56: 167.6026 | Q56: 0.4544 | R56: 95.6043 | S56: 0.2592 | T56: 0 | U56: 0 | V56: 0 | X56: 0 | Y56: 0 | Z56: 0 | AA56: 0 | AB56: 0 | AC56: 0 | AD56: 0 | AE56: 0 | AH56: 0 | AI56: 0 | AJ56: 0 | AK56: 0
A57: ='Форма 4'!A1357 -> 37. | B57: 37.64 | C57: 25.89 | D57: 11.75 | E57: 0 | F57: 0 | G57: 0 | H57: 0 | I57: ='Форма 4'!I1357 -> 2.32 | J57: 0 | K57: ='Форма 4'!I1358 -> 0 | L57: 0 | M57: 0 | N57: 36.7638 | O57: 20.9709 | P57: 36.7638 | Q57: 0 | R57: 20.9709 | S57: 0 | T57: 0 | U57: 0 | V57: 0 | X57: 0 | Y57: 0 | Z57: 0 | AA57: 0 | AB57: 0 | AC57: 0 | AD57: 0 | AE57: 0 | AH57: 0 | AI57: 0 | AJ57: 0 | AK57: 0
A58: ='Форма 4'!A1377 -> 38. | B58: 570.7 | C58: 0 | D58: 0 | E58: 0 | F58: 570.7 | G58: 537.1 | H58: 0 | I58: ='Форма 4'!I1377 -> 0 | J58: 0 | K58: ='Форма 4'!I1378 -> 0 | L58: 1000 | M58: 0 | N58: 0 | O58: 0 | P58: 0 | Q58: 0 | R58: 0 | S58: 0 | T58: 0 | U58: 0 | V58: 0 | X58: 0 | Y58: 0 | Z58: 0 | AA58: 0 | AB58: 0 | AC58: 0 | AD58: 0 | AE58: 0 | AH58: 0 | AI58: 0 | AJ58: 0 | AK58: 0
B60: Раздел 6. Восстановление газонов
A62: ='Форма 4'!A1555 -> 39. | B62: =ROUND(C62+D62+F62+AF62+AG62,2) -> 2061.55 | C62: 382 | D62: 0 | E62: 0 | F62: 1679.55 | G62: 0 | H62: 0 | I62: ='Форма 4'!I1555 -> 40 | J62: 0 | K62: ='Форма 4'!I1556 -> 0 | L62: 0 | M62: 0 | N62: 439.3 | O62: 294.14 | P62: 439.3 | Q62: 0 | R62: 294.14 | S62: 0 | T62: 0 | U62: 0 | V62: 0 | X62: 0 | Y62: 0 | Z62: 0 | AA62: 0 | AB62: 0 | AC62: 0 | AD62: 0 | AE62: 0 | AH62: 0 | AI62: 0 | AJ62: 0 | AK62: 0
B64: Раздел 7. Наращивание колодцев
A66: ='Форма 4'!A1730 -> 40. | B66: =ROUND(C66+D66+F66+AF66+AG66,2) -> 13.33 | C66: 8.16 | D66: 5.17 | E66: 0 | F66: 0 | G66: 0 | H66: 0 | I66: ='Форма 4'!I1730 -> 0.786 | J66: 0 | K66: ='Форма 4'!I1731 -> 0 | L66: 0 | M66: 0 | N66: 10.608 | O66: 6.2016 | P66: 10.608 | Q66: 0 | R66: 6.2016 | S66: 0 | T66: 0 | U66: 0 | V66: 0 | X66: 0 | Y66: 0 | Z66: 0 | AA66: 0 | AB66: 0 | AC66: 0 | AD66: 0 | AE66: 0 | AH66: 0 | AI66: 0 | AJ66: 0 | AK66: 0
A67: ='Форма 4'!A1749 -> 41. | B67: =ROUND(C67+D67+F67+AF67+AG67,2) -> 36619.72 | C67: 5897.22 | D67: 29076.89 | E67: 2719.39 | F67: 1645.61 | G67: 0 | H67: 0 | I67: ='Форма 4'!I1749 -> 547.56 | J67: 0 | K67: ='Форма 4'!I1750 -> 167.76 | L67: 0 | M67: 0 | N67: 11201.593 | O67: 6203.9592 | P67: 7666.386 | Q67: 3535.207 | R67: 4245.9984 | S67: 1957.9608 | T67: 0 | U67: 0 | V67: 0 | X67: 0 | Y67: 0 | Z67: 0 | AA67: 0 | AB67: 0 | AC67: 0 | AD67: 0 | AE67: 0 | AH67: 0 | AI67: 0 | AJ67: 0 | AK67: 0
A68: ='Форма 4'!A1768 -> 42. | B68: =ROUND(C68+D68+F68+AF68+AG68,2) -> 2114.83 | C68: 0 | D68: 0 | E68: 0 | F68: 2114.83 | G68: 2114.83 | H68: 0 | I68: ='Форма 4'!I1768 -> 0 | J68: 0 | K68: ='Форма 4'!I1769 -> 0 | L68: 0 | M68: 0 | N68: 0 | O68: 0 | P68: 0 | Q68: 0 | R68: 0 | S68: 0 | T68: 0 | U68: 0 | V68: 0 | X68: 0 | Y68: 0 | Z68: 0 | AA68: 0 | AB68: 0 | AC68: 0 | AD68: 0 | AE68: 0 | AH68: 0 | AI68: 0 | AJ68: 0 | AK68: 0
A69: ='Форма 4'!A1788 -> 43. | B69: =ROUND(C69+D69+F69+AF69+AG69,2) -> 1102.16 | C69: 13.6 | D69: 8.61 | E69: 0 | F69: 1079.95 | G69: 0 | H69: 0 | I69: ='Форма 4'!I1788 -> 1.31 | J69: 0 | K69: ='Форма 4'!I1789 -> 0 | L69: 0 | M69: 0 | N69: 17.68 | O69: 10.336 | P69: 17.68 | Q69: 0 | R69: 10.336 | S69: 0 | T69: 0 | U69: 0 | V69: 0 | X69: 0 | Y69: 0 | Z69: 0 | AA69: 0 | AB69: 0 | AC69: 0 | AD69: 0 | AE69: 0 | AH69: 0 | AI69: 0 | AJ69: 0 | AK69: 0

Sheet Базовые цены с учетом расхода
B1: C1 | C1: C2 | D1: C3 | E1: C4 | F1: C5 | G1: C6 | H1: VOZVR | I1: C8 | J1: C9 | K1: C10 | L1: C11 | M1: C12 | N1: NAKL | O1: PLAN | P1: NAKL_ZPR | Q1: NAKL_ZPM | R1: PLAN_ZPR | S1: PLAN_ZPM | T1: RN11 | U1: RN12 | V1: RN13 | X1: OBORUD_VSPOMOG | Y1: NAKL_PN | Z1: NAKL_VX | AA1: PLAN_PN | AB1: PLAN_VX | AC1: VTCH_PN | AD1: VTCH_VX | AE1: MR_BY_ZPR_VSPOMOG | AF1: NAKL_INC | AG1: PLAN_INC | AH1: RN14 | AI1: RN15 | AJ1: RN16 | AK1: OBORUD
B3: N = < 9 * 13 * 64 >
B4: Кирова,97 .Собственники
B7: Раздел 1. Валка деревьев
A9: ='Форма 4'!A27 -> 1. | B9: =ROUND(C9+D9+F9+AF9+AG9,0) -> 47 | C9: =ROUND('Форма 4'!C27*'Базовые цены за единицу'!C9,0) -> 32 | D9: =ROUND('Форма 4'!C27*'Базовые цены за единицу'!D9,0) -> 15 | E9: =ROUND('Форма 4'!C27*'Базовые цены за единицу'!E9,0) -> 0 | F9: =ROUND('Форма 4'!C27*'Базовые цены за единицу'!F9,0) -> 0 | G9: =ROUND('Форма 4'!C27*'Базовые цены за единицу'!G9,0) -> 0 | H9: =ROUND('Форма 4'!C27*'Базовые цены за единицу'!H9,0) -> 0 | I9: =ОКРУГЛВСЕ('Форма 4'!C27*'Базовые цены за единицу'!I9,8) -> 3.2076 | J9: =ОКРУГЛВСЕ('Форма 4'!C27*'Базовые цены за единицу'!J9,8) -> 0 | K9: =ОКРУГЛВСЕ('Форма 4'!C27*'Базовые цены за единицу'!K9,8) -> 0 | L9: =ROUND('Форма 4'!C27*'Базовые цены за единицу'!L9,0) -> 0 | M9: =ROUND('Форма 4'!C27*'Базовые цены за единицу'!M9,0) -> 0 | N9: =ROUND((C9+E9)*'Форма 4'!C38/100,0) -> 33 | O9: =ROUND((C9+E9)*'Форма 4'!C41/100,0) -> 19 | P9: =ROUND('Форма 4'!C27*'Базовые цены за единицу'!P9,0) -> 34 | Q9: =ROUND('Форма 4'!C27*'Базовые цены за единицу'!Q9,0) -> 0 | R9: =ROUND('Форма 4'!C27*'Базовые цены за единицу'!R9,0) -> 19 | S9: =ROUND('Форма 4'!C27*'Базовые цены за единицу'!S9,0) -> 0 | T9: =ROUND('Форма 4'!C27*'Базовые цены за единицу'!T9,0) -> 0 | U9: =ROUND('Форма 4'!C27*'Базовые цены за единицу'!U9,0) -> 0 | V9: =ROUND('Форма 4'!C27*'Базовые цены за единицу'!V9,0) -> 0 | X9: =ROUND('Форма 4'!C27*'Базовые цены за единицу'!X9,0) -> 0 | Y9: =IF(Определители!I9="9",ROUND((C9+E9)*(Начисления!M9/100)*('Форма 4'!C38/100),0),0) -> 0 | Z9: =IF(Определители!I9="9",ROUND((C9+E9)*(100-Начисления!M9/100)*('Форма 4'!C38/100),0),0) -> 0 | AA9: =IF(Определители!I9="9",ROUND((C9+E9)*(Начисления!M9/100)*('Форма 4'!C41/100),0),0) -> 0 | AB9: =IF(Определители!I9="9",ROUND((C9+E9)*(100-Начисления!M9/100)*('Форма 4'!C41/100),0),0) -> 0 | AC9: =IF(Определители!I9="9",ROUND(B9*Начисления!M9/100,0),0) -> 0 | AD9: =IF(Определители!I9="9",ROUND(B9*(100-Начисления!M9)/100,0),0) -> 0 | AE9: =ROUND('Форма 4'!C27*'Базовые цены за единицу'!AE9,0) -> 0 | AH9: =ROUND('Форма 4'!C27*'Базовые цены за единицу'!AH9,0) -> 0 | AI9: =ROUND('Форма 4'!C27*'Базовые цены за единицу'!AI9,0) -> 0 | AJ9: =ROUND('Форма 4'!C27*'Базовые цены за единицу'!AJ9,0) -> 0 | AK9: =ROUND('Форма 4'!C27*'Базовые цены за единицу'!AK9,0) -> 0
A10: ='Форма 4'!A45 -> 2. | B10: 778 | C10: =ROUND('Форма 4'!C45*'Базовые цены за единицу'!C10,0) -> 531 | D10: =ROUND('Форма 4'!C45*'Базовые цены за единицу'!D10,0) -> 247 | E10: =ROUND('Форма 4'!C45*'Базовые цены за единицу'!E10,0) -> 0 | F10: =ROUND('Форма 4'!C45*'Базовые цены за единицу'!F10,0) -> 0 | G10: =ROUND('Форма 4'!C45*'Базовые цены за единицу'!G10,0) -> 0 | H10: =ROUND('Форма 4'!C45*'Базовые цены за единицу'!H10,0) -> 0 | I10: =ОКРУГЛВСЕ('Форма 4'!C45*'Базовые цены за единицу'!I10,8) -> 52.7293 | J10: =ОКРУГЛВСЕ('Форма 4'!C45*'Базовые цены за единицу'!J10,8) -> 0 | K10: =ОКРУГЛВСЕ('Форма 4'!C45*'Базовые цены за единицу'!K10,8) -> 0 | L10: =ROUND('Форма 4'!C45*'Базовые цены за единицу'!L10,0) -> 0 | M10: =ROUND('Форма 4'!C45*'Базовые цены за единицу'!M10,0) -> 0 | N10: =ROUND((C10+E10)*'Форма 4'!C56/100,0) -> 552 | O10: =ROUND((C10+E10)*'Форма 4'!C59/100,0) -> 319 | P10: =ROUND('Форма 4'!C45*'Базовые цены за единицу'!P10,0) -> 552 | Q10: =ROUND('Форма 4'!C45*'Базовые цены за единицу'!Q10,0) -> 0 | R10: =ROUND('Форма 4'!C45*'Базовые цены за единицу'!R10,0) -> 319 | S10: =ROUND('Форма 4'!C45*'Базовые цены за единицу'!S10,0) -> 0 | T10: =ROUND('Форма 4'!C45*'Базовые цены за единицу'!T10,0) -> 0 | U10: =ROUND('Форма 4'!C45*'Базовые цены за единицу'!U10,0) -> 0 | V10: =ROUND('Форма 4'!C45*'Базовые цены за единицу'!V10,0) -> 0 | X10: =ROUND('Форма 4'!C45*'Базовые цены за единицу'!X10,0) -> 0 | Y10: =IF(Определители!I10="9",ROUND((C10+E10)*(Начисления!M10/100)*('Форма 4'!C56/100),0),0) -> 0 | Z10: =IF(Определители!I10="9",ROUND((C10+E10)*(100-Начисления!M10/100)*('Форма 4'!C56/100),0),0) -> 0 | AA10: =IF(Определители!I10="9",ROUND((C10+E10)*(Начисления!M10/100)*('Форма 4'!C59/100),0),0) -> 0 | AB10: =IF(Определители!I10="9",ROUND((C10+E10)*(100-Начисления!M10/100)*('Форма 4'!C59/100),0),0) -> 0 | AC10: =IF(Определители!I10="9",ROUND(B10*Начисления!M10/100,0),0) -> 0 | AD10: =IF(Определители!I10="9",ROUND(B10*(100-Начисления!M10)/100,0),0) -> 0 | AE10: =ROUND('Форма 4'!C45*'Базовые цены за единицу'!AE10,0) -> 0 | AH10: =ROUND('Форма 4'!C45*'Базовые цены за единицу'!AH10,0) -> 0 | AI10: =ROUND('Форма 4'!C45*'Базовые цены за единицу'!AI10,0) -> 0 | AJ10: =ROUND('Форма 4'!C45*'Базовые цены за единицу'!AJ10,0) -> 0 | AK10: =ROUND('Форма 4'!C45*'Базовые цены за единицу'!AK10,0) -> 0
A11: ='Форма 4'!A63 -> 3. | B11: 13 | C11: =ROUND('Форма 4'!C63*'Базовые цены за единицу'!C11,0) -> 0 | D11: =ROUND('Форма 4'!C63*'Базовые цены за единицу'!D11,0) -> 13 | E11: =ROUND('Форма 4'!C63*'Базовые цены за единицу'!E11,0) -> 1 | F11: =ROUND('Форма 4'!C63*'Базовые цены за единицу'!F11,0) -> 0 | G11: =ROUND('Форма 4'!C63*'Базовые цены за единицу'!G11,0) -> 0 | H11: =ROUND('Форма 4'!C63*'Базовые цены за единицу'!H11,0) -> 0 | I11: =ОКРУГЛВСЕ('Форма 4'!C63*'Базовые цены за единицу'!I11,8) -> 0 | J11: =ОКРУГЛВСЕ('Форма 4'!C63*'Базовые цены за единицу'!J11,8) -> 0 | K11: =ОКРУГЛВСЕ('Форма 4'!C63*'Базовые цены за единицу'!K11,8) -> 0.0828 | L11: =ROUND('Форма 4'!C63*'Базовые цены за единицу'!L11,0) -> 0 | M11: =ROUND('Форма 4'!C63*'Базовые цены за единицу'!M11,0) -> 0 | N11: =ROUND((C11+E11)*'Форма 4'!C74/100,0) -> 1 | O11: =ROUND((C11+E11)*'Форма 4'!C77/100,0) -> 0 | P11: =ROUND('Форма 4'!C63*'Базовые цены за единицу'!P11,0) -> 0 | Q11: =ROUND('Форма 4'!C63*'Базовые цены за единицу'!Q11,0) -> 1 | R11: =ROUND('Форма 4'!C63*'Базовые цены за единицу'!R11,0) -> 0 | S11: =ROUND('Форма 4'!C63*'Базовые цены за единицу'!S11,0) -> 1 | T11: =ROUND('Форма 4'!C63*'Базовые цены за единицу'!T11,0) -> 0 | U11: =ROUND('Форма 4'!C63*'Базовые цены за единицу'!U11,0) -> 0 | V11: =ROUND('Форма 4'!C63*'Базовые цены за единицу'!V11,0) -> 0 | X11: =ROUND('Форма 4'!C63*'Базовые цены за единицу'!X11,0) -> 0 | Y11: =IF(Определители!I11="9",ROUND((C11+E11)*(Начисления!M11/100)*('Форма 4'!C74/100),0),0) -> 0 | Z11: =IF(Определители!I11="9",ROUND((C11+E11)*(100-Начисления!M11/100)*('Форма 4'!C74/100),0),0) -> 0 | AA11: =IF(Определители!I11="9",ROUND((C11+E11)*(Начисления!M11/100)*('Форма 4'!C77/100),0),0) -> 0 | AB11: =IF(Определители!I11="9",ROUND((C11+E11)*(100-Начисления!M11/100)*('Форма 4'!C77/100),0),0) -> 0 | AC11: =IF(Определители!I11="9",ROUND(B11*Начисления!M11/100,0),0) -> 0 | AD11: =IF(Определители!I11="9",ROUND(B11*(100-Начисления!M11)/100,0),0) -> 0 | AE11: =ROUND('Форма 4'!C63*'Базовые цены за единицу'!AE11,0) -> 0 | AH11: =ROUND('Форма 4'!C63*'Базовые цены за единицу'!AH11,0) -> 0 | AI11: =ROUND('Форма 4'!C63*'Базовые цены за единицу'!AI11,0) -> 0 | AJ11: =ROUND('Форма 4'!C63*'Базовые цены за единицу'!AJ11,0) -> 0 | AK11: =ROUND('Форма 4'!C63*'Базовые цены за единицу'!AK11,0) -> 0
A12: ='Форма 4'!A81 -> 4. | B12: 65 | C12: =ROUND('Форма 4'!C81*'Базовые цены за единицу'!C12,0) -> 0 | D12: =ROUND('Форма 4'!C81*'Базовые цены за единицу'!D12,0) -> 65 | E12: =ROUND('Форма 4'!C81*'Базовые цены за единицу'!E12,0) -> 7 | F12: =ROUND('Форма 4'!C81*'Базовые цены за единицу'!F12,0) -> 0 | G12: =ROUND('Форма 4'!C81*'Базовые цены за единицу'!G12,0) -> 0 | H12: =ROUND('Форма 4'!C81*'Базовые цены за единицу'!H12,0) -> 0 | I12: =ОКРУГЛВСЕ('Форма 4'!C81*'Базовые цены за единицу'!I12,8) -> 0 | J12: =ОКРУГЛВСЕ('Форма 4'!C81*'Базовые цены за единицу'!J12,8) -> 0 | K12: =ОКРУГЛВСЕ('Форма 4'!C81*'Базовые цены за единицу'!K12,8) -> 0.4026 | L12: =ROUND('Форма 4'!C81*'Базовые цены за единицу'!L12,0) -> 0 | M12: =ROUND('Форма 4'!C81*'Базовые цены за единицу'!M12,0) -> 0 | N12: =ROUND((C12+E12)*'Форма 4'!C92/100,0) -> 6 | O12: =ROUND((C12+E12)*'Форма 4'!C95/100,0) -> 3 | P12: =ROUND('Форма 4'!C81*'Базовые цены за единицу'!P12,0) -> 0 | Q12: =ROUND('Форма 4'!C81*'Базовые цены за единицу'!Q12,0) -> 6 | R12: =ROUND('Форма 4'!C81*'Базовые цены за единицу'!R12,0) -> 0 | S12: =ROUND('Форма 4'!C81*'Базовые цены за единицу'!S12,0) -> 3 | T12: =ROUND('Форма 4'!C81*'Базовые цены за единицу'!T12,0) -> 0 | U12: =ROUND('Форма 4'!C81*'Базовые цены за единицу'!U12,0) -> 0 | V12: =ROUND('Форма 4'!C81*'Базовые цены за единицу'!V12,0) -> 0 | X12: =ROUND('Форма 4'!C81*'Базовые цены за единицу'!X12,0) -> 0 | Y12: =IF(Определители!I12="9",ROUND((C12+E12)*(Начисления!M12/100)*('Форма 4'!C92/100),0),0) -> 0 | Z12: =IF(Определители!I12="9",ROUND((C12+E12)*(100-Начисления!M12/100)*('Форма 4'!C92/100),0),0) -> 0 | AA12: =IF(Определители!I12="9",ROUND((C12+E12)*(Начисления!M12/100)*('Форма 4'!C95/100),0),0) -> 0 | AB12: =IF(Определители!I12="9",ROUND((C12+E12)*(100-Начисления!M12/100)*('Форма 4'!C95/100),0),0) -> 0 | AC12: =IF(Определители!I12="9",ROUND(B12*Начисления!M12/100,0),0) -> 0 | AD12: =IF(Определители!I12="9",ROUND(B12*(100-Начисления!M12)/100,0),0) -> 0 | AE12: =ROUND('Форма 4'!C81*'Базовые цены за единицу'!AE12,0) -> 0 | AH12: =ROUND('Форма 4'!C81*'Базовые цены за единицу'!AH12,0) -> 0 | AI12: =ROUND('Форма 4'!C81*'Базовые цены за единицу'!AI12,0) -> 0 | AJ12: =ROUND('Форма 4'!C81*'Базовые цены за единицу'!AJ12,0) -> 0 | AK12: =ROUND('Форма 4'!C81*'Базовые цены за единицу'!AK12,0) -> 0
A13: ='Форма 4'!A99 -> 5. | B13: 24 | C13: =ROUND('Форма 4'!C99*'Базовые цены за единицу'!C13,0) -> 0 | D13: =ROUND('Форма 4'!C99*'Базовые цены за единицу'!D13,0) -> 24 | E13: =ROUND('Форма 4'!C99*'Базовые цены за единицу'!E13,0) -> 3 | F13: =ROUND('Форма 4'!C99*'Базовые цены за единицу'!F13,0) -> 0 | G13: =ROUND('Форма 4'!C99*'Базовые цены за единицу'!G13,0) -> 0 | H13: =ROUND('Форма 4'!C99*'Базовые цены за единицу'!H13,0) -> 0 | I13: =ОКРУГЛВСЕ('Форма 4'!C99*'Базовые цены за единицу'!I13,8) -> 0 | J13: =ОКРУГЛВСЕ('Форма 4'!C99*'Базовые цены за единицу'!J13,8) -> 0 | K13: =ОКРУГЛВСЕ('Форма 4'!C99*'Базовые цены за единицу'!K13,8) -> 0.1864 | L13: =ROUND('Форма 4'!C99*'Базовые цены за единицу'!L13,0) -> 0 | M13: =ROUND('Форма 4'!C99*'Базовые цены за единицу'!M13,0) -> 0 | N13: =ROUND((C13+E13)*'Форма 4'!C110/100,0) -> 2 | O13: =ROUND((C13+E13)*'Форма 4'!C113/100,0) -> 1 | P13: =ROUND('Форма 4'!C99*'Базовые цены за единицу'!P13,0) -> 0 | Q13: =ROUND('Форма 4'!C99*'Базовые цены за единицу'!Q13,0) -> 2 | R13: =ROUND('Форма 4'!C99*'Базовые цены за единицу'!R13,0) -> 0 | S13: =ROUND('Форма 4'!C99*'Базовые цены за единицу'!S13,0) -> 1 | T13: =ROUND('Форма 4'!C99*'Базовые цены за единицу'!T13,0) -> 0 | U13: =ROUND('Форма 4'!C99*'Базовые цены за единицу'!U13,0) -> 0 | V13: =ROUND('Форма 4'!C99*'Базовые цены за единицу'!V13,0) -> 0 | X13: =ROUND('Форма 4'!C99*'Базовые цены за единицу'!X13,0) -> 0 | Y13: =IF(Определители!I13="9",ROUND((C13+E13)*(Начисления!M13/100)*('Форма 4'!C110/100),0),0) -> 0 | Z13: =IF(Определители!I13="9",ROUND((C13+E13)*(100-Начисления!M13/100)*('Форма 4'!C110/100),0),0) -> 0 | AA13: =IF(Определители!I13="9",ROUND((C13+E13)*(Начисления!M13/100)*('Форма 4'!C113/100),0),0) -> 0 | AB13: =IF(Определители!I13="9",ROUND((C13+E13)*(100-Начисления!M13/100)*('Форма 4'!C113/100),0),0) -> 0 | AC13: =IF(Определители!I13="9",ROUND(B13*Начисления!M13/100,0),0) -> 0 | AD13: =IF(Определители!I13="9",ROUND(B13*(100-Начисления!M13)/100,0),0) -> 0 | AE13: =ROUND('Форма 4'!C99*'Базовые цены за единицу'!AE13,0) -> 0 | AH13: =ROUND('Форма 4'!C99*'Базовые цены за единицу'!AH13,0) -> 0 | AI13: =ROUND('Форма 4'!C99*'Базовые цены за единицу'!AI13,0) -> 0 | AJ13: =ROUND('Форма 4'!C99*'Базовые цены за единицу'!AJ13,0) -> 0 | AK13: =ROUND('Форма 4'!C99*'Базовые цены за единицу'!AK13,0) -> 0
A14: ='Форма 4'!A117 -> 6. | B14: 97 | C14: =ROUND('Форма 4'!C117*'Базовые цены за единицу'!C14,0) -> 0 | D14: =ROUND('Форма 4'!C117*'Базовые цены за единицу'!D14,0) -> 0 | E14: =ROUND('Форма 4'!C117*'Базовые цены за единицу'!E14,0) -> 0 | F14: =ROUND('Форма 4'!C117*'Базовые цены за единицу'!F14,0) -> 97 | G14: =ROUND('Форма 4'!C117*'Базовые цены за единицу'!G14,0) -> 97 | H14: =ROUND('Форма 4'!C117*'Базовые цены за единицу'!H14,0) -> 0 | I14: =ОКРУГЛВСЕ('Форма 4'!C117*'Базовые цены за единицу'!I14,8) -> 0 | J14: =ОКРУГЛВСЕ('Форма 4'!C117*'Базовые цены за единицу'!J14,8) -> 0 | K14: =ОКРУГЛВСЕ('Форма 4'!C117*'Базовые цены за единицу'!K14,8) -> 0 | L14: =ROUND('Форма 4'!C117*'Базовые цены за единицу'!L14,0) -> 0 | M14: =ROUND('Форма 4'!C117*'Базовые цены за единицу'!M14,0) -> 0 | N14: =ROUND((C14+E14)*'Форма 4'!C129/100,0) -> 0 | O14: =ROUND((C14+E14)*'Форма 4'!C132/100,0) -> 0 | P14: =ROUND('Форма 4'!C117*'Базовые цены за единицу'!P14,0) -> 0 | Q14: =ROUND('Форма 4'!C117*'Базовые цены за единицу'!Q14,0) -> 0 | R14: =ROUND('Форма 4'!C117*'Базовые цены за единицу'!R14,0) -> 0 | S14: =ROUND('Форма 4'!C117*'Базовые цены за единицу'!S14,0) -> 0 | T14: =ROUND('Форма 4'!C117*'Базовые цены за единицу'!T14,0) -> 0 | U14: =ROUND('Форма 4'!C117*'Базовые цены за единицу'!U14,0) -> 0 | V14: =ROUND('Форма 4'!C117*'Базовые цены за единицу'!V14,0) -> 0 | X14: =ROUND('Форма 4'!C117*'Базовые цены за единицу'!X14,0) -> 0 | Y14: =IF(Определители!I14="9",ROUND((C14+E14)*(Начисления!M14/100)*('Форма 4'!C129/100),0),0) -> 0 | Z14: =IF(Определители!I14="9",ROUND((C14+E14)*(100-Начисления!M14/100)*('Форма 4'!C129/100),0),0) -> 0 | AA14: =IF(Определители!I14="9",ROUND((C14+E14)*(Начисления!M14/100)*('Форма 4'!C132/100),0),0) -> 0 | AB14: =IF(Определители!I14="9",ROUND((C14+E14)*(100-Начисления!M14/100)*('Форма 4'!C132/100),0),0) -> 0 | AC14: =IF(Определители!I14="9",ROUND(B14*Начисления!M14/100,0),0) -> 0 | AD14: =IF(Определители!I14="9",ROUND(B14*(100-Начисления!M14)/100,0),0) -> 0 | AE14: =ROUND('Форма 4'!C117*'Базовые цены за единицу'!AE14,0) -> 0 | AH14: =ROUND('Форма 4'!C117*'Базовые цены за единицу'!AH14,0) -> 0 | AI14: =ROUND('Форма 4'!C117*'Базовые цены за единицу'!AI14,0) -> 0 | AJ14: =ROUND('Форма 4'!C117*'Базовые цены за единицу'!AJ14,0) -> 0 | AK14: =ROUND('Форма 4'!C117*'Базовые цены за единицу'!AK14,0) -> 0
A15: ='Форма 4'!A136 -> 7. | B15: 129 | C15: =ROUND('Форма 4'!C136*'Базовые цены за единицу'!C15,0) -> 18 | D15: =ROUND('Форма 4'!C136*'Базовые цены за единицу'!D15,0) -> 66 | E15: =ROUND('Форма 4'!C136*'Базовые цены за единицу'!E15,0) -> 9 | F15: =ROUND('Форма 4'!C136*'Базовые цены за единицу'!F15,0) -> 0 | G15: =ROUND('Форма 4'!C136*'Базовые цены за единицу'!G15,0) -> 0 | H15: =ROUND('Форма 4'!C136*'Базовые цены за единицу'!H15,0) -> 0 | I15: =ОКРУГЛВСЕ('Форма 4'!C136*'Базовые цены за единицу'!I15,8) -> 1.96809 | J15: =ОКРУГЛВСЕ('Форма 4'!C136*'Базовые цены за единицу'!J15,8) -> 0 | K15: =ОКРУГЛВСЕ('Форма 4'!C136*'Базовые цены за единицу'!K15,8) -> 0.77634 | L15: =ROUND('Форма 4'!C136*'Базовые цены за единицу'!L15,0) -> 0 | M15: =ROUND('Форма 4'!C136*'Базовые цены за единицу'!M15,0) -> 0 | P15: =ROUND('Форма 4'!C136*'Базовые цены за единицу'!P15,0) -> 18 | Q15: =ROUND('Форма 4'!C136*'Базовые цены за единицу'!Q15,0) -> 9 | R15: =ROUND('Форма 4'!C136*'Базовые цены за единицу'!R15,0) -> 11 | S15: =ROUND('Форма 4'!C136*'Базовые цены за единицу'!S15,0) -> 6 | T15: =ROUND('Форма 4'!C136*'Базовые цены за единицу'!T15,0) -> 0 | U15: =ROUND('Форма 4'!C136*'Базовые цены за единицу'!U15,0) -> 0 | V15: =ROUND('Форма 4'!C136*'Базовые цены за единицу'!V15,0) -> 0 | X15: =ROUND('Форма 4'!C136*'Базовые цены за единицу'!X15,0) -> 0 | Y15: =IF(Определители!I15="9",ROUND((C15+E15)*(Начисления!M15/100)*('Форма 4'!C148/100),0),0) -> 0 | Z15: =IF(Определители!I15="9",ROUND((C15+E15)*(100-Начисления!M15/100)*('Форма 4'!C148/100),0),0) -> 0 | AA15: =IF(Определители!I15="9",ROUND((C15+E15)*(Начисления!M15/100)*('Форма 4'!C151/100),0),0) -> 0 | AB15: =IF(Определители!I15="9",ROUND((C15+E15)*(100-Начисления!M15/100)*('Форма 4'!C151/100),0),0) -> 0 | AC15: =IF(Определители!I15="9",ROUND(B15*Начисления!M15/100,0),0) -> 0 | AD15: =IF(Определители!I15="9",ROUND(B15*(100-Начисления!M15)/100,0),0) -> 0 | AE15: =ROUND('Форма 4'!C136*'Базовые цены за единицу'!AE15,0) -> 0 | AF15: =ROUND('Форма 4'!C136*'Базовые цены за единицу'!AF15,0) -> 28 | AG15: =ROUND('Форма 4'!C136*'Базовые цены за единицу'!AG15,0) -> 17 | AH15: =ROUND('Форма 4'!C136*'Базовые цены за единицу'!AH15,0) -> 0 | AI15: =ROUND('Форма 4'!C136*'Базовые цены за единицу'!AI15,0) -> 0 | AJ15: =ROUND('Форма 4'!C136*'Базовые цены за единицу'!AJ15,0) -> 0 | AK15: =ROUND('Форма 4'!C136*'Базовые цены за единицу'!AK15,0) -> 0
A16: ='Форма 4'!A155 -> 8. | B16: 105 | C16: =ROUND('Форма 4'!C155*'Базовые цены за единицу'!C16,0) -> 0 | D16: =ROUND('Форма 4'!C155*'Базовые цены за единицу'!D16,0) -> 105 | E16: =ROUND('Форма 4'!C155*'Базовые цены за единицу'!E16,0) -> 0 | F16: =ROUND('Форма 4'!C155*'Базовые цены за единицу'!F16,0) -> 0 | G16: =ROUND('Форма 4'!C155*'Базовые цены за единицу'!G16,0) -> 0 | H16: =ROUND('Форма 4'!C155*'Базовые цены за единицу'!H16,0) -> 0 | I16: =ОКРУГЛВСЕ('Форма 4'!C155*'Базовые цены за единицу'!I16,8) -> 0 | J16: =ОКРУГЛВСЕ('Форма 4'!C155*'Базовые цены за единицу'!J16,8) -> 0 | K16: =ОКРУГЛВСЕ('Форма 4'!C155*'Базовые цены за единицу'!K16,8) -> 0 | L16: =ROUND('Форма 4'!C155*'Базовые цены за единицу'!L16,0) -> 0 | M16: =ROUND('Форма 4'!C155*'Базовые цены за единицу'!M16,0) -> 0 | P16: =ROUND('Форма 4'!C155*'Базовые цены за единицу'!P16,0) -> 0 | Q16: =ROUND('Форма 4'!C155*'Базовые цены за единицу'!Q16,0) -> 0 | R16: =ROUND('Форма 4'!C155*'Базовые цены за единицу'!R16,0) -> 0 | S16: =ROUND('Форма 4'!C155*'Базовые цены за единицу'!S16,0) -> 0 | T16: =ROUND('Форма 4'!C155*'Базовые цены за единицу'!T16,0) -> 0 | U16: =ROUND('Форма 4'!C155*'Базовые цены за единицу'!U16,0) -> 0 | V16: =ROUND('Форма 4'!C155*'Базовые цены за единицу'!V16,0) -> 0 | X16: =ROUND('Форма 4'!C155*'Базовые цены за единицу'!X16,0) -> 0 | Y16: =IF(Определители!I16="9",ROUND((C16+E16)*(Начисления!M16/100)*('Форма 4'!C166/100),0),0) -> 0 | Z16: =IF(Определители!I16="9",ROUND((C16+E16)*(100-Начисления!M16/100)*('Форма 4'!C166/100),0),0) -> 0 | AA16: =IF(Определители!I16="9",ROUND((C16+E16)*(Начисления!M16/100)*('Форма 4'!C169/100),0),0) -> 0 | AB16: =IF(Определители!I16="9",ROUND((C16+E16)*(100-Начисления!M16/100)*('Форма 4'!C169/100),0),0) -> 0 | AC16: =IF(Определители!I16="9",ROUND(B16*Начисления!M16/100,0),0) -> 0 | AD16: =IF(Определители!I16="9",ROUND(B16*(100-Начисления!M16)/100,0),0) -> 0 | AE16: =ROUND('Форма 4'!C155*'Базовые цены за единицу'!AE16,0) -> 0 | AH16: =ROUND('Форма 4'!C155*'Базовые цены за единицу'!AH16,0) -> 0 | AI16: =ROUND('Форма 4'!C155*'Базовые цены за единицу'!AI16,0) -> 0 | AJ16: =ROUND('Форма 4'!C155*'Базовые цены за единицу'!AJ16,0) -> 0 | AK16: =ROUND('Форма 4'!C155*'Базовые цены за единицу'!AK16,0) -> 0
B18: Раздел 2. Разборка бортовых камней и а/бетонного покрытия
A20: ='Форма 4'!A334 -> 9. | B20: =ROUND(C20+D20+F20+AF20+AG20,0) -> 2158 | C20: =ROUND('Форма 4'!C334*'Базовые цены за единицу'!C20,0) -> 1125 | D20: =ROUND('Форма 4'!C334*'Базовые цены за единицу'!D20,0) -> 1033 | E20: =ROUND('Форма 4'!C334*'Базовые цены за единицу'!E20,0) -> 165 | F20: =ROUND('Форма 4'!C334*'Базовые цены за единицу'!F20,0) -> 0 | G20: =ROUND('Форма 4'!C334*'Базовые цены за единицу'!G20,0) -> 0 | H20: =ROUND('Форма 4'!C334*'Базовые цены за единицу'!H20,0) -> 0 | I20: =ОКРУГЛВСЕ('Форма 4'!C334*'Базовые цены за единицу'!I20,8) -> 112.6282 | J20: =ОКРУГЛВСЕ('Форма 4'!C334*'Базовые цены за единицу'!J20,8) -> 0 | K20: =ОКРУГЛВСЕ('Форма 4'!C334*'Базовые цены за единицу'!K20,8) -> 13.696 | L20: =ROUND('Форма 4'!C334*'Базовые цены за единицу'!L20,0) -> 0 | M20: =ROUND('Форма 4'!C334*'Базовые цены за единицу'!M20,0) -> 0 | N20: =ROUND((C20+E20)*'Форма 4'!C345/100,0) -> 1342 | O20: =ROUND((C20+E20)*'Форма 4'!C348/100,0) -> 774 | P20: =ROUND('Форма 4'!C334*'Базовые цены за единицу'!P20,0) -> 1170 | Q20: =ROUND('Форма 4'!C334*'Базовые цены за единицу'!Q20,0) -> 172 | R20: =ROUND('Форма 4'!C334*'Базовые цены за единицу'!R20,0) -> 675 | S20: =ROUND('Форма 4'!C334*'Базовые цены за единицу'!S20,0) -> 99 | T20: =ROUND('Форма 4'!C334*'Базовые цены за единицу'!T20,0) -> 0 | U20: =ROUND('Форма 4'!C334*'Базовые цены за единицу'!U20,0) -> 0 | V20: =ROUND('Форма 4'!C334*'Базовые цены за единицу'!V20,0) -> 0 | X20: =ROUND('Форма 4'!C334*'Базовые цены за единицу'!X20,0) -> 0 | Y20: =IF(Определители!I20="9",ROUND((C20+E20)*(Начисления!M20/100)*('Форма 4'!C345/100),0),0) -> 0 | Z20: =IF(Определители!I20="9",ROUND((C20+E20)*(100-Начисления!M20/100)*('Форма 4'!C345/100),0),0) -> 0 | AA20: =IF(Определители!I20="9",ROUND((C20+E20)*(Начисления!M20/100)*('Форма 4'!C348/100),0),0) -> 0 | AB20: =IF(Определители!I20="9",ROUND((C20+E20)*(100-Начисления!M20/100)*('Форма 4'!C348/100),0),0) -> 0 | AC20: =IF(Определители!I20="9",ROUND(B20*Начисления!M20/100,0),0) -> 0 | AD20: =IF(Определители!I20="9",ROUND(B20*(100-Начисления!M20)/100,0),0) -> 0 | AE20: =ROUND('Форма 4'!C334*'Базовые цены за единицу'!AE20,0) -> 0 | AH20: =ROUND('Форма 4'!C334*'Базовые цены за единицу'!AH20,0) -> 0 | AI20: =ROUND('Форма 4'!C334*'Базовые цены за единицу'!AI20,0) -> 0 | AJ20: =ROUND('Форма 4'!C334*'Базовые цены за единицу'!AJ20,0) -> 0 | AK20: =ROUND('Форма 4'!C334*'Базовые цены за единицу'!AK20,0) -> 0
A21: ='Форма 4'!A352 -> 10. | B21: =ROUND(C21+D21+F21+AF21+AG21,0) -> 203 | C21: =ROUND('Форма 4'!C352*'Базовые цены за единицу'!C21,0) -> 29 | D21: =ROUND('Форма 4'!C352*'Базовые цены за единицу'!D21,0) -> 104 | E21: =ROUND('Форма 4'!C352*'Базовые цены за единицу'!E21,0) -> 15 | F21: =ROUND('Форма 4'!C352*'Базовые цены за единицу'!F21,0) -> 0 | G21: =ROUND('Форма 4'!C352*'Базовые цены за единицу'!G21,0) -> 0 | H21: =ROUND('Форма 4'!C352*'Базовые цены за единицу'!H21,0) -> 0 | I21: =ОКРУГЛВСЕ('Форма 4'!C352*'Базовые цены за единицу'!I21,8) -> 3.0923 | J21: =ОКРУГЛВСЕ('Форма 4'!C352*'Базовые цены за единицу'!J21,8) -> 0 | K21: =ОКРУГЛВСЕ('Форма 4'!C352*'Базовые цены за единицу'!K21,8) -> 1.2198 | L21: =ROUND('Форма 4'!C352*'Базовые цены за единицу'!L21,0) -> 0 | M21: =ROUND('Форма 4'!C352*'Базовые цены за единицу'!M21,0) -> 0 | P21: =ROUND('Форма 4'!C352*'Базовые цены за единицу'!P21,0) -> 29 | Q21: =ROUND('Форма 4'!C352*'Базовые цены за единицу'!Q21,0) -> 15 | R21: =ROUND('Форма 4'!C352*'Базовые цены за единицу'!R21,0) -> 17 | S21: =ROUND('Форма 4'!C352*'Базовые цены за единицу'!S21,0) -> 9 | T21: =ROUND('Форма 4'!C352*'Базовые цены за единицу'!T21,0) -> 0 | U21: =ROUND('Форма 4'!C352*'Базовые цены за единицу'!U21,0) -> 0 | V21: =ROUND('Форма 4'!C352*'Базовые цены за единицу'!V21,0) -> 0 | X21: =ROUND('Форма 4'!C352*'Базовые цены за единицу'!X21,0) -> 0 | Y21: =IF(Определители!I21="9",ROUND((C21+E21)*(Начисления!M21/100)*('Форма 4'!C364/100),0),0) -> 0 | Z21: =IF(Определители!I21="9",ROUND((C21+E21)*(100-Начисления!M21/100)*('Форма 4'!C364/100),0),0) -> 0 | AA21: =IF(Определители!I21="9",ROUND((C21+E21)*(Начисления!M21/100)*('Форма 4'!C367/100),0),0) -> 0 | AB21: =IF(Определители!I21="9",ROUND((C21+E21)*(100-Начисления!M21/100)*('Форма 4'!C367/100),0),0) -> 0 | AC21: =IF(Определители!I21="9",ROUND(B21*Начисления!M21/100,0),0) -> 0 | AD21: =IF(Определители!I21="9",ROUND(B21*(100-Начисления!M21)/100,0),0) -> 0 | AE21: =ROUND('Форма 4'!C352*'Базовые цены за единицу'!AE21,0) -> 0 | AF21: =ROUND('Форма 4'!C352*'Базовые цены за единицу'!AF21,0) -> 44 | AG21: =ROUND('Форма 4'!C352*'Базовые цены за единицу'!AG21,0) -> 26 | AH21: =ROUND('Форма 4'!C352*'Базовые цены за единицу'!AH21,0) -> 0 | AI21: =ROUND('Форма 4'!C352*'Базовые цены за единицу'!AI21,0) -> 0 | AJ21: =ROUND('Форма 4'!C352*'Базовые цены за единицу'!AJ21,0) -> 0 | AK21: =ROUND('Форма 4'!C352*'Базовые цены за единицу'!AK21,0) -> 0
A22: ='Форма 4'!A371 -> 11. | B22: =ROUND(C22+D22+F22+AF22+AG22,0) -> 164 | C22: =ROUND('Форма 4'!C371*'Базовые цены за единицу'!C22,0) -> 0 | D22: =ROUND('Форма 4'!C371*'Базовые цены за единицу'!D22,0) -> 164 | E22: =ROUND('Форма 4'!C371*'Базовые цены за единицу'!E22,0) -> 0 | F22: =ROUND('Форма 4'!C371*'Базовые цены за единицу'!F22,0) -> 0 | G22: =ROUND('Форма 4'!C371*'Базовые цены за единицу'!G22,0) -> 0 | H22: =ROUND('Форма 4'!C371*'Базовые цены за единицу'!H22,0) -> 0 | I22: =ОКРУГЛВСЕ('Форма 4'!C371*'Базовые цены за единицу'!I22,8) -> 0 | J22: =ОКРУГЛВСЕ('Форма 4'!C371*'Базовые цены за единицу'!J22,8) -> 0 | K22: =ОКРУГЛВСЕ('Форма 4'!C371*'Базовые цены за единицу'!K22,8) -> 0 | L22: =ROUND('Форма 4'!C371*'Базовые цены за единицу'!L22,0) -> 0 | M22: =ROUND('Форма 4'!C371*'Базовые цены за единицу'!M22,0) -> 0 | P22: =ROUND('Форма 4'!C371*'Базовые цены за единицу'!P22,0) -> 0 | Q22: =ROUND('Форма 4'!C371*'Базовые цены за единицу'!Q22,0) -> 0 | R22: =ROUND('Форма 4'!C371*'Базовые цены за единицу'!R22,0) -> 0 | S22: =ROUND('Форма 4'!C371*'Базовые цены за единицу'!S22,0) -> 0 | T22: =ROUND('Форма 4'!C371*'Базовые цены за единицу'!T22,0) -> 0 | U22: =ROUND('Форма 4'!C371*'Базовые цены за единицу'!U22,0) -> 0 | V22: =ROUND('Форма 4'!C371*'Базовые цены за единицу'!V22,0) -> 0 | X22: =ROUND('Форма 4'!C371*'Базовые цены за единицу'!X22,0) -> 0 | Y22: =IF(Определители!I22="9",ROUND((C22+E22)*(Начисления!M22/100)*('Форма 4'!C382/100),0),0) -> 0 | Z22: =IF(Определители!I22="9",ROUND((C22+E22)*(100-Начисления!M22/100)*('Форма 4'!C382/100),0),0) -> 0 | AA22: =IF(Определители!I22="9",ROUND((C22+E22)*(Начисления!M22/100)*('Форма 4'!C385/100),0),0) -> 0 | AB22: =IF(Определители!I22="9",ROUND((C22+E22)*(100-Начисления!M22/100)*('Форма 4'!C385/100),0),0) -> 0 | AC22: =IF(Определители!I22="9",ROUND(B22*Начисления!M22/100,0),0) -> 0 | AD22: =IF(Определители!I22="9",ROUND(B22*(100-Начисления!M22)/100,0),0) -> 0 | AE22: =ROUND('Форма 4'!C371*'Базовые цены за единицу'!AE22,0) -> 0 | AH22: =ROUND('Форма 4'!C371*'Базовые цены за единицу'!AH22,0) -> 0 | AI22: =ROUND('Форма 4'!C371*'Базовые цены за единицу'!AI22,0) -> 0 | AJ22: =ROUND('Форма 4'!C371*'Базовые цены за единицу'!AJ22,0) -> 0 | AK22: =ROUND('Форма 4'!C371*'Базовые цены за единицу'!AK22,0) -> 0
B24: Раздел 3. Устройство новой дорожной одежды на уширениях и парковках
A26: ='Форма 4'!A550 -> 12. | B26: =ROUND(C26+D26+F26+AF26+AG26,0) -> 263 | C26: =ROUND('Форма 4'!C550*'Базовые цены за единицу'!C26,0) -> 0 | D26: =ROUND('Форма 4'!C550*'Базовые цены за единицу'!D26,0) -> 263 | E26: =ROUND('Форма 4'!C550*'Базовые цены за единицу'!E26,0) -> 34 | F26: =ROUND('Форма 4'!C550*'Базовые цены за единицу'!F26,0) -> 0 | G26: =ROUND('Форма 4'!C550*'Базовые цены за единицу'!G26,0) -> 0 | H26: =ROUND('Форма 4'!C550*'Базовые цены за единицу'!H26,0) -> 0 | I26: =ОКРУГЛВСЕ('Форма 4'!C550*'Базовые цены за единицу'!I26,8) -> 0 | J26: =ОКРУГЛВСЕ('Форма 4'!C550*'Базовые цены за единицу'!J26,8) -> 0 | K26: =ОКРУГЛВСЕ('Форма 4'!C550*'Базовые цены за единицу'!K26,8) -> 2.076228 | L26: =ROUND('Форма 4'!C550*'Базовые цены за единицу'!L26,0) -> 0 | M26: =ROUND('Форма 4'!C550*'Базовые цены за единицу'!M26,0) -> 0 | N26: =ROUND((C26+E26)*'Форма 4'!C562/100,0) -> 32 | O26: =ROUND((C26+E26)*'Форма 4'!C565/100,0) -> 15 | P26: =ROUND('Форма 4'!C550*'Базовые цены за единицу'!P26,0) -> 0 | Q26: =ROUND('Форма 4'!C550*'Базовые цены за единицу'!Q26,0) -> 32 | R26: =ROUND('Форма 4'!C550*'Базовые цены за единицу'!R26,0) -> 0 | S26: =ROUND('Форма 4'!C550*'Базовые цены за единицу'!S26,0) -> 14 | T26: =ROUND('Форма 4'!C550*'Базовые цены за единицу'!T26,0) -> 0 | U26: =ROUND('Форма 4'!C550*'Базовые цены за единицу'!U26,0) -> 0 | V26: =ROUND('Форма 4'!C550*'Базовые цены за единицу'!V26,0) -> 0 | X26: =ROUND('Форма 4'!C550*'Базовые цены за единицу'!X26,0) -> 0 | Y26: =IF(Определители!I26="9",ROUND((C26+E26)*(Начисления!M26/100)*('Форма 4'!C562/100),0),0) -> 0 | Z26: =IF(Определители!I26="9",ROUND((C26+E26)*(100-Начисления!M26/100)*('Форма 4'!C562/100),0),0) -> 0 | AA26: =IF(Определители!I26="9",ROUND((C26+E26)*(Начисления!M26/100)*('Форма 4'!C565/100),0),0) -> 0 | AB26: =IF(Определители!I26="9",ROUND((C26+E26)*(100-Начисления!M26/100)*('Форма 4'!C565/100),0),0) -> 0 | AC26: =IF(Определители!I26="9",ROUND(B26*Начисления!M26/100,0),0) -> 0 | AD26: =IF(Определители!I26="9",ROUND(B26*(100-Начисления!M26)/100,0),0) -> 0 | AE26: =ROUND('Форма 4'!C550*'Базовые цены за единицу'!AE26,0) -> 0 | AH26: =ROUND('Форма 4'!C550*'Базовые цены за единицу'!AH26,0) -> 0 | AI26: =ROUND('Форма 4'!C550*'Базовые цены за единицу'!AI26,0) -> 0 | AJ26: =ROUND('Форма 4'!C550*'Базовые цены за единицу'!AJ26,0) -> 0 | AK26: =ROUND('Форма 4'!C550*'Базовые цены за единицу'!AK26,0) -> 0
A27: ='Форма 4'!A569 -> 13. | B27: 9207 | C27: =ROUND('Форма 4'!C569*'Базовые цены за единицу'!C27,0) -> 1315 | D27: =ROUND('Форма 4'!C569*'Базовые цены за единицу'!D27,0) -> 4720 | E27: =ROUND('Форма 4'!C569*'Базовые цены за единицу'!E27,0) -> 669 | F27: =ROUND('Форма 4'!C569*'Базовые цены за единицу'!F27,0) -> 0 | G27: =ROUND('Форма 4'!C569*'Базовые цены за единицу'!G27,0) -> 0 | H27: =ROUND('Форма 4'!C569*'Базовые цены за единицу'!H27,0) -> 0 | I27: =ОКРУГЛВСЕ('Форма 4'!C569*'Базовые цены за единицу'!I27,8) -> 140.1939 | J27: =ОКРУГЛВСЕ('Форма 4'!C569*'Базовые цены за единицу'!J27,8) -> 0 | K27: =ОКРУГЛВСЕ('Форма 4'!C569*'Базовые цены за единицу'!K27,8) -> 55.3014 | L27: =ROUND('Форма 4'!C569*'Базовые цены за единицу'!L27,0) -> 0 | M27: =ROUND('Форма 4'!C569*'Базовые цены за единицу'!M27,0) -> 0 | P27: =ROUND('Форма 4'!C569*'Базовые цены за единицу'!P27,0) -> 1315 | Q27: =ROUND('Форма 4'!C569*'Базовые цены за единицу'!Q27,0) -> 669 | R27: =ROUND('Форма 4'!C569*'Базовые цены за единицу'!R27,0) -> 791 | S27: =ROUND('Форма 4'!C569*'Базовые цены за единицу'!S27,0) -> 403 | T27: =ROUND('Форма 4'!C569*'Базовые цены за единицу'!T27,0) -> 0 | U27: =ROUND('Форма 4'!C569*'Базовые цены за единицу'!U27,0) -> 0 | V27: =ROUND('Форма 4'!C569*'Базовые цены за единицу'!V27,0) -> 0 | X27: =ROUND('Форма 4'!C569*'Базовые цены за единицу'!X27,0) -> 0 | Y27: =IF(Определители!I27="9",ROUND((C27+E27)*(Начисления!M27/100)*('Форма 4'!C581/100),0),0) -> 0 | Z27: =IF(Определители!I27="9",ROUND((C27+E27)*(100-Начисления!M27/100)*('Форма 4'!C581/100),0),0) -> 0 | AA27: =IF(Определители!I27="9",ROUND((C27+E27)*(Начисления!M27/100)*('Форма 4'!C584/100),0),0) -> 0 | AB27: =IF(Определители!I27="9",ROUND((C27+E27)*(100-Начисления!M27/100)*('Форма 4'!C584/100),0),0) -> 0 | AC27: =IF(Определители!I27="9",ROUND(B27*Начисления!M27/100,0),0) -> 0 | AD27: =IF(Определители!I27="9",ROUND(B27*(100-Начисления!M27)/100,0),0) -> 0 | AE27: =ROUND('Форма 4'!C569*'Базовые цены за единицу'!AE27,0) -> 0 | AF27: =ROUND('Форма 4'!C569*'Базовые цены за единицу'!AF27,0) -> 1984 | AG27: =ROUND('Форма 4'!C569*'Базовые цены за единицу'!AG27,0) -> 1188 | AH27: =ROUND('Форма 4'!C569*'Базовые цены за единицу'!AH27,0) -> 0 | AI27: =ROUND('Форма 4'!C569*'Базовые цены за единицу'!AI27,0) -> 0 | AJ27: =ROUND('Форма 4'!C569*'Базовые цены за единицу'!AJ27,0) -> 0 | AK27: =ROUND('Форма 4'!C569*'Базовые цены за единицу'!AK27,0) -> 0
A28: ='Форма 4'!A588 -> 14. | B28: 7451 | C28: =ROUND('Форма 4'!C588*'Базовые цены за единицу'!C28,0) -> 0 | D28: =ROUND('Форма 4'!C588*'Базовые цены за единицу'!D28,0) -> 7451 | E28: =ROUND('Форма 4'!C588*'Базовые цены за единицу'!E28,0) -> 0 | F28: =ROUND('Форма 4'!C588*'Базовые цены за единицу'!F28,0) -> 0 | G28: =ROUND('Форма 4'!C588*'Базовые цены за единицу'!G28,0) -> 0 | H28: =ROUND('Форма 4'!C588*'Базовые цены за единицу'!H28,0) -> 0 | I28: =ОКРУГЛВСЕ('Форма 4'!C588*'Базовые цены за единицу'!I28,8) -> 0 | J28: =ОКРУГЛВСЕ('Форма 4'!C588*'Базовые цены за единицу'!J28,8) -> 0 | K28: =ОКРУГЛВСЕ('Форма 4'!C588*'Базовые цены за единицу'!K28,8) -> 0 | L28: =ROUND('Форма 4'!C588*'Базовые цены за единицу'!L28,0) -> 0 | M28: =ROUND('Форма 4'!C588*'Базовые цены за единицу'!M28,0) -> 0 | P28: =ROUND('Форма 4'!C588*'Базовые цены за единицу'!P28,0) -> 0 | Q28: =ROUND('Форма 4'!C588*'Базовые цены за единицу'!Q28,0) -> 0 | R28: =ROUND('Форма 4'!C588*'Базовые цены за единицу'!R28,0) -> 0 | S28: =ROUND('Форма 4'!C588*'Базовые цены за единицу'!S28,0) -> 0 | T28: =ROUND('Форма 4'!C588*'Базовые цены за единицу'!T28,0) -> 0 | U28: =ROUND('Форма 4'!C588*'Базовые цены за единицу'!U28,0) -> 0 | V28: =ROUND('Форма 4'!C588*'Базовые цены за единицу'!V28,0) -> 0 | X28: =ROUND('Форма 4'!C588*'Базовые цены за единицу'!X28,0) -> 0 | Y28: =IF(Определители!I28="9",ROUND((C28+E28)*(Начисления!M28/100)*('Форма 4'!C600/100),0),0) -> 0 | Z28: =IF(Определители!I28="9",ROUND((C28+E28)*(100-Начисления!M28/100)*('Форма 4'!C600/100),0),0) -> 0 | AA28: =IF(Определители!I28="9",ROUND((C28+E28)*(Начисления!M28/100)*('Форма 4'!C603/100),0),0) -> 0 | AB28: =IF(Определители!I28="9",ROUND((C28+E28)*(100-Начисления!M28/100)*('Форма 4'!C603/100),0),0) -> 0 | AC28: =IF(Определители!I28="9",ROUND(B28*Начисления!M28/100,0),0) -> 0 | AD28: =IF(Определители!I28="9",ROUND(B28*(100-Начисления!M28)/100,0),0) -> 0 | AE28: =ROUND('Форма 4'!C588*'Базовые цены за единицу'!AE28,0) -> 0 | AH28: =ROUND('Форма 4'!C588*'Базовые цены за единицу'!AH28,0) -> 0 | AI28: =ROUND('Форма 4'!C588*'Базовые цены за единицу'!AI28,0) -> 0 | AJ28: =ROUND('Форма 4'!C588*'Базовые цены за единицу'!AJ28,0) -> 0 | AK28: =ROUND('Форма 4'!C588*'Базовые цены за единицу'!AK28,0) -> 0
A29: ='Форма 4'!A607 -> 15. | B29: 6565 | C29: =ROUND('Форма 4'!C607*'Базовые цены за единицу'!C29,0) -> 173 | D29: =ROUND('Форма 4'!C607*'Базовые цены за единицу'!D29,0) -> 6350 | E29: =ROUND('Форма 4'!C607*'Базовые цены за единицу'!E29,0) -> 680 | F29: =ROUND('Форма 4'!C607*'Базовые цены за единицу'!F29,0) -> 42 | G29: =ROUND('Форма 4'!C607*'Базовые цены за единицу'!G29,0) -> 0 | H29: =ROUND('Форма 4'!C607*'Базовые цены за единицу'!H29,0) -> 0 | I29: =ОКРУГЛВСЕ('Форма 4'!C607*'Базовые цены за единицу'!I29,8) -> 18.15894 | J29: =ОКРУГЛВСЕ('Форма 4'!C607*'Базовые цены за единицу'!J29,8) -> 0 | K29: =ОКРУГЛВСЕ('Форма 4'!C607*'Базовые цены за единицу'!K29,8) -> 42.29028 | L29: =ROUND('Форма 4'!C607*'Базовые цены за единицу'!L29,0) -> 0 | M29: =ROUND('Форма 4'!C607*'Базовые цены за единицу'!M29,0) -> 0 | N29: =ROUND((C29+E29)*'Форма 4'!C619/100,0) -> 1211 | O29: =ROUND((C29+E29)*'Форма 4'!C622/100,0) -> 691 | P29: =ROUND('Форма 4'!C607*'Базовые цены за единицу'!P29,0) -> 246 | Q29: =ROUND('Форма 4'!C607*'Базовые цены за единицу'!Q29,0) -> 966 | R29: =ROUND('Форма 4'!C607*'Базовые цены за единицу'!R29,0) -> 140 | S29: =ROUND('Форма 4'!C607*'Базовые цены за единицу'!S29,0) -> 551 | T29: =ROUND('Форма 4'!C607*'Базовые цены за единицу'!T29,0) -> 0 | U29: =ROUND('Форма 4'!C607*'Базовые цены за единицу'!U29,0) -> 0 | V29: =ROUND('Форма 4'!C607*'Базовые цены за единицу'!V29,0) -> 0 | X29: =ROUND('Форма 4'!C607*'Базовые цены за единицу'!X29,0) -> 0 | Y29: =IF(Определители!I29="9",ROUND((C29+E29)*(Начисления!M29/100)*('Форма 4'!C619/100),0),0) -> 0 | Z29: =IF(Определители!I29="9",ROUND((C29+E29)*(100-Начисления!M29/100)*('Форма 4'!C619/100),0),0) -> 0 | AA29: =IF(Определители!I29="9",ROUND((C29+E29)*(Начисления!M29/100)*('Форма 4'!C622/100),0),0) -> 0 | AB29: =IF(Определители!I29="9",ROUND((C29+E29)*(100-Начисления!M29/100)*('Форма 4'!C622/100),0),0) -> 0 | AC29: =IF(Определители!I29="9",ROUND(B29*Начисления!M29/100,0),0) -> 0 | AD29: =IF(Определители!I29="9",ROUND(B29*(100-Начисления!M29)/100,0),0) -> 0 | AE29: =ROUND('Форма 4'!C607*'Базовые цены за единицу'!AE29,0) -> 0 | AH29: =ROUND('Форма 4'!C607*'Базовые цены за единицу'!AH29,0) -> 0 | AI29: =ROUND('Форма 4'!C607*'Базовые цены за единицу'!AI29,0) -> 0 | AJ29: =ROUND('Форма 4'!C607*'Базовые цены за единицу'!AJ29,0) -> 0 | AK29: =ROUND('Форма 4'!C607*'Базовые цены за единицу'!AK29,0) -> 0
A30: ='Форма 4'!A626 -> 16. | B30: 11310 | C30: =ROUND('Форма 4'!C626*'Базовые цены за единицу'!C30,0) -> 0 | D30: =ROUND('Форма 4'!C626*'Базовые цены за единицу'!D30,0) -> 0 | E30: =ROUND('Форма 4'!C626*'Базовые цены за единицу'!E30,0) -> 0 | F30: =ROUND('Форма 4'!C626*'Базовые цены за единицу'!F30,0) -> 11310 | G30: =ROUND('Форма 4'!C626*'Базовые цены за единицу'!G30,0) -> 11310 | H30: =ROUND('Форма 4'!C626*'Базовые цены за единицу'!H30,0) -> 0 | I30: =ОКРУГЛВСЕ('Форма 4'!C626*'Базовые цены за единицу'!I30,8) -> 0 | J30: =ОКРУГЛВСЕ('Форма 4'!C626*'Базовые цены за единицу'!J30,8) -> 0 | K30: =ОКРУГЛВСЕ('Форма 4'!C626*'Базовые цены за единицу'!K30,8) -> 0 | L30: =ROUND('Форма 4'!C626*'Базовые цены за единицу'!L30,0) -> 0 | M30: =ROUND('Форма 4'!C626*'Базовые цены за единицу'!M30,0) -> 0 | N30: =ROUND((C30+E30)*'Форма 4'!C639/100,0) -> 0 | O30: =ROUND((C30+E30)*'Форма 4'!C642/100,0) -> 0 | P30: =ROUND('Форма 4'!C626*'Базовые цены за единицу'!P30,0) -> 0 | Q30: =ROUND('Форма 4'!C626*'Базовые цены за единицу'!Q30,0) -> 0 | R30: =ROUND('Форма 4'!C626*'Базовые цены за единицу'!R30,0) -> 0 | S30: =ROUND('Форма 4'!C626*'Базовые цены за единицу'!S30,0) -> 0 | T30: =ROUND('Форма 4'!C626*'Базовые цены за единицу'!T30,0) -> 0 | U30: =ROUND('Форма 4'!C626*'Базовые цены за единицу'!U30,0) -> 0 | V30: =ROUND('Форма 4'!C626*'Базовые цены за единицу'!V30,0) -> 0 | X30: =ROUND('Форма 4'!C626*'Базовые цены за единицу'!X30,0) -> 0 | Y30: =IF(Определители!I30="9",ROUND((C30+E30)*(Начисления!M30/100)*('Форма 4'!C639/100),0),0) -> 0 | Z30: =IF(Определители!I30="9",ROUND((C30+E30)*(100-Начисления!M30/100)*('Форма 4'!C639/100),0),0) -> 0 | AA30: =IF(Определители!I30="9",ROUND((C30+E30)*(Начисления!M30/100)*('Форма 4'!C642/100),0),0) -> 0 | AB30: =IF(Определители!I30="9",ROUND((C30+E30)*(100-Начисления!M30/100)*('Форма 4'!C642/100),0),0) -> 0 | AC30: =IF(Определители!I30="9",ROUND(B30*Начисления!M30/100,0),0) -> 0 | AD30: =IF(Определители!I30="9",ROUND(B30*(100-Начисления!M30)/100,0),0) -> 0 | AE30: =ROUND('Форма 4'!C626*'Базовые цены за единицу'!AE30,0) -> 0 | AH30: =ROUND('Форма 4'!C626*'Базовые цены за единицу'!AH30,0) -> 0 | AI30: =ROUND('Форма 4'!C626*'Базовые цены за единицу'!AI30,0) -> 0 | AJ30: =ROUND('Форма 4'!C626*'Базовые цены за единицу'!AJ30,0) -> 0 | AK30: =ROUND('Форма 4'!C626*'Базовые цены за единицу'!AK30,0) -> 0
A31: ='Форма 4'!A646 -> 17. | B31: 300 | C31: =ROUND('Форма 4'!C646*'Базовые цены за единицу'!C31,0) -> 0 | D31: =ROUND('Форма 4'!C646*'Базовые цены за единицу'!D31,0) -> 0 | E31: =ROUND('Форма 4'!C646*'Базовые цены за единицу'!E31,0) -> 0 | F31: =ROUND('Форма 4'!C646*'Базовые цены за единицу'!F31,0) -> 300 | G31: =ROUND('Форма 4'!C646*'Базовые цены за единицу'!G31,0) -> 300 | H31: =ROUND('Форма 4'!C646*'Базовые цены за единицу'!H31,0) -> 0 | I31: =ОКРУГЛВСЕ('Форма 4'!C646*'Базовые цены за единицу'!I31,8) -> 0 | J31: =ОКРУГЛВСЕ('Форма 4'!C646*'Базовые цены за единицу'!J31,8) -> 0 | K31: =ОКРУГЛВСЕ('Форма 4'!C646*'Базовые цены за единицу'!K31,8) -> 0 | L31: =ROUND('Форма 4'!C646*'Базовые цены за единицу'!L31,0) -> 0 | M31: =ROUND('Форма 4'!C646*'Базовые цены за единицу'!M31,0) -> 0 | N31: =ROUND((C31+E31)*'Форма 4'!C659/100,0) -> 0 | O31: =ROUND((C31+E31)*'Форма 4'!C662/100,0) -> 0 | P31: =ROUND('Форма 4'!C646*'Базовые цены за единицу'!P31,0) -> 0 | Q31: =ROUND('Форма 4'!C646*'Базовые цены за единицу'!Q31,0) -> 0 | R31: =ROUND('Форма 4'!C646*'Базовые цены за единицу'!R31,0) -> 0 | S31: =ROUND('Форма 4'!C646*'Базовые цены за единицу'!S31,0) -> 0 | T31: =ROUND('Форма 4'!C646*'Базовые цены за единицу'!T31,0) -> 0 | U31: =ROUND('Форма 4'!C646*'Базовые цены за единицу'!U31,0) -> 0 | V31: =ROUND('Форма 4'!C646*'Базовые цены за единицу'!V31,0) -> 0 | X31: =ROUND('Форма 4'!C646*'Базовые цены за единицу'!X31,0) -> 0 | Y31: =IF(Определители!I31="9",ROUND((C31+E31)*(Начисления!M31/100)*('Форма 4'!C659/100),0),0) -> 0 | Z31: =IF(Определители!I31="9",ROUND((C31+E31)*(100-Начисления!M31/100)*('Форма 4'!C659/100),0),0) -> 0 | AA31: =IF(Определители!I31="9",ROUND((C31+E31)*(Начисления!M31/100)*('Форма 4'!C662/100),0),0) -> 0 | AB31: =IF(Определители!I31="9",ROUND((C31+E31)*(100-Начисления!M31/100)*('Форма 4'!C662/100),0),0) -> 0 | AC31: =IF(Определители!I31="9",ROUND(B31*Начисления!M31/100,0),0) -> 0 | AD31: =IF(Определители!I31="9",ROUND(B31*(100-Начисления!M31)/100,0),0) -> 0 | AE31: =ROUND('Форма 4'!C646*'Базовые цены за единицу'!AE31,0) -> 0 | AH31: =ROUND('Форма 4'!C646*'Базовые цены за единицу'!AH31,0) -> 0 | AI31: =ROUND('Форма 4'!C646*'Базовые цены за единицу'!AI31,0) -> 0 | AJ31: =ROUND('Форма 4'!C646*'Базовые цены за единицу'!AJ31,0) -> 0 | AK31: =ROUND('Форма 4'!C646*'Базовые цены за единицу'!AK31,0) -> 0
A32: ='Форма 4'!A666 -> 18. | B32: 3413 | C32: =ROUND('Форма 4'!C666*'Базовые цены за единицу'!C32,0) -> 90 | D32: =ROUND('Форма 4'!C666*'Базовые цены за единицу'!D32,0) -> 3301 | E32: =ROUND('Форма 4'!C666*'Базовые цены за единицу'!E32,0) -> 354 | F32: =ROUND('Форма 4'!C666*'Базовые цены за единицу'!F32,0) -> 22 | G32: =ROUND('Форма 4'!C666*'Базовые цены за единицу'!G32,0) -> 0 | H32: =ROUND('Форма 4'!C666*'Базовые цены за единицу'!H32,0) -> 0 | I32: =ОКРУГЛВСЕ('Форма 4'!C666*'Базовые цены за единицу'!I32,8) -> 9.439584 | J32: =ОКРУГЛВСЕ('Форма 4'!C666*'Базовые цены за единицу'!J32,8) -> 0 | K32: =ОКРУГЛВСЕ('Форма 4'!C666*'Базовые цены за единицу'!K32,8) -> 21.983808 | L32: =ROUND('Форма 4'!C666*'Базовые цены за единицу'!L32,0) -> 0 | M32: =ROUND('Форма 4'!C666*'Базовые цены за единицу'!M32,0) -> 0 | N32: =ROUND((C32+E32)*'Форма 4'!C678/100,0) -> 630 | O32: =ROUND((C32+E32)*'Форма 4'!C681/100,0) -> 360 | P32: =ROUND('Форма 4'!C666*'Базовые цены за единицу'!P32,0) -> 128 | Q32: =ROUND('Форма 4'!C666*'Базовые цены за единицу'!Q32,0) -> 502 | R32: =ROUND('Форма 4'!C666*'Базовые цены за единицу'!R32,0) -> 73 | S32: =ROUND('Форма 4'!C666*'Базовые цены за единицу'!S32,0) -> 286 | T32: =ROUND('Форма 4'!C666*'Базовые цены за единицу'!T32,0) -> 0 | U32: =ROUND('Форма 4'!C666*'Базовые цены за единицу'!U32,0) -> 0 | V32: =ROUND('Форма 4'!C666*'Базовые цены за единицу'!V32,0) -> 0 | X32: =ROUND('Форма 4'!C666*'Базовые цены за единицу'!X32,0) -> 0 | Y32: =IF(Определители!I32="9",ROUND((C32+E32)*(Начисления!M32/100)*('Форма 4'!C678/100),0),0) -> 0 | Z32: =IF(Определители!I32="9",ROUND((C32+E32)*(100-Начисления!M32/100)*('Форма 4'!C678/100),0),0) -> 0 | AA32: =IF(Определители!I32="9",ROUND((C32+E32)*(Начисления!M32/100)*('Форма 4'!C681/100),0),0) -> 0 | AB32: =IF(Определители!I32="9",ROUND((C32+E32)*(100-Начисления!M32/100)*('Форма 4'!C681/100),0),0) -> 0 | AC32: =IF(Определители!I32="9",ROUND(B32*Начисления!M32/100,0),0) -> 0 | AD32: =IF(Определители!I32="9",ROUND(B32*(100-Начисления!M32)/100,0),0) -> 0 | AE32: =ROUND('Форма 4'!C666*'Базовые цены за единицу'!AE32,0) -> 0 | AH32: =ROUND('Форма 4'!C666*'Базовые цены за единицу'!AH32,0) -> 0 | AI32: =ROUND('Форма 4'!C666*'Базовые цены за единицу'!AI32,0) -> 0 | AJ32: =ROUND('Форма 4'!C666*'Базовые цены за единицу'!AJ32,0) -> 0 | AK32: =ROUND('Форма 4'!C666*'Базовые цены за единицу'!AK32,0) -> 0
A33: ='Форма 4'!A685 -> 19. | B33: 6032 | C33: =ROUND('Форма 4'!C685*'Базовые цены за единицу'!C33,0) -> 0 | D33: =ROUND('Форма 4'!C685*'Базовые цены за единицу'!D33,0) -> 0 | E33: =ROUND('Форма 4'!C685*'Базовые цены за единицу'!E33,0) -> 0 | F33: =ROUND('Форма 4'!C685*'Базовые цены за единицу'!F33,0) -> 6032 | G33: =ROUND('Форма 4'!C685*'Базовые цены за единицу'!G33,0) -> 6032 | H33: =ROUND('Форма 4'!C685*'Базовые цены за единицу'!H33,0) -> 0 | I33: =ОКРУГЛВСЕ('Форма 4'!C685*'Базовые цены за единицу'!I33,8) -> 0 | J33: =ОКРУГЛВСЕ('Форма 4'!C685*'Базовые цены за единицу'!J33,8) -> 0 | K33: =ОКРУГЛВСЕ('Форма 4'!C685*'Базовые цены за единицу'!K33,8) -> 0 | L33: =ROUND('Форма 4'!C685*'Базовые цены за единицу'!L33,0) -> 0 | M33: =ROUND('Форма 4'!C685*'Базовые цены за единицу'!M33,0) -> 0 | N33: =ROUND((C33+E33)*'Форма 4'!C698/100,0) -> 0 | O33: =ROUND((C33+E33)*'Форма 4'!C701/100,0) -> 0 | P33: =ROUND('Форма 4'!C685*'Базовые цены за единицу'!P33,0) -> 0 | Q33: =ROUND('Форма 4'!C685*'Базовые цены за единицу'!Q33,0) -> 0 | R33: =ROUND('Форма 4'!C685*'Базовые цены за единицу'!R33,0) -> 0 | S33: =ROUND('Форма 4'!C685*'Базовые цены за единицу'!S33,0) -> 0 | T33: =ROUND('Форма 4'!C685*'Базовые цены за единицу'!T33,0) -> 0 | U33: =ROUND('Форма 4'!C685*'Базовые цены за единицу'!U33,0) -> 0 | V33: =ROUND('Форма 4'!C685*'Базовые цены за единицу'!V33,0) -> 0 | X33: =ROUND('Форма 4'!C685*'Базовые цены за единицу'!X33,0) -> 0 | Y33: =IF(Определители!I33="9",ROUND((C33+E33)*(Начисления!M33/100)*('Форма 4'!C698/100),0),0) -> 0 | Z33: =IF(Определители!I33="9",ROUND((C33+E33)*(100-Начисления!M33/100)*('Форма 4'!C698/100),0),0) -> 0 | AA33: =IF(Определители!I33="9",ROUND((C33+E33)*(Начисления!M33/100)*('Форма 4'!C701/100),0),0) -> 0 | AB33: =IF(Определители!I33="9",ROUND((C33+E33)*(100-Начисления!M33/100)*('Форма 4'!C701/100),0),0) -> 0 | AC33: =IF(Определители!I33="9",ROUND(B33*Начисления!M33/100,0),0) -> 0 | AD33: =IF(Определители!I33="9",ROUND(B33*(100-Начисления!M33)/100,0),0) -> 0 | AE33: =ROUND('Форма 4'!C685*'Базовые цены за единицу'!AE33,0) -> 0 | AH33: =ROUND('Форма 4'!C685*'Базовые цены за единицу'!AH33,0) -> 0 | AI33: =ROUND('Форма 4'!C685*'Базовые цены за единицу'!AI33,0) -> 0 | AJ33: =ROUND('Форма 4'!C685*'Базовые цены за единицу'!AJ33,0) -> 0 | AK33: =ROUND('Форма 4'!C685*'Базовые цены за единицу'!AK33,0) -> 0
A34: ='Форма 4'!A705 -> 20. | B34: 3012 | C34: =ROUND('Форма 4'!C705*'Базовые цены за единицу'!C34,0) -> 409 | D34: =ROUND('Форма 4'!C705*'Базовые цены за единицу'!D34,0) -> 2552 | E34: =ROUND('Форма 4'!C705*'Базовые цены за единицу'!E34,0) -> 291 | F34: =ROUND('Форма 4'!C705*'Базовые цены за единицу'!F34,0) -> 51 | G34: =ROUND('Форма 4'!C705*'Базовые цены за единицу'!G34,0) -> 0 | H34: =ROUND('Форма 4'!C705*'Базовые цены за единицу'!H34,0) -> 0 | I34: =ОКРУГЛВСЕ('Форма 4'!C705*'Базовые цены за единицу'!I34,8) -> 35.3892 | J34: =ОКРУГЛВСЕ('Форма 4'!C705*'Базовые цены за единицу'!J34,8) -> 0 | K34: =ОКРУГЛВСЕ('Форма 4'!C705*'Базовые цены за единицу'!K34,8) -> 17.6022 | L34: =ROUND('Форма 4'!C705*'Базовые цены за единицу'!L34,0) -> 0 | M34: =ROUND('Форма 4'!C705*'Базовые цены за единицу'!M34,0) -> 0 | N34: =ROUND((C34+E34)*'Форма 4'!C716/100,0) -> 994 | O34: =ROUND((C34+E34)*'Форма 4'!C719/100,0) -> 567 | P34: =ROUND('Форма 4'!C705*'Базовые цены за единицу'!P34,0) -> 581 | Q34: =ROUND('Форма 4'!C705*'Базовые цены за единицу'!Q34,0) -> 413 | R34: =ROUND('Форма 4'!C705*'Базовые цены за единицу'!R34,0) -> 331 | S34: =ROUND('Форма 4'!C705*'Базовые цены за единицу'!S34,0) -> 236 | T34: =ROUND('Форма 4'!C705*'Базовые цены за единицу'!T34,0) -> 0 | U34: =ROUND('Форма 4'!C705*'Базовые цены за единицу'!U34,0) -> 0 | V34: =ROUND('Форма 4'!C705*'Базовые цены за единицу'!V34,0) -> 0 | X34: =ROUND('Форма 4'!C705*'Базовые цены за единицу'!X34,0) -> 0 | Y34: =IF(Определители!I34="9",ROUND((C34+E34)*(Начисления!M34/100)*('Форма 4'!C716/100),0),0) -> 0 | Z34: =IF(Определители!I34="9",ROUND((C34+E34)*(100-Начисления!M34/100)*('Форма 4'!C716/100),0),0) -> 0 | AA34: =IF(Определители!I34="9",ROUND((C34+E34)*(Начисления!M34/100)*('Форма 4'!C719/100),0),0) -> 0 | AB34: =IF(Определители!I34="9",ROUND((C34+E34)*(100-Начисления!M34/100)*('Форма 4'!C719/100),0),0) -> 0 | AC34: =IF(Определители!I34="9",ROUND(B34*Начисления!M34/100,0),0) -> 0 | AD34: =IF(Определители!I34="9",ROUND(B34*(100-Начисления!M34)/100,0),0) -> 0 | AE34: =ROUND('Форма 4'!C705*'Базовые цены за единицу'!AE34,0) -> 0 | AH34: =ROUND('Форма 4'!C705*'Базовые цены за единицу'!AH34,0) -> 0 | AI34: =ROUND('Форма 4'!C705*'Базовые цены за единицу'!AI34,0) -> 0 | AJ34: =ROUND('Форма 4'!C705*'Базовые цены за единицу'!AJ34,0) -> 0 | AK34: =ROUND('Форма 4'!C705*'Базовые цены за единицу'!AK34,0) -> 0
A35: ='Форма 4'!A723 -> 21. | B35: 44325 | C35: =ROUND('Форма 4'!C723*'Базовые цены за единицу'!C35,0) -> 0 | D35: =ROUND('Форма 4'!C723*'Базовые цены за единицу'!D35,0) -> 0 | E35: =ROUND('Форма 4'!C723*'Базовые цены за единицу'!E35,0) -> 0 | F35: =ROUND('Форма 4'!C723*'Базовые цены за единицу'!F35,0) -> 44325 | G35: =ROUND('Форма 4'!C723*'Базовые цены за единицу'!G35,0) -> 41540 | H35: =ROUND('Форма 4'!C723*'Базовые цены за единицу'!H35,0) -> 0 | I35: =ОКРУГЛВСЕ('Форма 4'!C723*'Базовые цены за единицу'!I35,8) -> 0 | J35: =ОКРУГЛВСЕ('Форма 4'!C723*'Базовые цены за единицу'!J35,8) -> 0 | K35: =ОКРУГЛВСЕ('Форма 4'!C723*'Базовые цены за единицу'!K35,8) -> 0 | L35: =ROUND('Форма 4'!C723*'Базовые цены за единицу'!L35,0) -> 85470 | M35: =ROUND('Форма 4'!C723*'Базовые цены за единицу'!M35,0) -> 0 | N35: =ROUND((C35+E35)*'Форма 4'!C735/100,0) -> 0 | O35: =ROUND((C35+E35)*'Форма 4'!C738/100,0) -> 0 | P35: =ROUND('Форма 4'!C723*'Базовые цены за единицу'!P35,0) -> 0 | Q35: =ROUND('Форма 4'!C723*'Базовые цены за единицу'!Q35,0) -> 0 | R35: =ROUND('Форма 4'!C723*'Базовые цены за единицу'!R35,0) -> 0 | S35: =ROUND('Форма 4'!C723*'Базовые цены за единицу'!S35,0) -> 0 | T35: =ROUND('Форма 4'!C723*'Базовые цены за единицу'!T35,0) -> 0 | U35: =ROUND('Форма 4'!C723*'Базовые цены за единицу'!U35,0) -> 0 | V35: =ROUND('Форма 4'!C723*'Базовые цены за единицу'!V35,0) -> 0 | X35: =ROUND('Форма 4'!C723*'Базовые цены за единицу'!X35,0) -> 0 | Y35: =IF(Определители!I35="9",ROUND((C35+E35)*(Начисления!M35/100)*('Форма 4'!C735/100),0),0) -> 0 | Z35: =IF(Определители!I35="9",ROUND((C35+E35)*(100-Начисления!M35/100)*('Форма 4'!C735/100),0),0) -> 0 | AA35: =IF(Определители!I35="9",ROUND((C35+E35)*(Начисления!M35/100)*('Форма 4'!C738/100),0),0) -> 0 | AB35: =IF(Определители!I35="9",ROUND((C35+E35)*(100-Начисления!M35/100)*('Форма 4'!C738/100),0),0) -> 0 | AC35: =IF(Определители!I35="9",ROUND(B35*Начисления!M35/100,0),0) -> 0 | AD35: =IF(Определители!I35="9",ROUND(B35*(100-Начисления!M35)/100,0),0) -> 0 | AE35: =ROUND('Форма 4'!C723*'Базовые цены за единицу'!AE35,0) -> 0 | AH35: =ROUND('Форма 4'!C723*'Базовые цены за единицу'!AH35,0) -> 0 | AI35: =ROUND('Форма 4'!C723*'Базовые цены за единицу'!AI35,0) -> 0 | AJ35: =ROUND('Форма 4'!C723*'Базовые цены за единицу'!AJ35,0) -> 0 | AK35: =ROUND('Форма 4'!C723*'Базовые цены за единицу'!AK35,0) -> 0
A36: ='Форма 4'!A742 -> 22. | B36: 3176 | C36: =ROUND('Форма 4'!C742*'Базовые цены за единицу'!C36,0) -> 409 | D36: =ROUND('Форма 4'!C742*'Базовые цены за единицу'!D36,0) -> 2559 | E36: =ROUND('Форма 4'!C742*'Базовые цены за единицу'!E36,0) -> 291 | F36: =ROUND('Форма 4'!C742*'Базовые цены за единицу'!F36,0) -> 208 | G36: =ROUND('Форма 4'!C742*'Базовые цены за единицу'!G36,0) -> 0 | H36: =ROUND('Форма 4'!C742*'Базовые цены за единицу'!H36,0) -> 0 | I36: =ОКРУГЛВСЕ('Форма 4'!C742*'Базовые цены за единицу'!I36,8) -> 35.3892 | J36: =ОКРУГЛВСЕ('Форма 4'!C742*'Базовые цены за единицу'!J36,8) -> 0 | K36: =ОКРУГЛВСЕ('Форма 4'!C742*'Базовые цены за единицу'!K36,8) -> 17.62992 | L36: =ROUND('Форма 4'!C742*'Базовые цены за единицу'!L36,0) -> 0 | M36: =ROUND('Форма 4'!C742*'Базовые цены за единицу'!M36,0) -> 0 | N36: =ROUND((C36+E36)*'Форма 4'!C753/100,0) -> 994 | O36: =ROUND((C36+E36)*'Форма 4'!C756/100,0) -> 567 | P36: =ROUND('Форма 4'!C742*'Базовые цены за единицу'!P36,0) -> 581 | Q36: =ROUND('Форма 4'!C742*'Базовые цены за единицу'!Q36,0) -> 414 | R36: =ROUND('Форма 4'!C742*'Базовые цены за единицу'!R36,0) -> 331 | S36: =ROUND('Форма 4'!C742*'Базовые цены за единицу'!S36,0) -> 236 | T36: =ROUND('Форма 4'!C742*'Базовые цены за единицу'!T36,0) -> 0 | U36: =ROUND('Форма 4'!C742*'Базовые цены за единицу'!U36,0) -> 0 | V36: =ROUND('Форма 4'!C742*'Базовые цены за единицу'!V36,0) -> 0 | X36: =ROUND('Форма 4'!C742*'Базовые цены за единицу'!X36,0) -> 0 | Y36: =IF(Определители!I36="9",ROUND((C36+E36)*(Начисления!M36/100)*('Форма 4'!C753/100),0),0) -> 0 | Z36: =IF(Определители!I36="9",ROUND((C36+E36)*(100-Начисления!M36/100)*('Форма 4'!C753/100),0),0) -> 0 | AA36: =IF(Определители!I36="9",ROUND((C36+E36)*(Начисления!M36/100)*('Форма 4'!C756/100),0),0) -> 0 | AB36: =IF(Определители!I36="9",ROUND((C36+E36)*(100-Начисления!M36/100)*('Форма 4'!C756/100),0),0) -> 0 | AC36: =IF(Определители!I36="9",ROUND(B36*Начисления!M36/100,0),0) -> 0 | AD36: =IF(Определители!I36="9",ROUND(B36*(100-Начисления!M36)/100,0),0) -> 0 | AE36: =ROUND('Форма 4'!C742*'Базовые цены за единицу'!AE36,0) -> 0 | AH36: =ROUND('Форма 4'!C742*'Базовые цены за единицу'!AH36,0) -> 0 | AI36: =ROUND('Форма 4'!C742*'Базовые цены за единицу'!AI36,0) -> 0 | AJ36: =ROUND('Форма 4'!C742*'Базовые цены за единицу'!AJ36,0) -> 0 | AK36: =ROUND('Форма 4'!C742*'Базовые цены за единицу'!AK36,0) -> 0
A37: ='Форма 4'!A760 -> 23. | B37: -14 | C37: =ROUND('Форма 4'!C760*'Базовые цены за единицу'!C37,0) -> -2 | D37: =ROUND('Форма 4'!C760*'Базовые цены за единицу'!D37,0) -> -7 | E37: =ROUND('Форма 4'!C760*'Базовые цены за единицу'!E37,0) -> 0 | F37: =ROUND('Форма 4'!C760*'Базовые цены за единицу'!F37,0) -> -5 | G37: =ROUND('Форма 4'!C760*'Базовые цены за единицу'!G37,0) -> 0 | H37: =ROUND('Форма 4'!C760*'Базовые цены за единицу'!H37,0) -> 0 | I37: =ОКРУГЛВСЕ('Форма 4'!C760*'Базовые цены за единицу'!I37,8) -> -0.16632 | J37: =ОКРУГЛВСЕ('Форма 4'!C760*'Базовые цены за единицу'!J37,8) -> 0 | K37: =ОКРУГЛВСЕ('Форма 4'!C760*'Базовые цены за единицу'!K37,8) -> 0 | L37: =ROUND('Форма 4'!C760*'Базовые цены за единицу'!L37,0) -> 0 | M37: =ROUND('Форма 4'!C760*'Базовые цены за единицу'!M37,0) -> 0 | N37: =ROUND((C37+E37)*'Форма 4'!C772/100,0) -> -3 | O37: =ROUND((C37+E37)*'Форма 4'!C775/100,0) -> -2 | P37: =ROUND('Форма 4'!C760*'Базовые цены за единицу'!P37,0) -> -3 | Q37: =ROUND('Форма 4'!C760*'Базовые цены за единицу'!Q37,0) -> 0 | R37: =ROUND('Форма 4'!C760*'Базовые цены за единицу'!R37,0) -> -2 | S37: =ROUND('Форма 4'!C760*'Базовые цены за единицу'!S37,0) -> 0 | T37: =ROUND('Форма 4'!C760*'Базовые цены за единицу'!T37,0) -> 0 | U37: =ROUND('Форма 4'!C760*'Базовые цены за единицу'!U37,0) -> 0 | V37: =ROUND('Форма 4'!C760*'Базовые цены за единицу'!V37,0) -> 0 | X37: =ROUND('Форма 4'!C760*'Базовые цены за единицу'!X37,0) -> 0 | Y37: =IF(Определители!I37="9",ROUND((C37+E37)*(Начисления!M37/100)*('Форма 4'!C772/100),0),0) -> 0 | Z37: =IF(Определители!I37="9",ROUND((C37+E37)*(100-Начисления!M37/100)*('Форма 4'!C772/100),0),0) -> 0 | AA37: =IF(Определители!I37="9",ROUND((C37+E37)*(Начисления!M37/100)*('Форма 4'!C775/100),0),0) -> 0 | AB37: =IF(Определители!I37="9",ROUND((C37+E37)*(100-Начисления!M37/100)*('Форма 4'!C775/100),0),0) -> 0 | AC37: =IF(Определители!I37="9",ROUND(B37*Начисления!M37/100,0),0) -> 0 | AD37: =IF(Определители!I37="9",ROUND(B37*(100-Начисления!M37)/100,0),0) -> 0 | AE37: =ROUND('Форма 4'!C760*'Базовые цены за единицу'!AE37,0) -> 0 | AH37: =ROUND('Форма 4'!C760*'Базовые цены за единицу'!AH37,0) -> 0 | AI37: =ROUND('Форма 4'!C760*'Базовые цены за единицу'!AI37,0) -> 0 | AJ37: =ROUND('Форма 4'!C760*'Базовые цены за единицу'!AJ37,0) -> 0 | AK37: =ROUND('Форма 4'!C760*'Базовые цены за единицу'!AK37,0) -> 0
A38: ='Форма 4'!A779 -> 24. | B38: 38180 | C38: =ROUND('Форма 4'!C779*'Базовые цены за единицу'!C38,0) -> 0 | D38: =ROUND('Форма 4'!C779*'Базовые цены за единицу'!D38,0) -> 0 | E38: =ROUND('Форма 4'!C779*'Базовые цены за единицу'!E38,0) -> 0 | F38: =ROUND('Форма 4'!C779*'Базовые цены за единицу'!F38,0) -> 38180 | G38: =ROUND('Форма 4'!C779*'Базовые цены за единицу'!G38,0) -> 35932 | H38: =ROUND('Форма 4'!C779*'Базовые цены за единицу'!H38,0) -> 0 | I38: =ОКРУГЛВСЕ('Форма 4'!C779*'Базовые цены за единицу'!I38,8) -> 0 | J38: =ОКРУГЛВСЕ('Форма 4'!C779*'Базовые цены за единицу'!J38,8) -> 0 | K38: =ОКРУГЛВСЕ('Форма 4'!C779*'Базовые цены за единицу'!K38,8) -> 0 | L38: =ROUND('Форма 4'!C779*'Базовые цены за единицу'!L38,0) -> 66900 | M38: =ROUND('Форма 4'!C779*'Базовые цены за единицу'!M38,0) -> 0 | N38: =ROUND((C38+E38)*'Форма 4'!C791/100,0) -> 0 | O38: =ROUND((C38+E38)*'Форма 4'!C794/100,0) -> 0 | P38: =ROUND('Форма 4'!C779*'Базовые цены за единицу'!P38,0) -> 0 | Q38: =ROUND('Форма 4'!C779*'Базовые цены за единицу'!Q38,0) -> 0 | R38: =ROUND('Форма 4'!C779*'Базовые цены за единицу'!R38,0) -> 0 | S38: =ROUND('Форма 4'!C779*'Базовые цены за единицу'!S38,0) -> 0 | T38: =ROUND('Форма 4'!C779*'Базовые цены за единицу'!T38,0) -> 0 | U38: =ROUND('Форма 4'!C779*'Базовые цены за единицу'!U38,0) -> 0 | V38: =ROUND('Форма 4'!C779*'Базовые цены за единицу'!V38,0) -> 0 | X38: =ROUND('Форма 4'!C779*'Базовые цены за единицу'!X38,0) -> 0 | Y38: =IF(Определители!I38="9",ROUND((C38+E38)*(Начисления!M38/100)*('Форма 4'!C791/100),0),0) -> 0 | Z38: =IF(Определители!I38="9",ROUND((C38+E38)*(100-Начисления!M38/100)*('Форма 4'!C791/100),0),0) -> 0 | AA38: =IF(Определители!I38="9",ROUND((C38+E38)*(Начисления!M38/100)*('Форма 4'!C794/100),0),0) -> 0 | AB38: =IF(Определители!I38="9",ROUND((C38+E38)*(100-Начисления!M38/100)*('Форма 4'!C794/100),0),0) -> 0 | AC38: =IF(Определители!I38="9",ROUND(B38*Начисления!M38/100,0),0) -> 0 | AD38: =IF(Определители!I38="9",ROUND(B38*(100-Начисления!M38)/100,0),0) -> 0 | AE38: =ROUND('Форма 4'!C779*'Базовые цены за единицу'!AE38,0) -> 0 | AH38: =ROUND('Форма 4'!C779*'Базовые цены за единицу'!AH38,0) -> 0 | AI38: =ROUND('Форма 4'!C779*'Базовые цены за единицу'!AI38,0) -> 0 | AJ38: =ROUND('Форма 4'!C779*'Базовые цены за единицу'!AJ38,0) -> 0 | AK38: =ROUND('Форма 4'!C779*'Базовые цены за единицу'!AK38,0) -> 0
B40: Раздел 4. Установка бортовых камней
A42: ='Форма 4'!A959 -> 25. | B42: =ROUND(C42+D42+F42+AF42+AG42,0) -> 13007 | C42: =ROUND('Форма 4'!C959*'Базовые цены за единицу'!C42,0) -> 2273 | D42: =ROUND('Форма 4'!C959*'Базовые цены за единицу'!D42,0) -> 306 | E42: =ROUND('Форма 4'!C959*'Базовые цены за единицу'!E42,0) -> 32 | F42: =ROUND('Форма 4'!C959*'Базовые цены за единицу'!F42,0) -> 10428 | G42: =ROUND('Форма 4'!C959*'Базовые цены за единицу'!G42,0) -> 0 | H42: =ROUND('Форма 4'!C959*'Базовые цены за единицу'!H42,0) -> 0 | I42: =ОКРУГЛВСЕ('Форма 4'!C959*'Базовые цены за единицу'!I42,8) -> 223.6752 | J42: =ОКРУГЛВСЕ('Форма 4'!C959*'Базовые цены за единицу'!J42,8) -> 0 | K42: =ОКРУГЛВСЕ('Форма 4'!C959*'Базовые цены за единицу'!K42,8) -> 1.9992 | L42: =ROUND('Форма 4'!C959*'Базовые цены за единицу'!L42,0) -> 0 | M42: =ROUND('Форма 4'!C959*'Базовые цены за единицу'!M42,0) -> 0 | N42: =ROUND((C42+E42)*'Форма 4'!C972/100,0) -> 3273 | O42: =ROUND((C42+E42)*'Форма 4'!C975/100,0) -> 1867 | P42: =ROUND('Форма 4'!C959*'Базовые цены за единицу'!P42,0) -> 3227 | Q42: =ROUND('Форма 4'!C959*'Базовые цены за единицу'!Q42,0) -> 46 | R42: =ROUND('Форма 4'!C959*'Базовые цены за единицу'!R42,0) -> 1841 | S42: =ROUND('Форма 4'!C959*'Базовые цены за единицу'!S42,0) -> 26 | T42: =ROUND('Форма 4'!C959*'Базовые цены за единицу'!T42,0) -> 0 | U42: =ROUND('Форма 4'!C959*'Базовые цены за единицу'!U42,0) -> 0 | V42: =ROUND('Форма 4'!C959*'Базовые цены за единицу'!V42,0) -> 0 | X42: =ROUND('Форма 4'!C959*'Базовые цены за единицу'!X42,0) -> 0 | Y42: =IF(Определители!I42="9",ROUND((C42+E42)*(Начисления!M42/100)*('Форма 4'!C972/100),0),0) -> 0 | Z42: =IF(Определители!I42="9",ROUND((C42+E42)*(100-Начисления!M42/100)*('Форма 4'!C972/100),0),0) -> 0 | AA42: =IF(Определители!I42="9",ROUND((C42+E42)*(Начисления!M42/100)*('Форма 4'!C975/100),0),0) -> 0 | AB42: =IF(Определители!I42="9",ROUND((C42+E42)*(100-Начисления!M42/100)*('Форма 4'!C975/100),0),0) -> 0 | AC42: =IF(Определители!I42="9",ROUND(B42*Начисления!M42/100,0),0) -> 0 | AD42: =IF(Определители!I42="9",ROUND(B42*(100-Начисления!M42)/100,0),0) -> 0 | AE42: =ROUND('Форма 4'!C959*'Базовые цены за единицу'!AE42,0) -> 0 | AH42: =ROUND('Форма 4'!C959*'Базовые цены за единицу'!AH42,0) -> 0 | AI42: =ROUND('Форма 4'!C959*'Базовые цены за единицу'!AI42,0) -> 0 | AJ42: =ROUND('Форма 4'!C959*'Базовые цены за единицу'!AJ42,0) -> 0 | AK42: =ROUND('Форма 4'!C959*'Базовые цены за единицу'!AK42,0) -> 0
A43: ='Форма 4'!A979 -> 26. | B43: =ROUND(C43+D43+F43+AF43+AG43,0) -> -9540 | C43: =ROUND('Форма 4'!C979*'Базовые цены за единицу'!C43,0) -> -248 | D43: =ROUND('Форма 4'!C979*'Базовые цены за единицу'!D43,0) -> -384 | E43: =ROUND('Форма 4'!C979*'Базовые цены за единицу'!E43,0) -> -43 | F43: =ROUND('Форма 4'!C979*'Базовые цены за единицу'!F43,0) -> -8908 | G43: =ROUND('Форма 4'!C979*'Базовые цены за единицу'!G43,0) -> -7866 | H43: =ROUND('Форма 4'!C979*'Базовые цены за единицу'!H43,0) -> 0 | I43: =ОКРУГЛВСЕ('Форма 4'!C979*'Базовые цены за единицу'!I43,8) -> -26.46 | J43: =ОКРУГЛВСЕ('Форма 4'!C979*'Базовые цены за единицу'!J43,8) -> 0 | K43: =ОКРУГЛВСЕ('Форма 4'!C979*'Базовые цены за единицу'!K43,8) -> -2.646 | L43: =ROUND('Форма 4'!C979*'Базовые цены за единицу'!L43,0) -> 0 | M43: =ROUND('Форма 4'!C979*'Базовые цены за единицу'!M43,0) -> 0 | N43: =ROUND((C43+E43)*'Форма 4'!C993/100,0) -> -306 | O43: =ROUND((C43+E43)*'Форма 4'!C996/100,0) -> -160 | P43: =ROUND('Форма 4'!C979*'Базовые цены за единицу'!P43,0) -> -260 | Q43: =ROUND('Форма 4'!C979*'Базовые цены за единицу'!Q43,0) -> -45 | R43: =ROUND('Форма 4'!C979*'Базовые цены за единицу'!R43,0) -> -136 | S43: =ROUND('Форма 4'!C979*'Базовые цены за единицу'!S43,0) -> -24 | T43: =ROUND('Форма 4'!C979*'Базовые цены за единицу'!T43,0) -> 0 | U43: =ROUND('Форма 4'!C979*'Базовые цены за единицу'!U43,0) -> 0 | V43: =ROUND('Форма 4'!C979*'Базовые цены за единицу'!V43,0) -> 0 | X43: =ROUND('Форма 4'!C979*'Базовые цены за единицу'!X43,0) -> 0 | Y43: =IF(Определители!I43="9",ROUND((C43+E43)*(Начисления!M43/100)*('Форма 4'!C993/100),0),0) -> 0 | Z43: =IF(Определители!I43="9",ROUND((C43+E43)*(100-Начисления!M43/100)*('Форма 4'!C993/100),0),0) -> 0 | AA43: =IF(Определители!I43="9",ROUND((C43+E43)*(Начисления!M43/100)*('Форма 4'!C996/100),0),0) -> 0 | AB43: =IF(Определители!I43="9",ROUND((C43+E43)*(100-Начисления!M43/100)*('Форма 4'!C996/100),0),0) -> 0 | AC43: =IF(Определители!I43="9",ROUND(B43*Начисления!M43/100,0),0) -> 0 | AD43: =IF(Определители!I43="9",ROUND(B43*(100-Начисления!M43)/100,0),0) -> 0 | AE43: =ROUND('Форма 4'!C979*'Базовые цены за единицу'!AE43,0) -> 0 | AH43: =ROUND('Форма 4'!C979*'Базовые цены за единицу'!AH43,0) -> 0 | AI43: =ROUND('Форма 4'!C979*'Базовые цены за единицу'!AI43,0) -> 0 | AJ43: =ROUND('Форма 4'!C979*'Базовые цены за единицу'!AJ43,0) -> 0 | AK43: =ROUND('Форма 4'!C979*'Базовые цены за единицу'!AK43,0) -> 0
A44: ='Форма 4'!A1000 -> 27. | B44: =ROUND(C44+D44+F44+AF44+AG44,0) -> 5771 | C44: =ROUND('Форма 4'!C1000*'Базовые цены за единицу'!C44,0) -> 0 | D44: =ROUND('Форма 4'!C1000*'Базовые цены за единицу'!D44,0) -> 0 | E44: =ROUND('Форма 4'!C1000*'Базовые цены за единицу'!E44,0) -> 0 | F44: =ROUND('Форма 4'!C1000*'Базовые цены за единицу'!F44,0) -> 5771 | G44: =ROUND('Форма 4'!C1000*'Базовые цены за единицу'!G44,0) -> 5771 | H44: =ROUND('Форма 4'!C1000*'Базовые цены за единицу'!H44,0) -> 0 | I44: =ОКРУГЛВСЕ('Форма 4'!C1000*'Базовые цены за единицу'!I44,8) -> 0 | J44: =ОКРУГЛВСЕ('Форма 4'!C1000*'Базовые цены за единицу'!J44,8) -> 0 | K44: =ОКРУГЛВСЕ('Форма 4'!C1000*'Базовые цены за единицу'!K44,8) -> 0 | L44: =ROUND('Форма 4'!C1000*'Базовые цены за единицу'!L44,0) -> 0 | M44: =ROUND('Форма 4'!C1000*'Базовые цены за единицу'!M44,0) -> 0 | N44: =ROUND((C44+E44)*'Форма 4'!C1013/100,0) -> 0 | O44: =ROUND((C44+E44)*'Форма 4'!C1016/100,0) -> 0 | P44: =ROUND('Форма 4'!C1000*'Базовые цены за единицу'!P44,0) -> 0 | Q44: =ROUND('Форма 4'!C1000*'Базовые цены за единицу'!Q44,0) -> 0 | R44: =ROUND('Форма 4'!C1000*'Базовые цены за единицу'!R44,0) -> 0 | S44: =ROUND('Форма 4'!C1000*'Базовые цены за единицу'!S44,0) -> 0 | T44: =ROUND('Форма 4'!C1000*'Базовые цены за единицу'!T44,0) -> 0 | U44: =ROUND('Форма 4'!C1000*'Базовые цены за единицу'!U44,0) -> 0 | V44: =ROUND('Форма 4'!C1000*'Базовые цены за единицу'!V44,0) -> 0 | X44: =ROUND('Форма 4'!C1000*'Базовые цены за единицу'!X44,0) -> 0 | Y44: =IF(Определители!I44="9",ROUND((C44+E44)*(Начисления!M44/100)*('Форма 4'!C1013/100),0),0) -> 0 | Z44: =IF(Определители!I44="9",ROUND((C44+E44)*(100-Начисления!M44/100)*('Форма 4'!C1013/100),0),0) -> 0 | AA44: =IF(Определители!I44="9",ROUND((C44+E44)*(Начисления!M44/100)*('Форма 4'!C1016/100),0),0) -> 0 | AB44: =IF(Определители!I44="9",ROUND((C44+E44)*(100-Начисления!M44/100)*('Форма 4'!C1016/100),0),0) -> 0 | AC44: =IF(Определители!I44="9",ROUND(B44*Начисления!M44/100,0),0) -> 0 | AD44: =IF(Определители!I44="9",ROUND(B44*(100-Начисления!M44)/100,0),0) -> 0 | AE44: =ROUND('Форма 4'!C1000*'Базовые цены за единицу'!AE44,0) -> 0 | AH44: =ROUND('Форма 4'!C1000*'Базовые цены за единицу'!AH44,0) -> 0 | AI44: =ROUND('Форма 4'!C1000*'Базовые цены за единицу'!AI44,0) -> 0 | AJ44: =ROUND('Форма 4'!C1000*'Базовые цены за единицу'!AJ44,0) -> 0 | AK44: =ROUND('Форма 4'!C1000*'Базовые цены за единицу'!AK44,0) -> 0
A45: ='Форма 4'!A1020 -> 28. | B45: =ROUND(C45+D45+F45+AF45+AG45,0) -> 858 | C45: =ROUND('Форма 4'!C1020*'Базовые цены за единицу'!C45,0) -> 0 | D45: =ROUND('Форма 4'!C1020*'Базовые цены за единицу'!D45,0) -> 0 | E45: =ROUND('Форма 4'!C1020*'Базовые цены за единицу'!E45,0) -> 0 | F45: =ROUND('Форма 4'!C1020*'Базовые цены за единицу'!F45,0) -> 858 | G45: =ROUND('Форма 4'!C1020*'Базовые цены за единицу'!G45,0) -> 858 | H45: =ROUND('Форма 4'!C1020*'Базовые цены за единицу'!H45,0) -> 0 | I45: =ОКРУГЛВСЕ('Форма 4'!C1020*'Базовые цены за единицу'!I45,8) -> 0 | J45: =ОКРУГЛВСЕ('Форма 4'!C1020*'Базовые цены за единицу'!J45,8) -> 0 | K45: =ОКРУГЛВСЕ('Форма 4'!C1020*'Базовые цены за единицу'!K45,8) -> 0 | L45: =ROUND('Форма 4'!C1020*'Базовые цены за единицу'!L45,0) -> 0 | M45: =ROUND('Форма 4'!C1020*'Базовые цены за единицу'!M45,0) -> 0 | N45: =ROUND((C45+E45)*'Форма 4'!C1033/100,0) -> 0 | O45: =ROUND((C45+E45)*'Форма 4'!C1036/100,0) -> 0 | P45: =ROUND('Форма 4'!C1020*'Базовые цены за единицу'!P45,0) -> 0 | Q45: =ROUND('Форма 4'!C1020*'Базовые цены за единицу'!Q45,0) -> 0 | R45: =ROUND('Форма 4'!C1020*'Базовые цены за единицу'!R45,0) -> 0 | S45: =ROUND('Форма 4'!C1020*'Базовые цены за единицу'!S45,0) -> 0 | T45: =ROUND('Форма 4'!C1020*'Базовые цены за единицу'!T45,0) -> 0 | U45: =ROUND('Форма 4'!C1020*'Базовые цены за единицу'!U45,0) -> 0 | V45: =ROUND('Форма 4'!C1020*'Базовые цены за единицу'!V45,0) -> 0 | X45: =ROUND('Форма 4'!C1020*'Базовые цены за единицу'!X45,0) -> 0 | Y45: =IF(Определители!I45="9",ROUND((C45+E45)*(Начисления!M45/100)*('Форма 4'!C1033/100),0),0) -> 0 | Z45: =IF(Определители!I45="9",ROUND((C45+E45)*(100-Начисления!M45/100)*('Форма 4'!C1033/100),0),0) -> 0 | AA45: =IF(Определители!I45="9",ROUND((C45+E45)*(Начисления!M45/100)*('Форма 4'!C1036/100),0),0) -> 0 | AB45: =IF(Определители!I45="9",ROUND((C45+E45)*(100-Начисления!M45/100)*('Форма 4'!C1036/100),0),0) -> 0 | AC45: =IF(Определители!I45="9",ROUND(B45*Начисления!M45/100,0),0) -> 0 | AD45: =IF(Определители!I45="9",ROUND(B45*(100-Начисления!M45)/100,0),0) -> 0 | AE45: =ROUND('Форма 4'!C1020*'Базовые цены за единицу'!AE45,0) -> 0 | AH45: =ROUND('Форма 4'!C1020*'Базовые цены за единицу'!AH45,0) -> 0 | AI45: =ROUND('Форма 4'!C1020*'Базовые цены за единицу'!AI45,0) -> 0 | AJ45: =ROUND('Форма 4'!C1020*'Базовые цены за единицу'!AJ45,0) -> 0 | AK45: =ROUND('Форма 4'!C1020*'Базовые цены за единицу'!AK45,0) -> 0
A46: ='Форма 4'!A1040 -> 29. | B46: =ROUND(C46+D46+F46+AF46+AG46,0) -> 8475 | C46: =ROUND('Форма 4'!C1040*'Базовые цены за единицу'!C46,0) -> 0 | D46: =ROUND('Форма 4'!C1040*'Базовые цены за единицу'!D46,0) -> 0 | E46: =ROUND('Форма 4'!C1040*'Базовые цены за единицу'!E46,0) -> 0 | F46: =ROUND('Форма 4'!C1040*'Базовые цены за единицу'!F46,0) -> 8475 | G46: =ROUND('Форма 4'!C1040*'Базовые цены за единицу'!G46,0) -> 8475 | H46: =ROUND('Форма 4'!C1040*'Базовые цены за единицу'!H46,0) -> 0 | I46: =ОКРУГЛВСЕ('Форма 4'!C1040*'Базовые цены за единицу'!I46,8) -> 0 | J46: =ОКРУГЛВСЕ('Форма 4'!C1040*'Базовые цены за единицу'!J46,8) -> 0 | K46: =ОКРУГЛВСЕ('Форма 4'!C1040*'Базовые цены за единицу'!K46,8) -> 0 | L46: =ROUND('Форма 4'!C1040*'Базовые цены за единицу'!L46,0) -> 0 | M46: =ROUND('Форма 4'!C1040*'Базовые цены за единицу'!M46,0) -> 0 | N46: =ROUND((C46+E46)*'Форма 4'!C1053/100,0) -> 0 | O46: =ROUND((C46+E46)*'Форма 4'!C1056/100,0) -> 0 | P46: =ROUND('Форма 4'!C1040*'Базовые цены за единицу'!P46,0) -> 0 | Q46: =ROUND('Форма 4'!C1040*'Базовые цены за единицу'!Q46,0) -> 0 | R46: =ROUND('Форма 4'!C1040*'Базовые цены за единицу'!R46,0) -> 0 | S46: =ROUND('Форма 4'!C1040*'Базовые цены за единицу'!S46,0) -> 0 | T46: =ROUND('Форма 4'!C1040*'Базовые цены за единицу'!T46,0) -> 0 | U46: =ROUND('Форма 4'!C1040*'Базовые цены за единицу'!U46,0) -> 0 | V46: =ROUND('Форма 4'!C1040*'Базовые цены за единицу'!V46,0) -> 0 | X46: =ROUND('Форма 4'!C1040*'Базовые цены за единицу'!X46,0) -> 0 | Y46: =IF(Определители!I46="9",ROUND((C46+E46)*(Начисления!M46/100)*('Форма 4'!C1053/100),0),0) -> 0 | Z46: =IF(Определители!I46="9",ROUND((C46+E46)*(100-Начисления!M46/100)*('Форма 4'!C1053/100),0),0) -> 0 | AA46: =IF(Определители!I46="9",ROUND((C46+E46)*(Начисления!M46/100)*('Форма 4'!C1056/100),0),0) -> 0 | AB46: =IF(Определители!I46="9",ROUND((C46+E46)*(100-Начисления!M46/100)*('Форма 4'!C1056/100),0),0) -> 0 | AC46: =IF(Определители!I46="9",ROUND(B46*Начисления!M46/100,0),0) -> 0 | AD46: =IF(Определители!I46="9",ROUND(B46*(100-Начисления!M46)/100,0),0) -> 0 | AE46: =ROUND('Форма 4'!C1040*'Базовые цены за единицу'!AE46,0) -> 0 | AH46: =ROUND('Форма 4'!C1040*'Базовые цены за единицу'!AH46,0) -> 0 | AI46: =ROUND('Форма 4'!C1040*'Базовые цены за единицу'!AI46,0) -> 0 | AJ46: =ROUND('Форма 4'!C1040*'Базовые цены за единицу'!AJ46,0) -> 0 | AK46: =ROUND('Форма 4'!C1040*'Базовые цены за единицу'!AK46,0) -> 0
B48: Раздел 5. Устройство тротуаров
A50: ='Форма 4'!A1219 -> 30. | B50: =ROUND(C50+D50+F50+AF50+AG50,0) -> 256 | C50: =ROUND('Форма 4'!C1219*'Базовые цены за единицу'!C50,0) -> 115 | D50: =ROUND('Форма 4'!C1219*'Базовые цены за единицу'!D50,0) -> 139 | E50: =ROUND('Форма 4'!C1219*'Базовые цены за единицу'!E50,0) -> 18 | F50: =ROUND('Форма 4'!C1219*'Базовые цены за единицу'!F50,0) -> 2 | G50: =ROUND('Форма 4'!C1219*'Базовые цены за единицу'!G50,0) -> 0 | H50: =ROUND('Форма 4'!C1219*'Базовые цены за единицу'!H50,0) -> 0 | I50: =ОКРУГЛВСЕ('Форма 4'!C1219*'Базовые цены за единицу'!I50,8) -> 11.2832 | J50: =ОКРУГЛВСЕ('Форма 4'!C1219*'Базовые цены за единицу'!J50,8) -> 0 | K50: =ОКРУГЛВСЕ('Форма 4'!C1219*'Базовые цены за единицу'!K50,8) -> 1.3631 | L50: =ROUND('Форма 4'!C1219*'Базовые цены за единицу'!L50,0) -> 0 | M50: =ROUND('Форма 4'!C1219*'Базовые цены за единицу'!M50,0) -> 0 | N50: =ROUND((C50+E50)*'Форма 4'!C1232/100,0) -> 189 | O50: =ROUND((C50+E50)*'Форма 4'!C1235/100,0) -> 108 | P50: =ROUND('Форма 4'!C1219*'Базовые цены за единицу'!P50,0) -> 163 | Q50: =ROUND('Форма 4'!C1219*'Базовые цены за единицу'!Q50,0) -> 26 | R50: =ROUND('Форма 4'!C1219*'Базовые цены за единицу'!R50,0) -> 93 | S50: =ROUND('Форма 4'!C1219*'Базовые цены за единицу'!S50,0) -> 15 | T50: =ROUND('Форма 4'!C1219*'Базовые цены за единицу'!T50,0) -> 0 | U50: =ROUND('Форма 4'!C1219*'Базовые цены за единицу'!U50,0) -> 0 | V50: =ROUND('Форма 4'!C1219*'Базовые цены за единицу'!V50,0) -> 0 | X50: =ROUND('Форма 4'!C1219*'Базовые цены за единицу'!X50,0) -> 0 | Y50: =IF(Определители!I50="9",ROUND((C50+E50)*(Начисления!M50/100)*('Форма 4'!C1232/100),0),0) -> 0 | Z50: =IF(Определители!I50="9",ROUND((C50+E50)*(100-Начисления!M50/100)*('Форма 4'!C1232/100),0),0) -> 0 | AA50: =IF(Определители!I50="9",ROUND((C50+E50)*(Начисления!M50/100)*('Форма 4'!C1235/100),0),0) -> 0 | AB50: =IF(Определители!I50="9",ROUND((C50+E50)*(100-Начисления!M50/100)*('Форма 4'!C1235/100),0),0) -> 0 | AC50: =IF(Определители!I50="9",ROUND(B50*Начисления!M50/100,0),0) -> 0 | AD50: =IF(Определители!I50="9",ROUND(B50*(100-Начисления!M50)/100,0),0) -> 0 | AE50: =ROUND('Форма 4'!C1219*'Базовые цены за единицу'!AE50,0) -> 0 | AH50: =ROUND('Форма 4'!C1219*'Базовые цены за единицу'!AH50,0) -> 0 | AI50: =ROUND('Форма 4'!C1219*'Базовые цены за единицу'!AI50,0) -> 0 | AJ50: =ROUND('Форма 4'!C1219*'Базовые цены за единицу'!AJ50,0) -> 0 | AK50: =ROUND('Форма 4'!C1219*'Базовые цены за единицу'!AK50,0) -> 0
A51: ='Форма 4'!A1239 -> 31. | B51: -12 | C51: =ROUND('Форма 4'!C1239*'Базовые цены за единицу'!C51,0) -> -5 | D51: =ROUND('Форма 4'!C1239*'Базовые цены за единицу'!D51,0) -> -7 | E51: =ROUND('Форма 4'!C1239*'Базовые цены за единицу'!E51,0) -> -1 | F51: =ROUND('Форма 4'!C1239*'Базовые цены за единицу'!F51,0) -> 0 | G51: =ROUND('Форма 4'!C1239*'Базовые цены за единицу'!G51,0) -> 0 | H51: =ROUND('Форма 4'!C1239*'Базовые цены за единицу'!H51,0) -> 0 | I51: =ОКРУГЛВСЕ('Форма 4'!C1239*'Базовые цены за единицу'!I51,8) -> -0.4644 | J51: =ОКРУГЛВСЕ('Форма 4'!C1239*'Базовые цены за единицу'!J51,8) -> 0 | K51: =ОКРУГЛВСЕ('Форма 4'!C1239*'Базовые цены за единицу'!K51,8) -> -0.086 | L51: =ROUND('Форма 4'!C1239*'Базовые цены за единицу'!L51,0) -> 0 | M51: =ROUND('Форма 4'!C1239*'Базовые цены за единицу'!M51,0) -> 0 | N51: =ROUND((C51+E51)*'Форма 4'!C1252/100,0) -> -9 | O51: =ROUND((C51+E51)*'Форма 4'!C1255/100,0) -> -5 | P51: =ROUND('Форма 4'!C1239*'Базовые цены за единицу'!P51,0) -> -7 | Q51: =ROUND('Форма 4'!C1239*'Базовые цены за единицу'!Q51,0) -> -1 | R51: =ROUND('Форма 4'!C1239*'Базовые цены за единицу'!R51,0) -> -4 | S51: =ROUND('Форма 4'!C1239*'Базовые цены за единицу'!S51,0) -> -1 | T51: =ROUND('Форма 4'!C1239*'Базовые цены за единицу'!T51,0) -> 0 | U51: =ROUND('Форма 4'!C1239*'Базовые цены за единицу'!U51,0) -> 0 | V51: =ROUND('Форма 4'!C1239*'Базовые цены за единицу'!V51,0) -> 0 | X51: =ROUND('Форма 4'!C1239*'Базовые цены за единицу'!X51,0) -> 0 | Y51: =IF(Определители!I51="9",ROUND((C51+E51)*(Начисления!M51/100)*('Форма 4'!C1252/100),0),0) -> 0 | Z51: =IF(Определители!I51="9",ROUND((C51+E51)*(100-Начисления!M51/100)*('Форма 4'!C1252/100),0),0) -> 0 | AA51: =IF(Определители!I51="9",ROUND((C51+E51)*(Начисления!M51/100)*('Форма 4'!C1255/100),0),0) -> 0 | AB51: =IF(Определители!I51="9",ROUND((C51+E51)*(100-Начисления!M51/100)*('Форма 4'!C1255/100),0),0) -> 0 | AC51: =IF(Определители!I51="9",ROUND(B51*Начисления!M51/100,0),0) -> 0 | AD51: =IF(Определители!I51="9",ROUND(B51*(100-Начисления!M51)/100,0),0) -> 0 | AE51: =ROUND('Форма 4'!C1239*'Базовые цены за единицу'!AE51,0) -> 0 | AH51: =ROUND('Форма 4'!C1239*'Базовые цены за единицу'!AH51,0) -> 0 | AI51: =ROUND('Форма 4'!C1239*'Базовые цены за единицу'!AI51,0) -> 0 | AJ51: =ROUND('Форма 4'!C1239*'Базовые цены за единицу'!AJ51,0) -> 0 | AK51: =ROUND('Форма 4'!C1239*'Базовые цены за единицу'!AK51,0) -> 0
A52: ='Форма 4'!A1259 -> 32. | B52: 363 | C52: =ROUND('Форма 4'!C1259*'Базовые цены за единицу'!C52,0) -> 0 | D52: =ROUND('Форма 4'!C1259*'Базовые цены за единицу'!D52,0) -> 0 | E52: =ROUND('Форма 4'!C1259*'Базовые цены за единицу'!E52,0) -> 0 | F52: =ROUND('Форма 4'!C1259*'Базовые цены за единицу'!F52,0) -> 363 | G52: =ROUND('Форма 4'!C1259*'Базовые цены за единицу'!G52,0) -> 363 | H52: =ROUND('Форма 4'!C1259*'Базовые цены за единицу'!H52,0) -> 0 | I52: =ОКРУГЛВСЕ('Форма 4'!C1259*'Базовые цены за единицу'!I52,8) -> 0 | J52: =ОКРУГЛВСЕ('Форма 4'!C1259*'Базовые цены за единицу'!J52,8) -> 0 | K52: =ОКРУГЛВСЕ('Форма 4'!C1259*'Базовые цены за единицу'!K52,8) -> 0 | L52: =ROUND('Форма 4'!C1259*'Базовые цены за единицу'!L52,0) -> 0 | M52: =ROUND('Форма 4'!C1259*'Базовые цены за единицу'!M52,0) -> 0 | N52: =ROUND((C52+E52)*'Форма 4'!C1272/100,0) -> 0 | O52: =ROUND((C52+E52)*'Форма 4'!C1275/100,0) -> 0 | P52: =ROUND('Форма 4'!C1259*'Базовые цены за единицу'!P52,0) -> 0 | Q52: =ROUND('Форма 4'!C1259*'Базовые цены за единицу'!Q52,0) -> 0 | R52: =ROUND('Форма 4'!C1259*'Базовые цены за единицу'!R52,0) -> 0 | S52: =ROUND('Форма 4'!C1259*'Базовые цены за единицу'!S52,0) -> 0 | T52: =ROUND('Форма 4'!C1259*'Базовые цены за единицу'!T52,0) -> 0 | U52: =ROUND('Форма 4'!C1259*'Базовые цены за единицу'!U52,0) -> 0 | V52: =ROUND('Форма 4'!C1259*'Базовые цены за единицу'!V52,0) -> 0 | X52: =ROUND('Форма 4'!C1259*'Базовые цены за единицу'!X52,0) -> 0 | Y52: =IF(Определители!I52="9",ROUND((C52+E52)*(Начисления!M52/100)*('Форма 4'!C1272/100),0),0) -> 0 | Z52: =IF(Определители!I52="9",ROUND((C52+E52)*(100-Начисления!M52/100)*('Форма 4'!C1272/100),0),0) -> 0 | AA52: =IF(Определители!I52="9",ROUND((C52+E52)*(Начисления!M52/100)*('Форма 4'!C1275/100),0),0) -> 0 | AB52: =IF(Определители!I52="9",ROUND((C52+E52)*(100-Начисления!M52/100)*('Форма 4'!C1275/100),0),0) -> 0 | AC52: =IF(Определители!I52="9",ROUND(B52*Начисления!M52/100,0),0) -> 0 | AD52: =IF(Определители!I52="9",ROUND(B52*(100-Начисления!M52)/100,0),0) -> 0 | AE52: =ROUND('Форма 4'!C1259*'Базовые цены за единицу'!AE52,0) -> 0 | AH52: =ROUND('Форма 4'!C1259*'Базовые цены за единицу'!AH52,0) -> 0 | AI52: =ROUND('Форма 4'!C1259*'Базовые цены за единицу'!AI52,0) -> 0 | AJ52: =ROUND('Форма 4'!C1259*'Базовые цены за единицу'!AJ52,0) -> 0 | AK52: =ROUND('Форма 4'!C1259*'Базовые цены за единицу'!AK52,0) -> 0
A53: ='Форма 4'!A1279 -> 33. | B53: 2442 | C53: =ROUND('Форма 4'!C1279*'Базовые цены за единицу'!C53,0) -> 1098 | D53: =ROUND('Форма 4'!C1279*'Базовые цены за единицу'!D53,0) -> 1328 | E53: =ROUND('Форма 4'!C1279*'Базовые цены за единицу'!E53,0) -> 173 | F53: =ROUND('Форма 4'!C1279*'Базовые цены за единицу'!F53,0) -> 16 | G53: =ROUND('Форма 4'!C1279*'Базовые цены за единицу'!G53,0) -> 0 | H53: =ROUND('Форма 4'!C1279*'Базовые цены за единицу'!H53,0) -> 0 | I53: =ОКРУГЛВСЕ('Форма 4'!C1279*'Базовые цены за единицу'!I53,8) -> 108.1088 | J53: =ОКРУГЛВСЕ('Форма 4'!C1279*'Базовые цены за единицу'!J53,8) -> 0 | K53: =ОКРУГЛВСЕ('Форма 4'!C1279*'Базовые цены за единицу'!K53,8) -> 13.0604 | L53: =ROUND('Форма 4'!C1279*'Базовые цены за единицу'!L53,0) -> 0 | M53: =ROUND('Форма 4'!C1279*'Базовые цены за единицу'!M53,0) -> 0 | N53: =ROUND((C53+E53)*'Форма 4'!C1291/100,0) -> 1805 | O53: =ROUND((C53+E53)*'Форма 4'!C1294/100,0) -> 1030 | P53: =ROUND('Форма 4'!C1279*'Базовые цены за единицу'!P53,0) -> 1560 | Q53: =ROUND('Форма 4'!C1279*'Базовые цены за единицу'!Q53,0) -> 246 | R53: =ROUND('Форма 4'!C1279*'Базовые цены за единицу'!R53,0) -> 890 | S53: =ROUND('Форма 4'!C1279*'Базовые цены за единицу'!S53,0) -> 140 | T53: =ROUND('Форма 4'!C1279*'Базовые цены за единицу'!T53,0) -> 0 | U53: =ROUND('Форма 4'!C1279*'Базовые цены за единицу'!U53,0) -> 0 | V53: =ROUND('Форма 4'!C1279*'Базовые цены за единицу'!V53,0) -> 0 | X53: =ROUND('Форма 4'!C1279*'Базовые цены за единицу'!X53,0) -> 0 | Y53: =IF(Определители!I53="9",ROUND((C53+E53)*(Начисления!M53/100)*('Форма 4'!C1291/100),0),0) -> 0 | Z53: =IF(Определители!I53="9",ROUND((C53+E53)*(100-Начисления!M53/100)*('Форма 4'!C1291/100),0),0) -> 0 | AA53: =IF(Определители!I53="9",ROUND((C53+E53)*(Начисления!M53/100)*('Форма 4'!C1294/100),0),0) -> 0 | AB53: =IF(Определители!I53="9",ROUND((C53+E53)*(100-Начисления!M53/100)*('Форма 4'!C1294/100),0),0) -> 0 | AC53: =IF(Определители!I53="9",ROUND(B53*Начисления!M53/100,0),0) -> 0 | AD53: =IF(Определители!I53="9",ROUND(B53*(100-Начисления!M53)/100,0),0) -> 0 | AE53: =ROUND('Форма 4'!C1279*'Базовые цены за единицу'!AE53,0) -> 0 | AH53: =ROUND('Форма 4'!C1279*'Базовые цены за единицу'!AH53,0) -> 0 | AI53: =ROUND('Форма 4'!C1279*'Базовые цены за единицу'!AI53,0) -> 0 | AJ53: =ROUND('Форма 4'!C1279*'Базовые цены за единицу'!AJ53,0) -> 0 | AK53: =ROUND('Форма 4'!C1279*'Базовые цены за единицу'!AK53,0) -> 0
A54: ='Форма 4'!A1298 -> 34. | B54: -115 | C54: =ROUND('Форма 4'!C1298*'Базовые цены за единицу'!C54,0) -> -45 | D54: =ROUND('Форма 4'!C1298*'Базовые цены за единицу'!D54,0) -> -70 | E54: =ROUND('Форма 4'!C1298*'Базовые цены за единицу'!E54,0) -> -10 | F54: =ROUND('Форма 4'!C1298*'Базовые цены за единицу'!F54,0) -> 0 | G54: =ROUND('Форма 4'!C1298*'Базовые цены за единицу'!G54,0) -> 0 | H54: =ROUND('Форма 4'!C1298*'Базовые цены за единицу'!H54,0) -> 0 | I54: =ОКРУГЛВСЕ('Форма 4'!C1298*'Базовые цены за единицу'!I54,8) -> -4.4496 | J54: =ОКРУГЛВСЕ('Форма 4'!C1298*'Базовые цены за единицу'!J54,8) -> 0 | K54: =ОКРУГЛВСЕ('Форма 4'!C1298*'Базовые цены за единицу'!K54,8) -> -0.824 | L54: =ROUND('Форма 4'!C1298*'Базовые цены за единицу'!L54,0) -> 0 | M54: =ROUND('Форма 4'!C1298*'Базовые цены за единицу'!M54,0) -> 0 | N54: =ROUND((C54+E54)*'Форма 4'!C1311/100,0) -> -78 | O54: =ROUND((C54+E54)*'Форма 4'!C1314/100,0) -> -45 | P54: =ROUND('Форма 4'!C1298*'Базовые цены за единицу'!P54,0) -> -64 | Q54: =ROUND('Форма 4'!C1298*'Базовые цены за единицу'!Q54,0) -> -14 | R54: =ROUND('Форма 4'!C1298*'Базовые цены за единицу'!R54,0) -> -37 | S54: =ROUND('Форма 4'!C1298*'Базовые цены за единицу'!S54,0) -> -8 | T54: =ROUND('Форма 4'!C1298*'Базовые цены за единицу'!T54,0) -> 0 | U54: =ROUND('Форма 4'!C1298*'Базовые цены за единицу'!U54,0) -> 0 | V54: =ROUND('Форма 4'!C1298*'Базовые цены за единицу'!V54,0) -> 0 | X54: =ROUND('Форма 4'!C1298*'Базовые цены за единицу'!X54,0) -> 0 | Y54: =IF(Определители!I54="9",ROUND((C54+E54)*(Начисления!M54/100)*('Форма 4'!C1311/100),0),0) -> 0 | Z54: =IF(Определители!I54="9",ROUND((C54+E54)*(100-Начисления!M54/100)*('Форма 4'!C1311/100),0),0) -> 0 | AA54: =IF(Определители!I54="9",ROUND((C54+E54)*(Начисления!M54/100)*('Форма 4'!C1314/100),0),0) -> 0 | AB54: =IF(Определители!I54="9",ROUND((C54+E54)*(100-Начисления!M54/100)*('Форма 4'!C1314/100),0),0) -> 0 | AC54: =IF(Определители!I54="9",ROUND(B54*Начисления!M54/100,0),0) -> 0 | AD54: =IF(Определители!I54="9",ROUND(B54*(100-Начисления!M54)/100,0),0) -> 0 | AE54: =ROUND('Форма 4'!C1298*'Базовые цены за единицу'!AE54,0) -> 0 | AH54: =ROUND('Форма 4'!C1298*'Базовые цены за единицу'!AH54,0) -> 0 | AI54: =ROUND('Форма 4'!C1298*'Базовые цены за единицу'!AI54,0) -> 0 | AJ54: =ROUND('Форма 4'!C1298*'Базовые цены за единицу'!AJ54,0) -> 0 | AK54: =ROUND('Форма 4'!C1298*'Базовые цены за единицу'!AK54,0) -> 0
A55: ='Форма 4'!A1318 -> 35. | B55: 3475 | C55: =ROUND('Форма 4'!C1318*'Базовые цены за единицу'!C55,0) -> 0 | D55: =ROUND('Форма 4'!C1318*'Базовые цены за единицу'!D55,0) -> 0 | E55: =ROUND('Форма 4'!C1318*'Базовые цены за единицу'!E55,0) -> 0 | F55: =ROUND('Форма 4'!C1318*'Базовые цены за единицу'!F55,0) -> 3475 | G55: =ROUND('Форма 4'!C1318*'Базовые цены за единицу'!G55,0) -> 3475 | H55: =ROUND('Форма 4'!C1318*'Базовые цены за единицу'!H55,0) -> 0 | I55: =ОКРУГЛВСЕ('Форма 4'!C1318*'Базовые цены за единицу'!I55,8) -> 0 | J55: =ОКРУГЛВСЕ('Форма 4'!C1318*'Базовые цены за единицу'!J55,8) -> 0 | K55: =ОКРУГЛВСЕ('Форма 4'!C1318*'Базовые цены за единицу'!K55,8) -> 0 | L55: =ROUND('Форма 4'!C1318*'Базовые цены за единицу'!L55,0) -> 0 | M55: =ROUND('Форма 4'!C1318*'Базовые цены за единицу'!M55,0) -> 0 | N55: =ROUND((C55+E55)*'Форма 4'!C1331/100,0) -> 0 | O55: =ROUND((C55+E55)*'Форма 4'!C1334/100,0) -> 0 | P55: =ROUND('Форма 4'!C1318*'Базовые цены за единицу'!P55,0) -> 0 | Q55: =ROUND('Форма 4'!C1318*'Базовые цены за единицу'!Q55,0) -> 0 | R55: =ROUND('Форма 4'!C1318*'Базовые цены за единицу'!R55,0) -> 0 | S55: =ROUND('Форма 4'!C1318*'Базовые цены за единицу'!S55,0) -> 0 | T55: =ROUND('Форма 4'!C1318*'Базовые цены за единицу'!T55,0) -> 0 | U55: =ROUND('Форма 4'!C1318*'Базовые цены за единицу'!U55,0) -> 0 | V55: =ROUND('Форма 4'!C1318*'Базовые цены за единицу'!V55,0) -> 0 | X55: =ROUND('Форма 4'!C1318*'Базовые цены за единицу'!X55,0) -> 0 | Y55: =IF(Определители!I55="9",ROUND((C55+E55)*(Начисления!M55/100)*('Форма 4'!C1331/100),0),0) -> 0 | Z55: =IF(Определители!I55="9",ROUND((C55+E55)*(100-Начисления!M55/100)*('Форма 4'!C1331/100),0),0) -> 0 | AA55: =IF(Определители!I55="9",ROUND((C55+E55)*(Начисления!M55/100)*('Форма 4'!C1334/100),0),0) -> 0 | AB55: =IF(Определители!I55="9",ROUND((C55+E55)*(100-Начисления!M55/100)*('Форма 4'!C1334/100),0),0) -> 0 | AC55: =IF(Определители!I55="9",ROUND(B55*Начисления!M55/100,0),0) -> 0 | AD55: =IF(Определители!I55="9",ROUND(B55*(100-Начисления!M55)/100,0),0) -> 0 | AE55: =ROUND('Форма 4'!C1318*'Базовые цены за единицу'!AE55,0) -> 0 | AH55: =ROUND('Форма 4'!C1318*'Базовые цены за единицу'!AH55,0) -> 0 | AI55: =ROUND('Форма 4'!C1318*'Базовые цены за единицу'!AI55,0) -> 0 | AJ55: =ROUND('Форма 4'!C1318*'Базовые цены за единицу'!AJ55,0) -> 0 | AK55: =ROUND('Форма 4'!C1318*'Базовые цены за единицу'!AK55,0) -> 0
A56: ='Форма 4'!A1338 -> 36. | B56: 1252 | C56: =ROUND('Форма 4'!C1338*'Базовые цены за единицу'!C56,0) -> 486 | D56: =ROUND('Форма 4'!C1338*'Базовые цены за единицу'!D56,0) -> 302 | E56: =ROUND('Форма 4'!C1338*'Базовые цены за единицу'!E56,0) -> 1 | F56: =ROUND('Форма 4'!C1338*'Базовые цены за единицу'!F56,0) -> 464 | G56: =ROUND('Форма 4'!C1338*'Базовые цены за единицу'!G56,0) -> 0 | H56: =ROUND('Форма 4'!C1338*'Базовые цены за единицу'!H56,0) -> 0 | I56: =ОКРУГЛВСЕ('Форма 4'!C1338*'Базовые цены за единицу'!I56,8) -> 42.0652 | J56: =ОКРУГЛВСЕ('Форма 4'!C1338*'Базовые цены за единицу'!J56,8) -> 0 | K56: =ОКРУГЛВСЕ('Форма 4'!C1338*'Базовые цены за единицу'!K56,8) -> 0.0824 | L56: =ROUND('Форма 4'!C1338*'Базовые цены за единицу'!L56,0) -> 0 | M56: =ROUND('Форма 4'!C1338*'Базовые цены за единицу'!M56,0) -> 0 | N56: =ROUND((C56+E56)*'Форма 4'!C1350/100,0) -> 692 | O56: =ROUND((C56+E56)*'Форма 4'!C1353/100,0) -> 394 | P56: =ROUND('Форма 4'!C1338*'Базовые цены за единицу'!P56,0) -> 691 | Q56: =ROUND('Форма 4'!C1338*'Базовые цены за единицу'!Q56,0) -> 2 | R56: =ROUND('Форма 4'!C1338*'Базовые цены за единицу'!R56,0) -> 394 | S56: =ROUND('Форма 4'!C1338*'Базовые цены за единицу'!S56,0) -> 1 | T56: =ROUND('Форма 4'!C1338*'Базовые цены за единицу'!T56,0) -> 0 | U56: =ROUND('Форма 4'!C1338*'Базовые цены за единицу'!U56,0) -> 0 | V56: =ROUND('Форма 4'!C1338*'Базовые цены за единицу'!V56,0) -> 0 | X56: =ROUND('Форма 4'!C1338*'Базовые цены за единицу'!X56,0) -> 0 | Y56: =IF(Определители!I56="9",ROUND((C56+E56)*(Начисления!M56/100)*('Форма 4'!C1350/100),0),0) -> 0 | Z56: =IF(Определители!I56="9",ROUND((C56+E56)*(100-Начисления!M56/100)*('Форма 4'!C1350/100),0),0) -> 0 | AA56: =IF(Определители!I56="9",ROUND((C56+E56)*(Начисления!M56/100)*('Форма 4'!C1353/100),0),0) -> 0 | AB56: =IF(Определители!I56="9",ROUND((C56+E56)*(100-Начисления!M56/100)*('Форма 4'!C1353/100),0),0) -> 0 | AC56: =IF(Определители!I56="9",ROUND(B56*Начисления!M56/100,0),0) -> 0 | AD56: =IF(Определители!I56="9",ROUND(B56*(100-Начисления!M56)/100,0),0) -> 0 | AE56: =ROUND('Форма 4'!C1338*'Базовые цены за единицу'!AE56,0) -> 0 | AH56: =ROUND('Форма 4'!C1338*'Базовые цены за единицу'!AH56,0) -> 0 | AI56: =ROUND('Форма 4'!C1338*'Базовые цены за единицу'!AI56,0) -> 0 | AJ56: =ROUND('Форма 4'!C1338*'Базовые цены за единицу'!AJ56,0) -> 0 | AK56: =ROUND('Форма 4'!C1338*'Базовые цены за единицу'!AK56,0) -> 0
A57: ='Форма 4'!A1357 -> 37. | B57: 310 | C57: =ROUND('Форма 4'!C1357*'Базовые цены за единицу'!C57,0) -> 213 | D57: =ROUND('Форма 4'!C1357*'Базовые цены за единицу'!D57,0) -> 97 | E57: =ROUND('Форма 4'!C1357*'Базовые цены за единицу'!E57,0) -> 0 | F57: =ROUND('Форма 4'!C1357*'Базовые цены за единицу'!F57,0) -> 0 | G57: =ROUND('Форма 4'!C1357*'Базовые цены за единицу'!G57,0) -> 0 | H57: =ROUND('Форма 4'!C1357*'Базовые цены за единицу'!H57,0) -> 0 | I57: =ОКРУГЛВСЕ('Форма 4'!C1357*'Базовые цены за единицу'!I57,8) -> 19.1168 | J57: =ОКРУГЛВСЕ('Форма 4'!C1357*'Базовые цены за единицу'!J57,8) -> 0 | K57: =ОКРУГЛВСЕ('Форма 4'!C1357*'Базовые цены за единицу'!K57,8) -> 0 | L57: =ROUND('Форма 4'!C1357*'Базовые цены за единицу'!L57,0) -> 0 | M57: =ROUND('Форма 4'!C1357*'Базовые цены за единицу'!M57,0) -> 0 | N57: =ROUND((C57+E57)*'Форма 4'!C1370/100,0) -> 302 | O57: =ROUND((C57+E57)*'Форма 4'!C1373/100,0) -> 173 | P57: =ROUND('Форма 4'!C1357*'Базовые цены за единицу'!P57,0) -> 303 | Q57: =ROUND('Форма 4'!C1357*'Базовые цены за единицу'!Q57,0) -> 0 | R57: =ROUND('Форма 4'!C1357*'Базовые цены за единицу'!R57,0) -> 173 | S57: =ROUND('Форма 4'!C1357*'Базовые цены за единицу'!S57,0) -> 0 | T57: =ROUND('Форма 4'!C1357*'Базовые цены за единицу'!T57,0) -> 0 | U57: =ROUND('Форма 4'!C1357*'Базовые цены за единицу'!U57,0) -> 0 | V57: =ROUND('Форма 4'!C1357*'Базовые цены за единицу'!V57,0) -> 0 | X57: =ROUND('Форма 4'!C1357*'Базовые цены за единицу'!X57,0) -> 0 | Y57: =IF(Определители!I57="9",ROUND((C57+E57)*(Начисления!M57/100)*('Форма 4'!C1370/100),0),0) -> 0 | Z57: =IF(Определители!I57="9",ROUND((C57+E57)*(100-Начисления!M57/100)*('Форма 4'!C1370/100),0),0) -> 0 | AA57: =IF(Определители!I57="9",ROUND((C57+E57)*(Начисления!M57/100)*('Форма 4'!C1373/100),0),0) -> 0 | AB57: =IF(Определители!I57="9",ROUND((C57+E57)*(100-Начисления!M57/100)*('Форма 4'!C1373/100),0),0) -> 0 | AC57: =IF(Определители!I57="9",ROUND(B57*Начисления!M57/100,0),0) -> 0 | AD57: =IF(Определители!I57="9",ROUND(B57*(100-Начисления!M57)/100,0),0) -> 0 | AE57: =ROUND('Форма 4'!C1357*'Базовые цены за единицу'!AE57,0) -> 0 | AH57: =ROUND('Форма 4'!C1357*'Базовые цены за единицу'!AH57,0) -> 0 | AI57: =ROUND('Форма 4'!C1357*'Базовые цены за единицу'!AI57,0) -> 0 | AJ57: =ROUND('Форма 4'!C1357*'Базовые цены за единицу'!AJ57,0) -> 0 | AK57: =ROUND('Форма 4'!C1357*'Базовые цены за единицу'!AK57,0) -> 0
A58: ='Форма 4'!A1377 -> 38. | B58: 22480 | C58: =ROUND('Форма 4'!C1377*'Базовые цены за единицу'!C58,0) -> 0 | D58: =ROUND('Форма 4'!C1377*'Базовые цены за единицу'!D58,0) -> 0 | E58: =ROUND('Форма 4'!C1377*'Базовые цены за единицу'!E58,0) -> 0 | F58: =ROUND('Форма 4'!C1377*'Базовые цены за единицу'!F58,0) -> 22480 | G58: =ROUND('Форма 4'!C1377*'Базовые цены за единицу'!G58,0) -> 21156 | H58: =ROUND('Форма 4'!C1377*'Базовые цены за единицу'!H58,0) -> 0 | I58: =ОКРУГЛВСЕ('Форма 4'!C1377*'Базовые цены за единицу'!I58,8) -> 0 | J58: =ОКРУГЛВСЕ('Форма 4'!C1377*'Базовые цены за единицу'!J58,8) -> 0 | K58: =ОКРУГЛВСЕ('Форма 4'!C1377*'Базовые цены за единицу'!K58,8) -> 0 | L58: =ROUND('Форма 4'!C1377*'Базовые цены за единицу'!L58,0) -> 39390 | M58: =ROUND('Форма 4'!C1377*'Базовые цены за единицу'!M58,0) -> 0 | N58: =ROUND((C58+E58)*'Форма 4'!C1389/100,0) -> 0 | O58: =ROUND((C58+E58)*'Форма 4'!C1392/100,0) -> 0 | P58: =ROUND('Форма 4'!C1377*'Базовые цены за единицу'!P58,0) -> 0 | Q58: =ROUND('Форма 4'!C1377*'Базовые цены за единицу'!Q58,0) -> 0 | R58: =ROUND('Форма 4'!C1377*'Базовые цены за единицу'!R58,0) -> 0 | S58: =ROUND('Форма 4'!C1377*'Базовые цены за единицу'!S58,0) -> 0 | T58: =ROUND('Форма 4'!C1377*'Базовые цены за единицу'!T58,0) -> 0 | U58: =ROUND('Форма 4'!C1377*'Базовые цены за единицу'!U58,0) -> 0 | V58: =ROUND('Форма 4'!C1377*'Базовые цены за единицу'!V58,0) -> 0 | X58: =ROUND('Форма 4'!C1377*'Базовые цены за единицу'!X58,0) -> 0 | Y58: =IF(Определители!I58="9",ROUND((C58+E58)*(Начисления!M58/100)*('Форма 4'!C1389/100),0),0) -> 0 | Z58: =IF(Определители!I58="9",ROUND((C58+E58)*(100-Начисления!M58/100)*('Форма 4'!C1389/100),0),0) -> 0 | AA58: =IF(Определители!I58="9",ROUND((C58+E58)*(Начисления!M58/100)*('Форма 4'!C1392/100),0),0) -> 0 | AB58: =IF(Определители!I58="9",ROUND((C58+E58)*(100-Начисления!M58/100)*('Форма 4'!C1392/100),0),0) -> 0 | AC58: =IF(Определители!I58="9",ROUND(B58*Начисления!M58/100,0),0) -> 0 | AD58: =IF(Определители!I58="9",ROUND(B58*(100-Начисления!M58)/100,0),0) -> 0 | AE58: =ROUND('Форма 4'!C1377*'Базовые цены за единицу'!AE58,0) -> 0 | AH58: =ROUND('Форма 4'!C1377*'Базовые цены за единицу'!AH58,0) -> 0 | AI58: =ROUND('Форма 4'!C1377*'Базовые цены за единицу'!AI58,0) -> 0 | AJ58: =ROUND('Форма 4'!C1377*'Базовые цены за единицу'!AJ58,0) -> 0 | AK58: =ROUND('Форма 4'!C1377*'Базовые цены за единицу'!AK58,0) -> 0
B60: Раздел 6. Восстановление газонов
A62: ='Форма 4'!A1555 -> 39. | B62: =ROUND(C62+D62+F62+AF62+AG62,0) -> 6185 | C62: =ROUND('Форма 4'!C1555*'Базовые цены за единицу'!C62,0) -> 1146 | D62: =ROUND('Форма 4'!C1555*'Базовые цены за единицу'!D62,0) -> 0 | E62: =ROUND('Форма 4'!C1555*'Базовые цены за единицу'!E62,0) -> 0 | F62: =ROUND('Форма 4'!C1555*'Базовые цены за единицу'!F62,0) -> 5039 | G62: =ROUND('Форма 4'!C1555*'Базовые цены за единицу'!G62,0) -> 0 | H62: =ROUND('Форма 4'!C1555*'Базовые цены за единицу'!H62,0) -> 0 | I62: =ОКРУГЛВСЕ('Форма 4'!C1555*'Базовые цены за единицу'!I62,8) -> 120 | J62: =ОКРУГЛВСЕ('Форма 4'!C1555*'Базовые цены за единицу'!J62,8) -> 0 | K62: =ОКРУГЛВСЕ('Форма 4'!C1555*'Базовые цены за единицу'!K62,8) -> 0 | L62: =ROUND('Форма 4'!C1555*'Базовые цены за единицу'!L62,0) -> 0 | M62: =ROUND('Форма 4'!C1555*'Базовые цены за единицу'!M62,0) -> 0 | N62: =ROUND((C62+E62)*'Форма 4'!C1566/100,0) -> 1318 | O62: =ROUND((C62+E62)*'Форма 4'!C1569/100,0) -> 882 | P62: =ROUND('Форма 4'!C1555*'Базовые цены за единицу'!P62,0) -> 1318 | Q62: =ROUND('Форма 4'!C1555*'Базовые цены за единицу'!Q62,0) -> 0 | R62: =ROUND('Форма 4'!C1555*'Базовые цены за единицу'!R62,0) -> 882 | S62: =ROUND('Форма 4'!C1555*'Базовые цены за единицу'!S62,0) -> 0 | T62: =ROUND('Форма 4'!C1555*'Базовые цены за единицу'!T62,0) -> 0 | U62: =ROUND('Форма 4'!C1555*'Базовые цены за единицу'!U62,0) -> 0 | V62: =ROUND('Форма 4'!C1555*'Базовые цены за единицу'!V62,0) -> 0 | X62: =ROUND('Форма 4'!C1555*'Базовые цены за единицу'!X62,0) -> 0 | Y62: =IF(Определители!I62="9",ROUND((C62+E62)*(Начисления!M62/100)*('Форма 4'!C1566/100),0),0) -> 0 | Z62: =IF(Определители!I62="9",ROUND((C62+E62)*(100-Начисления!M62/100)*('Форма 4'!C1566/100),0),0) -> 0 | AA62: =IF(Определители!I62="9",ROUND((C62+E62)*(Начисления!M62/100)*('Форма 4'!C1569/100),0),0) -> 0 | AB62: =IF(Определители!I62="9",ROUND((C62+E62)*(100-Начисления!M62/100)*('Форма 4'!C1569/100),0),0) -> 0 | AC62: =IF(Определители!I62="9",ROUND(B62*Начисления!M62/100,0),0) -> 0 | AD62: =IF(Определители!I62="9",ROUND(B62*(100-Начисления!M62)/100,0),0) -> 0 | AE62: =ROUND('Форма 4'!C1555*'Базовые цены за единицу'!AE62,0) -> 0 | AH62: =ROUND('Форма 4'!C1555*'Базовые цены за единицу'!AH62,0) -> 0 | AI62: =ROUND('Форма 4'!C1555*'Базовые цены за единицу'!AI62,0) -> 0 | AJ62: =ROUND('Форма 4'!C1555*'Базовые цены за единицу'!AJ62,0) -> 0 | AK62: =ROUND('Форма 4'!C1555*'Базовые цены за единицу'!AK62,0) -> 0
B64: Раздел 7. Наращивание колодцев
A66: ='Форма 4'!A1730 -> 40. | B66: =ROUND(C66+D66+F66+AF66+AG66,0) -> 106 | C66: =ROUND('Форма 4'!C1730*'Базовые цены за единицу'!C66,0) -> 65 | D66: =ROUND('Форма 4'!C1730*'Базовые цены за единицу'!D66,0) -> 41 | E66: =ROUND('Форма 4'!C1730*'Базовые цены за единицу'!E66,0) -> 0 | F66: =ROUND('Форма 4'!C1730*'Базовые цены за единицу'!F66,0) -> 0 | G66: =ROUND('Форма 4'!C1730*'Базовые цены за единицу'!G66,0) -> 0 | H66: =ROUND('Форма 4'!C1730*'Базовые цены за единицу'!H66,0) -> 0 | I66: =ОКРУГЛВСЕ('Форма 4'!C1730*'Базовые цены за единицу'!I66,8) -> 6.288 | J66: =ОКРУГЛВСЕ('Форма 4'!C1730*'Базовые цены за единицу'!J66,8) -> 0 | K66: =ОКРУГЛВСЕ('Форма 4'!C1730*'Базовые цены за единицу'!K66,8) -> 0 | L66: =ROUND('Форма 4'!C1730*'Базовые цены за единицу'!L66,0) -> 0 | M66: =ROUND('Форма 4'!C1730*'Базовые цены за единицу'!M66,0) -> 0 | N66: =ROUND((C66+E66)*'Форма 4'!C1742/100,0) -> 85 | O66: =ROUND((C66+E66)*'Форма 4'!C1745/100,0) -> 49 | P66: =ROUND('Форма 4'!C1730*'Базовые цены за единицу'!P66,0) -> 85 | Q66: =ROUND('Форма 4'!C1730*'Базовые цены за единицу'!Q66,0) -> 0 | R66: =ROUND('Форма 4'!C1730*'Базовые цены за единицу'!R66,0) -> 50 | S66: =ROUND('Форма 4'!C1730*'Базовые цены за единицу'!S66,0) -> 0 | T66: =ROUND('Форма 4'!C1730*'Базовые цены за единицу'!T66,0) -> 0 | U66: =ROUND('Форма 4'!C1730*'Базовые цены за единицу'!U66,0) -> 0 | V66: =ROUND('Форма 4'!C1730*'Базовые цены за единицу'!V66,0) -> 0 | X66: =ROUND('Форма 4'!C1730*'Базовые цены за единицу'!X66,0) -> 0 | Y66: =IF(Определители!I66="9",ROUND((C66+E66)*(Начисления!M66/100)*('Форма 4'!C1742/100),0),0) -> 0 | Z66: =IF(Определители!I66="9",ROUND((C66+E66)*(100-Начисления!M66/100)*('Форма 4'!C1742/100),0),0) -> 0 | AA66: =IF(Определители!I66="9",ROUND((C66+E66)*(Начисления!M66/100)*('Форма 4'!C1745/100),0),0) -> 0 | AB66: =IF(Определители!I66="9",ROUND((C66+E66)*(100-Начисления!M66/100)*('Форма 4'!C1745/100),0),0) -> 0 | AC66: =IF(Определители!I66="9",ROUND(B66*Начисления!M66/100,0),0) -> 0 | AD66: =IF(Определители!I66="9",ROUND(B66*(100-Начисления!M66)/100,0),0) -> 0 | AE66: =ROUND('Форма 4'!C1730*'Базовые цены за единицу'!AE66,0) -> 0 | AH66: =ROUND('Форма 4'!C1730*'Базовые цены за единицу'!AH66,0) -> 0 | AI66: =ROUND('Форма 4'!C1730*'Базовые цены за единицу'!AI66,0) -> 0 | AJ66: =ROUND('Форма 4'!C1730*'Базовые цены за единицу'!AJ66,0) -> 0 | AK66: =ROUND('Форма 4'!C1730*'Базовые цены за единицу'!AK66,0) -> 0
A67: ='Форма 4'!A1749 -> 41. | B67: =ROUND(C67+D67+F67+AF67+AG67,0) -> 59 | C67: =ROUND('Форма 4'!C1749*'Базовые цены за единицу'!C67,0) -> 9 | D67: =ROUND('Форма 4'!C1749*'Базовые цены за единицу'!D67,0) -> 47 | E67: =ROUND('Форма 4'!C1749*'Базовые цены за единицу'!E67,0) -> 4 | F67: =ROUND('Форма 4'!C1749*'Базовые цены за единицу'!F67,0) -> 3 | G67: =ROUND('Форма 4'!C1749*'Базовые цены за единицу'!G67,0) -> 0 | H67: =ROUND('Форма 4'!C1749*'Базовые цены за единицу'!H67,0) -> 0 | I67: =ОКРУГЛВСЕ('Форма 4'!C1749*'Базовые цены за единицу'!I67,8) -> 0.876096 | J67: =ОКРУГЛВСЕ('Форма 4'!C1749*'Базовые цены за единицу'!J67,8) -> 0 | K67: =ОКРУГЛВСЕ('Форма 4'!C1749*'Базовые цены за единицу'!K67,8) -> 0.268416 | L67: =ROUND('Форма 4'!C1749*'Базовые цены за единицу'!L67,0) -> 0 | M67: =ROUND('Форма 4'!C1749*'Базовые цены за единицу'!M67,0) -> 0 | N67: =ROUND((C67+E67)*'Форма 4'!C1761/100,0) -> 17 | O67: =ROUND((C67+E67)*'Форма 4'!C1764/100,0) -> 9 | P67: =ROUND('Форма 4'!C1749*'Базовые цены за единицу'!P67,0) -> 12 | Q67: =ROUND('Форма 4'!C1749*'Базовые цены за единицу'!Q67,0) -> 6 | R67: =ROUND('Форма 4'!C1749*'Базовые цены за единицу'!R67,0) -> 7 | S67: =ROUND('Форма 4'!C1749*'Базовые цены за единицу'!S67,0) -> 3 | T67: =ROUND('Форма 4'!C1749*'Базовые цены за единицу'!T67,0) -> 0 | U67: =ROUND('Форма 4'!C1749*'Базовые цены за единицу'!U67,0) -> 0 | V67: =ROUND('Форма 4'!C1749*'Базовые цены за единицу'!V67,0) -> 0 | X67: =ROUND('Форма 4'!C1749*'Базовые цены за единицу'!X67,0) -> 0 | Y67: =IF(Определители!I67="9",ROUND((C67+E67)*(Начисления!M67/100)*('Форма 4'!C1761/100),0),0) -> 0 | Z67: =IF(Определители!I67="9",ROUND((C67+E67)*(100-Начисления!M67/100)*('Форма 4'!C1761/100),0),0) -> 0 | AA67: =IF(Определители!I67="9",ROUND((C67+E67)*(Начисления!M67/100)*('Форма 4'!C1764/100),0),0) -> 0 | AB67: =IF(Определители!I67="9",ROUND((C67+E67)*(100-Начисления!M67/100)*('Форма 4'!C1764/100),0),0) -> 0 | AC67: =IF(Определители!I67="9",ROUND(B67*Начисления!M67/100,0),0) -> 0 | AD67: =IF(Определители!I67="9",ROUND(B67*(100-Начисления!M67)/100,0),0) -> 0 | AE67: =ROUND('Форма 4'!C1749*'Базовые цены за единицу'!AE67,0) -> 0 | AH67: =ROUND('Форма 4'!C1749*'Базовые цены за единицу'!AH67,0) -> 0 | AI67: =ROUND('Форма 4'!C1749*'Базовые цены за единицу'!AI67,0) -> 0 | AJ67: =ROUND('Форма 4'!C1749*'Базовые цены за единицу'!AJ67,0) -> 0 | AK67: =ROUND('Форма 4'!C1749*'Базовые цены за единицу'!AK67,0) -> 0
A68: ='Форма 4'!A1768 -> 42. | B68: =ROUND(C68+D68+F68+AF68+AG68,0) -> 338 | C68: =ROUND('Форма 4'!C1768*'Базовые цены за единицу'!C68,0) -> 0 | D68: =ROUND('Форма 4'!C1768*'Базовые цены за единицу'!D68,0) -> 0 | E68: =ROUND('Форма 4'!C1768*'Базовые цены за единицу'!E68,0) -> 0 | F68: =ROUND('Форма 4'!C1768*'Базовые цены за единицу'!F68,0) -> 338 | G68: =ROUND('Форма 4'!C1768*'Базовые цены за единицу'!G68,0) -> 338 | H68: =ROUND('Форма 4'!C1768*'Базовые цены за единицу'!H68,0) -> 0 | I68: =ОКРУГЛВСЕ('Форма 4'!C1768*'Базовые цены за единицу'!I68,8) -> 0 | J68: =ОКРУГЛВСЕ('Форма 4'!C1768*'Базовые цены за единицу'!J68,8) -> 0 | K68: =ОКРУГЛВСЕ('Форма 4'!C1768*'Базовые цены за единицу'!K68,8) -> 0 | L68: =ROUND('Форма 4'!C1768*'Базовые цены за единицу'!L68,0) -> 0 | M68: =ROUND('Форма 4'!C1768*'Базовые цены за единицу'!M68,0) -> 0 | N68: =ROUND((C68+E68)*'Форма 4'!C1781/100,0) -> 0 | O68: =ROUND((C68+E68)*'Форма 4'!C1784/100,0) -> 0 | P68: =ROUND('Форма 4'!C1768*'Базовые цены за единицу'!P68,0) -> 0 | Q68: =ROUND('Форма 4'!C1768*'Базовые цены за единицу'!Q68,0) -> 0 | R68: =ROUND('Форма 4'!C1768*'Базовые цены за единицу'!R68,0) -> 0 | S68: =ROUND('Форма 4'!C1768*'Базовые цены за единицу'!S68,0) -> 0 | T68: =ROUND('Форма 4'!C1768*'Базовые цены за единицу'!T68,0) -> 0 | U68: =ROUND('Форма 4'!C1768*'Базовые цены за единицу'!U68,0) -> 0 | V68: =ROUND('Форма 4'!C1768*'Базовые цены за единицу'!V68,0) -> 0 | X68: =ROUND('Форма 4'!C1768*'Базовые цены за единицу'!X68,0) -> 0 | Y68: =IF(Определители!I68="9",ROUND((C68+E68)*(Начисления!M68/100)*('Форма 4'!C1781/100),0),0) -> 0 | Z68: =IF(Определители!I68="9",ROUND((C68+E68)*(100-Начисления!M68/100)*('Форма 4'!C1781/100),0),0) -> 0 | AA68: =IF(Определители!I68="9",ROUND((C68+E68)*(Начисления!M68/100)*('Форма 4'!C1784/100),0),0) -> 0 | AB68: =IF(Определители!I68="9",ROUND((C68+E68)*(100-Начисления!M68/100)*('Форма 4'!C1784/100),0),0) -> 0 | AC68: =IF(Определители!I68="9",ROUND(B68*Начисления!M68/100,0),0) -> 0 | AD68: =IF(Определители!I68="9",ROUND(B68*(100-Начисления!M68)/100,0),0) -> 0 | AE68: =ROUND('Форма 4'!C1768*'Базовые цены за единицу'!AE68,0) -> 0 | AH68: =ROUND('Форма 4'!C1768*'Базовые цены за единицу'!AH68,0) -> 0 | AI68: =ROUND('Форма 4'!C1768*'Базовые цены за единицу'!AI68,0) -> 0 | AJ68: =ROUND('Форма 4'!C1768*'Базовые цены за единицу'!AJ68,0) -> 0 | AK68: =ROUND('Форма 4'!C1768*'Базовые цены за единицу'!AK68,0) -> 0
A69: ='Форма 4'!A1788 -> 43. | B69: =ROUND(C69+D69+F69+AF69+AG69,0) -> 8818 | C69: =ROUND('Форма 4'!C1788*'Базовые цены за единицу'!C69,0) -> 109 | D69: =ROUND('Форма 4'!C1788*'Базовые цены за единицу'!D69,0) -> 69 | E69: =ROUND('Форма 4'!C1788*'Базовые цены за единицу'!E69,0) -> 0 | F69: =ROUND('Форма 4'!C1788*'Базовые цены за единицу'!F69,0) -> 8640 | G69: =ROUND('Форма 4'!C1788*'Базовые цены за единицу'!G69,0) -> 0 | H69: =ROUND('Форма 4'!C1788*'Базовые цены за единицу'!H69,0) -> 0 | I69: =ОКРУГЛВСЕ('Форма 4'!C1788*'Базовые цены за единицу'!I69,8) -> 10.48 | J69: =ОКРУГЛВСЕ('Форма 4'!C1788*'Базовые цены за единицу'!J69,8) -> 0 | K69: =ОКРУГЛВСЕ('Форма 4'!C1788*'Базовые цены за единицу'!K69,8) -> 0 | L69: =ROUND('Форма 4'!C1788*'Базовые цены за единицу'!L69,0) -> 0 | M69: =ROUND('Форма 4'!C1788*'Базовые цены за единицу'!M69,0) -> 0 | N69: =ROUND((C69+E69)*'Форма 4'!C1799/100,0) -> 142 | O69: =ROUND((C69+E69)*'Форма 4'!C1802/100,0) -> 83 | P69: =ROUND('Форма 4'!C1788*'Базовые цены за единицу'!P69,0) -> 141 | Q69: =ROUND('Форма 4'!C1788*'Базовые цены за единицу'!Q69,0) -> 0 | R69: =ROUND('Форма 4'!C1788*'Базовые цены за единицу'!R69,0) -> 83 | S69: =ROUND('Форма 4'!C1788*'Базовые цены за единицу'!S69,0) -> 0 | T69: =ROUND('Форма 4'!C1788*'Базовые цены за единицу'!T69,0) -> 0 | U69: =ROUND('Форма 4'!C1788*'Базовые цены за единицу'!U69,0) -> 0 | V69: =ROUND('Форма 4'!C1788*'Базовые цены за единицу'!V69,0) -> 0 | X69: =ROUND('Форма 4'!C1788*'Базовые цены за единицу'!X69,0) -> 0 | Y69: =IF(Определители!I69="9",ROUND((C69+E69)*(Начисления!M69/100)*('Форма 4'!C1799/100),0),0) -> 0 | Z69: =IF(Определители!I69="9",ROUND((C69+E69)*(100-Начисления!M69/100)*('Форма 4'!C1799/100),0),0) -> 0 | AA69: =IF(Определители!I69="9",ROUND((C69+E69)*(Начисления!M69/100)*('Форма 4'!C1802/100),0),0) -> 0 | AB69: =IF(Определители!I69="9",ROUND((C69+E69)*(100-Начисления!M69/100)*('Форма 4'!C1802/100),0),0) -> 0 | AC69: =IF(Определители!I69="9",ROUND(B69*Начисления!M69/100,0),0) -> 0 | AD69: =IF(Определители!I69="9",ROUND(B69*(100-Начисления!M69)/100,0),0) -> 0 | AE69: =ROUND('Форма 4'!C1788*'Базовые цены за единицу'!AE69,0) -> 0 | AH69: =ROUND('Форма 4'!C1788*'Базовые цены за единицу'!AH69,0) -> 0 | AI69: =ROUND('Форма 4'!C1788*'Базовые цены за единицу'!AI69,0) -> 0 | AJ69: =ROUND('Форма 4'!C1788*'Базовые цены за единицу'!AJ69,0) -> 0 | AK69: =ROUND('Форма 4'!C1788*'Базовые цены за единицу'!AK69,0) -> 0

Sheet Начисления
B1: Н1 | C1: Н2 | D1: Н3 | E1: Н4 | F1: Н5 | G1: Н6 | H1: Н7 | I1: Н8 | J1: Н9 | K1: Н10 | L1: Н11 | M1: Н12 | N1: Н13 | O1: Н14 | P1: Н15 | Q1: Н16 | R1: Н17 | S1: Н18 | T1: Н19 | U1: Н20 | V1: Н21 | W1: Н22 | X1: Н23 | Y1: Н24 | Z1: Н25 | AA1: Н26 | AB1: Н27 | AC1: Н28 | AD1: Н29 | AE1: Н30 | AF1: Н31 | AG1: Н32 | AH1: Н33 | AI1: Н34 | AJ1: Н35 | AK1: Н36 | AL1: Н37 | AM1: Н38 | AN1: Н39 | AO1: Н40 | AP1: Н41 | AQ1: Н42 | AR1: Н43 | AS1: Н44 | AT1: Н45 | AU1: Н46 | AV1: Н47 | AW1: Н48 | AX1: Н49
B3: N = < 9 * 13 * 64 >
B4: Кирова,97 .Собственники
B7: Раздел 1. Валка деревьев
A9: ='Форма 4'!A27 -> 1. | B9: 1 | C9: 1 | D9: 1 | E9: 1 | F9: 1 | G9: 1 | H9: 1 | I9: 1 | J9: 1 | K9: 0 | L9: 0 | M9: 100 | N9: 0 | O9: 0 | P9: 1 | Q9: 1 | R9: 0 | S9: 0 | T9: 1 | U9: 0 | V9: 0 | W9: 0 | X9: 0 | Y9: 0 | Z9: 0 | AA9: 0 | AB9: 0 | AC9: 0 | AD9: 0 | AE9: 0 | AF9: 0 | AG9: 1.7 | AH9: 1.6 | AI9: 1.29 | AJ9: 0.092 | AK9: 0.18 | AL9: 1 | AM9: 1 | AN9: 0.2 | AO9: 1.5 | AP9: 1 | AQ9: 1 | AR9: 1 | AS9: 1 | AT9: 1 | AU9: 100 | AV9: 1 | AW9: 1 | AX9: 1
A10: ='Форма 4'!A45 -> 2. | B10: 1 | C10: 1 | D10: 1 | E10: 1 | F10: 1 | G10: 1 | H10: 1 | I10: 1 | J10: 1 | K10: 0 | L10: 0 | M10: 100 | N10: 0 | O10: 0 | P10: 1 | Q10: 1 | R10: 0 | S10: 0 | T10: 1 | U10: 0 | V10: 0 | W10: 0 | X10: 0 | Y10: 0 | Z10: 0 | AA10: 0 | AB10: 0 | AC10: 0 | AD10: 0 | AE10: 0 | AF10: 0 | AG10: 1.7 | AH10: 1.6 | AI10: 1.29 | AJ10: 0.092 | AK10: 0.18 | AL10: 1 | AM10: 1 | AN10: 0.2 | AO10: 1.5 | AP10: 1 | AQ10: 1 | AR10: 1 | AS10: 1 | AT10: 1 | AU10: 100 | AV10: 1 | AW10: 1 | AX10: 1
A11: ='Форма 4'!A63 -> 3. | B11: 1 | C11: 1 | D11: 1 | E11: 1 | F11: 1 | G11: 1 | H11: 1 | I11: 1 | J11: 1 | K11: 0 | L11: 0 | M11: 100 | N11: 0 | O11: 0 | P11: 1 | Q11: 1 | R11: 0 | S11: 0 | T11: 1 | U11: 0 | V11: 0 | W11: 0 | X11: 0 | Y11: 0 | Z11: 0 | AA11: 0 | AB11: 0 | AC11: 0 | AD11: 0 | AE11: 0 | AF11: 0 | AG11: 1.7 | AH11: 1.6 | AI11: 1.29 | AJ11: 0.092 | AK11: 0.18 | AL11: 1 | AM11: 1 | AN11: 0.2 | AO11: 1.5 | AP11: 1 | AQ11: 1 | AR11: 1 | AS11: 1 | AT11: 1 | AU11: 100 | AV11: 1 | AW11: 1 | AX11: 1
A12: ='Форма 4'!A81 -> 4. | B12: 1 | C12: 1 | D12: 1 | E12: 1 | F12: 1 | G12: 1 | H12: 1 | I12: 1 | J12: 1 | K12: 0 | L12: 0 | M12: 100 | N12: 0 | O12: 0 | P12: 1 | Q12: 1 | R12: 0 | S12: 0 | T12: 1 | U12: 0 | V12: 0 | W12: 0 | X12: 0 | Y12: 0 | Z12: 0 | AA12: 0 | AB12: 0 | AC12: 0 | AD12: 0 | AE12: 0 | AF12: 0 | AG12: 1.7 | AH12: 1.6 | AI12: 1.29 | AJ12: 0.092 | AK12: 0.18 | AL12: 1 | AM12: 1 | AN12: 0.2 | AO12: 1.5 | AP12: 1 | AQ12: 1 | AR12: 1 | AS12: 1 | AT12: 1 | AU12: 100 | AV12: 1 | AW12: 1 | AX12: 1
A13: ='Форма 4'!A99 -> 5. | B13: 1 | C13: 1 | D13: 1 | E13: 1 | F13: 1 | G13: 1 | H13: 1 | I13: 1 | J13: 1 | K13: 0 | L13: 0 | M13: 100 | N13: 0 | O13: 0 | P13: 1 | Q13: 1 | R13: 0 | S13: 0 | T13: 1 | U13: 0 | V13: 0 | W13: 0 | X13: 0 | Y13: 0 | Z13: 0 | AA13: 0 | AB13: 0 | AC13: 0 | AD13: 0 | AE13: 0 | AF13: 0 | AG13: 1.7 | AH13: 1.6 | AI13: 1.29 | AJ13: 0.092 | AK13: 0.18 | AL13: 1 | AM13: 1 | AN13: 0.2 | AO13: 1.5 | AP13: 1 | AQ13: 1 | AR13: 1 | AS13: 1 | AT13: 1 | AU13: 100 | AV13: 1 | AW13: 1 | AX13: 1
A14: ='Форма 4'!A117 -> 6. | B14: 1 | C14: 1 | D14: 1 | E14: 1 | F14: 1 | G14: 1 | H14: 1 | I14: 1 | J14: 1 | K14: 0 | L14: 0 | M14: 100 | N14: 0 | O14: 0 | P14: 1 | Q14: 1 | R14: 0 | S14: 0 | T14: 1 | U14: 0 | V14: 0 | W14: 0 | X14: 0 | Y14: 0 | Z14: 0 | AA14: 0 | AB14: 0 | AC14: 0 | AD14: 0 | AE14: 0 | AF14: 0 | AG14: 1.7 | AH14: 1.6 | AI14: 1.29 | AJ14: 0.092 | AK14: 0.18 | AL14: 1 | AM14: 1 | AN14: 0.2 | AO14: 1.5 | AP14: 1 | AQ14: 1 | AR14: 1 | AS14: 1 | AT14: 1 | AU14: 100 | AV14: 1 | AW14: 1 | AX14: 1
A15: ='Форма 4'!A136 -> 7. | B15: 1 | C15: 1 | D15: 1 | E15: 1 | F15: 1 | G15: 1 | H15: 1 | I15: 1 | J15: 1 | K15: 0 | L15: 0 | M15: 100 | N15: 0 | O15: 0 | P15: 1 | Q15: 1 | R15: 0 | S15: 0 | T15: 1 | U15: 0 | V15: 0 | W15: 0 | X15: 0 | Y15: 0 | Z15: 0 | AA15: 0 | AB15: 0 | AC15: 0 | AD15: 0 | AE15: 0 | AF15: 0 | AG15: 1.7 | AH15: 1.6 | AI15: 1.29 | AJ15: 0.092 | AK15: 0.18 | AL15: 1 | AM15: 1 | AN15: 0.2 | AO15: 1.5 | AP15: 1 | AQ15: 1 | AR15: 1 | AS15: 1 | AT15: 1 | AU15: 100 | AV15: 1 | AW15: 1 | AX15: 1
A16: ='Форма 4'!A155 -> 8. | B16: 1 | C16: 1 | D16: 1 | E16: 1 | F16: 1 | G16: 1 | H16: 1 | I16: 1 | J16: 1 | K16: 0 | L16: 0 | M16: 100 | N16: 0 | O16: 0 | P16: 1 | Q16: 1 | R16: 0 | S16: 0 | T16: 1 | U16: 0 | V16: 0 | W16: 0 | X16: 0 | Y16: 0 | Z16: 0 | AA16: 0 | AB16: 0 | AC16: 0 | AD16: 0 | AE16: 0 | AF16: 0 | AG16: 1.7 | AH16: 1.6 | AI16: 1.29 | AJ16: 0.092 | AK16: 0.18 | AL16: 1 | AM16: 1 | AN16: 0.2 | AO16: 1.5 | AP16: 1 | AQ16: 1 | AR16: 1 | AS16: 1 | AT16: 1 | AU16: 100 | AV16: 1 | AW16: 1 | AX16: 1
B18: Раздел 2. Разборка бортовых камней и а/бетонного покрытия
A20: ='Форма 4'!A334 -> 9. | B20: 1 | C20: 1 | D20: 1 | E20: 1 | F20: 1 | G20: 1 | H20: 1 | I20: 1 | J20: 1 | K20: 0 | L20: 0 | M20: 100 | N20: 0 | O20: 0 | P20: 1 | Q20: 1 | R20: 0 | S20: 0 | T20: 1 | U20: 0 | V20: 0 | W20: 0 | X20: 0 | Y20: 0 | Z20: 0 | AA20: 0 | AB20: 0 | AC20: 0 | AD20: 0 | AE20: 0 | AF20: 0 | AG20: 1.7 | AH20: 1.6 | AI20: 1.29 | AJ20: 0.092 | AK20: 0.18 | AL20: 1 | AM20: 1 | AN20: 0.2 | AO20: 1.5 | AP20: 1 | AQ20: 1 | AR20: 1 | AS20: 1 | AT20: 1 | AU20: 100 | AV20: 1 | AW20: 1 | AX20: 1
A21: ='Форма 4'!A352 -> 10. | B21: 1 | C21: 1 | D21: 1 | E21: 1 | F21: 1 | G21: 1 | H21: 1 | I21: 1 | J21: 1 | K21: 0 | L21: 0 | M21: 100 | N21: 0 | O21: 0 | P21: 1 | Q21: 1 | R21: 0 | S21: 0 | T21: 1 | U21: 0 | V21: 0 | W21: 0 | X21: 0 | Y21: 0 | Z21: 0 | AA21: 0 | AB21: 0 | AC21: 0 | AD21: 0 | AE21: 0 | AF21: 0 | AG21: 1.7 | AH21: 1.6 | AI21: 1.29 | AJ21: 0.092 | AK21: 0.18 | AL21: 1 | AM21: 1 | AN21: 0.2 | AO21: 1.5 | AP21: 1 | AQ21: 1 | AR21: 1 | AS21: 1 | AT21: 1 | AU21: 100 | AV21: 1 | AW21: 1 | AX21: 1
A22: ='Форма 4'!A371 -> 11. | B22: 1 | C22: 1 | D22: 1 | E22: 1 | F22: 1 | G22: 1 | H22: 1 | I22: 1 | J22: 1 | K22: 0 | L22: 0 | M22: 100 | N22: 0 | O22: 0 | P22: 1 | Q22: 1 | R22: 0 | S22: 0 | T22: 1 | U22: 0 | V22: 0 | W22: 0 | X22: 0 | Y22: 0 | Z22: 0 | AA22: 0 | AB22: 0 | AC22: 0 | AD22: 0 | AE22: 0 | AF22: 0 | AG22: 1.7 | AH22: 1.6 | AI22: 1.29 | AJ22: 0.092 | AK22: 0.18 | AL22: 1 | AM22: 1 | AN22: 0.2 | AO22: 1.5 | AP22: 1 | AQ22: 1 | AR22: 1 | AS22: 1 | AT22: 1 | AU22: 100 | AV22: 1 | AW22: 1 | AX22: 1
B24: Раздел 3. Устройство новой дорожной одежды на уширениях и парковках
A26: ='Форма 4'!A550 -> 12. | B26: 1 | C26: 1 | D26: 1 | E26: 1 | F26: 1 | G26: 1 | H26: 1 | I26: 1 | J26: 1 | K26: 0 | L26: 0 | M26: 100 | N26: 0 | O26: 0 | P26: 1 | Q26: 1 | R26: 0 | S26: 0 | T26: 1 | U26: 0 | V26: 0 | W26: 0 | X26: 0 | Y26: 0 | Z26: 0 | AA26: 0 | AB26: 0 | AC26: 0 | AD26: 0 | AE26: 0 | AF26: 0 | AG26: 1.7 | AH26: 1.6 | AI26: 1.29 | AJ26: 0.092 | AK26: 0.18 | AL26: 1 | AM26: 1 | AN26: 0.2 | AO26: 1.5 | AP26: 1 | AQ26: 1 | AR26: 1 | AS26: 1 | AT26: 1 | AU26: 100 | AV26: 1 | AW26: 1 | AX26: 1
A27: ='Форма 4'!A569 -> 13. | B27: 1 | C27: 1 | D27: 1 | E27: 1 | F27: 1 | G27: 1 | H27: 1 | I27: 1 | J27: 1 | K27: 0 | L27: 0 | M27: 100 | N27: 0 | O27: 0 | P27: 1 | Q27: 1 | R27: 0 | S27: 0 | T27: 1 | U27: 0 | V27: 0 | W27: 0 | X27: 0 | Y27: 0 | Z27: 0 | AA27: 0 | AB27: 0 | AC27: 0 | AD27: 0 | AE27: 0 | AF27: 0 | AG27: 1.7 | AH27: 1.6 | AI27: 1.29 | AJ27: 0.092 | AK27: 0.18 | AL27: 1 | AM27: 1 | AN27: 0.2 | AO27: 1.5 | AP27: 1 | AQ27: 1 | AR27: 1 | AS27: 1 | AT27: 1 | AU27: 100 | AV27: 1 | AW27: 1 | AX27: 1
A28: ='Форма 4'!A588 -> 14. | B28: 1 | C28: 1 | D28: 1 | E28: 1 | F28: 1 | G28: 1 | H28: 1 | I28: 1 | J28: 1 | K28: 0 | L28: 0 | M28: 100 | N28: 0 | O28: 0 | P28: 1 | Q28: 1 | R28: 0 | S28: 0 | T28: 1 | U28: 0 | V28: 0 | W28: 0 | X28: 0 | Y28: 0 | Z28: 0 | AA28: 0 | AB28: 0 | AC28: 0 | AD28: 0 | AE28: 0 | AF28: 0 | AG28: 1.7 | AH28: 1.6 | AI28: 1.29 | AJ28: 0.092 | AK28: 0.18 | AL28: 1 | AM28: 1 | AN28: 0.2 | AO28: 1.5 | AP28: 1 | AQ28: 1 | AR28: 1 | AS28: 1 | AT28: 1 | AU28: 100 | AV28: 1 | AW28: 1 | AX28: 1
A29: ='Форма 4'!A607 -> 15. | B29: 1 | C29: 1 | D29: 1 | E29: 1 | F29: 1 | G29: 1 | H29: 1 | I29: 1 | J29: 1 | K29: 0 | L29: 0 | M29: 100 | N29: 0 | O29: 0 | P29: 1 | Q29: 1 | R29: 0 | S29: 0 | T29: 1 | U29: 0 | V29: 0 | W29: 0 | X29: 0 | Y29: 0 | Z29: 0 | AA29: 0 | AB29: 0 | AC29: 0 | AD29: 0 | AE29: 0 | AF29: 0 | AG29: 1.7 | AH29: 1.6 | AI29: 1.29 | AJ29: 0.092 | AK29: 0.18 | AL29: 1 | AM29: 1 | AN29: 0.2 | AO29: 1.5 | AP29: 1 | AQ29: 1 | AR29: 1 | AS29: 1 | AT29: 1 | AU29: 100 | AV29: 1 | AW29: 1 | AX29: 1
A30: ='Форма 4'!A626 -> 16. | B30: 1 | C30: 1 | D30: 1 | E30: 1 | F30: 1 | G30: 1 | H30: 1 | I30: 1 | J30: 1 | K30: 0 | L30: 0 | M30: 100 | N30: 0 | O30: 0 | P30: 1 | Q30: 1 | R30: 0 | S30: 0 | T30: 1 | U30: 0 | V30: 0 | W30: 0 | X30: 0 | Y30: 0 | Z30: 0 | AA30: 0 | AB30: 0 | AC30: 0 | AD30: 0 | AE30: 0 | AF30: 0 | AG30: 1.7 | AH30: 1.6 | AI30: 1.29 | AJ30: 0.092 | AK30: 0.18 | AL30: 1 | AM30: 1 | AN30: 0.2 | AO30: 1.5 | AP30: 1 | AQ30: 1 | AR30: 1 | AS30: 1 | AT30: 1 | AU30: 100 | AV30: 1 | AW30: 1 | AX30: 1
A31: ='Форма 4'!A646 -> 17. | B31: 1 | C31: 1 | D31: 1 | E31: 1 | F31: 1 | G31: 1 | H31: 1 | I31: 1 | J31: 1 | K31: 0 | L31: 0 | M31: 100 | N31: 0 | O31: 0 | P31: 1 | Q31: 1 | R31: 0 | S31: 0 | T31: 1 | U31: 0 | V31: 0 | W31: 0 | X31: 0 | Y31: 0 | Z31: 0 | AA31: 0 | AB31: 0 | AC31: 0 | AD31: 0 | AE31: 0 | AF31: 0 | AG31: 1.7 | AH31: 1.6 | AI31: 1.29 | AJ31: 0.092 | AK31: 0.18 | AL31: 1 | AM31: 1 | AN31: 0.2 | AO31: 1.5 | AP31: 1 | AQ31: 1 | AR31: 1 | AS31: 1 | AT31: 1 | AU31: 100 | AV31: 1 | AW31: 1 | AX31: 1
A32: ='Форма 4'!A666 -> 18. | B32: 1 | C32: 1 | D32: 1 | E32: 1 | F32: 1 | G32: 1 | H32: 1 | I32: 1 | J32: 1 | K32: 0 | L32: 0 | M32: 100 | N32: 0 | O32: 0 | P32: 1 | Q32: 1 | R32: 0 | S32: 0 | T32: 1 | U32: 0 | V32: 0 | W32: 0 | X32: 0 | Y32: 0 | Z32: 0 | AA32: 0 | AB32: 0 | AC32: 0 | AD32: 0 | AE32: 0 | AF32: 0 | AG32: 1.7 | AH32: 1.6 | AI32: 1.29 | AJ32: 0.092 | AK32: 0.18 | AL32: 1 | AM32: 1 | AN32: 0.2 | AO32: 1.5 | AP32: 1 | AQ32: 1 | AR32: 1 | AS32: 1 | AT32: 1 | AU32: 100 | AV32: 1 | AW32: 1 | AX32: 1
A33: ='Форма 4'!A685 -> 19. | B33: 1 | C33: 1 | D33: 1 | E33: 1 | F33: 1 | G33: 1 | H33: 1 | I33: 1 | J33: 1 | K33: 0 | L33: 0 | M33: 100 | N33: 0 | O33: 0 | P33: 1 | Q33: 1 | R33: 0 | S33: 0 | T33: 1 | U33: 0 | V33: 0 | W33: 0 | X33: 0 | Y33: 0 | Z33: 0 | AA33: 0 | AB33: 0 | AC33: 0 | AD33: 0 | AE33: 0 | AF33: 0 | AG33: 1.7 | AH33: 1.6 | AI33: 1.29 | AJ33: 0.092 | AK33: 0.18 | AL33: 1 | AM33: 1 | AN33: 0.2 | AO33: 1.5 | AP33: 1 | AQ33: 1 | AR33: 1 | AS33: 1 | AT33: 1 | AU33: 100 | AV33: 1 | AW33: 1 | AX33: 1
A34: ='Форма 4'!A705 -> 20. | B34: 1 | C34: 1 | D34: 1 | E34: 1 | F34: 1 | G34: 1 | H34: 1 | I34: 1 | J34: 1 | K34: 0 | L34: 0 | M34: 100 | N34: 0 | O34: 0 | P34: 1 | Q34: 1 | R34: 0 | S34: 0 | T34: 1 | U34: 0 | V34: 0 | W34: 0 | X34: 0 | Y34: 0 | Z34: 0 | AA34: 0 | AB34: 0 | AC34: 0 | AD34: 0 | AE34: 0 | AF34: 0 | AG34: 1.7 | AH34: 1.6 | AI34: 1.29 | AJ34: 0.092 | AK34: 0.18 | AL34: 1 | AM34: 1 | AN34: 0.2 | AO34: 1.5 | AP34: 1 | AQ34: 1 | AR34: 1 | AS34: 1 | AT34: 1 | AU34: 100 | AV34: 1 | AW34: 1 | AX34: 1
A35: ='Форма 4'!A723 -> 21. | B35: 1 | C35: 1 | D35: 1 | E35: 1 | F35: 1 | G35: 1 | H35: 1 | I35: 1 | J35: 1 | K35: 0 | L35: 0 | M35: 100 | N35: 0 | O35: 0 | P35: 1 | Q35: 1 | R35: 0 | S35: 0 | T35: 1 | U35: 0 | V35: 0 | W35: 0 | X35: 0 | Y35: 0 | Z35: 0 | AA35: 0 | AB35: 0 | AC35: 0 | AD35: 0 | AE35: 0 | AF35: 0 | AG35: 1.7 | AH35: 1.6 | AI35: 1.29 | AJ35: 0.092 | AK35: 0.18 | AL35: 1 | AM35: 1 | AN35: 0.2 | AO35: 1.5 | AP35: 1 | AQ35: 1 | AR35: 1 | AS35: 1 | AT35: 1 | AU35: 100 | AV35: 1 | AW35: 1 | AX35: 1
A36: ='Форма 4'!A742 -> 22. | B36: 1 | C36: 1 | D36: 1 | E36: 1 | F36: 1 | G36: 1 | H36: 1 | I36: 1 | J36: 1 | K36: 0 | L36: 0 | M36: 100 | N36: 0 | O36: 0 | P36: 1 | Q36: 1 | R36: 0 | S36: 0 | T36: 1 | U36: 0 | V36: 0 | W36: 0 | X36: 0 | Y36: 0 | Z36: 0 | AA36: 0 | AB36: 0 | AC36: 0 | AD36: 0 | AE36: 0 | AF36: 0 | AG36: 1.7 | AH36: 1.6 | AI36: 1.29 | AJ36: 0.092 | AK36: 0.18 | AL36: 1 | AM36: 1 | AN36: 0.2 | AO36: 1.5 | AP36: 1 | AQ36: 1 | AR36: 1 | AS36: 1 | AT36: 1 | AU36: 100 | AV36: 1 | AW36: 1 | AX36: 1
A37: ='Форма 4'!A760 -> 23. | B37: 1 | C37: 1 | D37: 1 | E37: 1 | F37: 1 | G37: 1 | H37: 1 | I37: 1 | J37: 1 | K37: 0 | L37: 0 | M37: 100 | N37: 0 | O37: 0 | P37: 1 | Q37: 1 | R37: 0 | S37: 0 | T37: 1 | U37: 0 | V37: 0 | W37: 0 | X37: 0 | Y37: 0 | Z37: 0 | AA37: 0 | AB37: 0 | AC37: 0 | AD37: 0 | AE37: 0 | AF37: 0 | AG37: 1.7 | AH37: 1.6 | AI37: 1.29 | AJ37: 0.092 | AK37: 0.18 | AL37: 1 | AM37: 1 | AN37: 0.2 | AO37: 1.5 | AP37: 1 | AQ37: 1 | AR37: 1 | AS37: 1 | AT37: 1 | AU37: 100 | AV37: 1 | AW37: 1 | AX37: 1
A38: ='Форма 4'!A779 -> 24. | B38: 1 | C38: 1 | D38: 1 | E38: 1 | F38: 1 | G38: 1 | H38: 1 | I38: 1 | J38: 1 | K38: 0 | L38: 0 | M38: 100 | N38: 0 | O38: 0 | P38: 1 | Q38: 1 | R38: 0 | S38: 0 | T38: 1 | U38: 0 | V38: 0 | W38: 0 | X38: 0 | Y38: 0 | Z38: 0 | AA38: 0 | AB38: 0 | AC38: 0 | AD38: 0 | AE38: 0 | AF38: 0 | AG38: 1.7 | AH38: 1.6 | AI38: 1.29 | AJ38: 0.092 | AK38: 0.18 | AL38: 1 | AM38: 1 | AN38: 0.2 | AO38: 1.5 | AP38: 1 | AQ38: 1 | AR38: 1 | AS38: 1 | AT38: 1 | AU38: 100 | AV38: 1 | AW38: 1 | AX38: 1
B40: Раздел 4. Установка бортовых камней
A42: ='Форма 4'!A959 -> 25. | B42: 1 | C42: 1 | D42: 1 | E42: 1 | F42: 1 | G42: 1 | H42: 1 | I42: 1 | J42: 1 | K42: 0 | L42: 0 | M42: 100 | N42: 0 | O42: 0 | P42: 1 | Q42: 1 | R42: 0 | S42: 0 | T42: 1 | U42: 0 | V42: 0 | W42: 0 | X42: 0 | Y42: 0 | Z42: 0 | AA42: 0 | AB42: 0 | AC42: 0 | AD42: 0 | AE42: 0 | AF42: 0 | AG42: 1.7 | AH42: 1.6 | AI42: 1.29 | AJ42: 0.092 | AK42: 0.18 | AL42: 1 | AM42: 1 | AN42: 0.2 | AO42: 1.5 | AP42: 1 | AQ42: 1 | AR42: 1 | AS42: 1 | AT42: 1 | AU42: 100 | AV42: 1 | AW42: 1 | AX42: 1
A43: ='Форма 4'!A979 -> 26. | B43: 1 | C43: 1 | D43: 1 | E43: 1 | F43: 1 | G43: 1 | H43: 1 | I43: 1 | J43: 1 | K43: 0 | L43: 0 | M43: 100 | N43: 0 | O43: 0 | P43: 1 | Q43: 1 | R43: 0 | S43: 0 | T43: 1 | U43: 0 | V43: 0 | W43: 0 | X43: 0 | Y43: 0 | Z43: 0 | AA43: 0 | AB43: 0 | AC43: 0 | AD43: 0 | AE43: 0 | AF43: 0 | AG43: 1.7 | AH43: 1.6 | AI43: 1.29 | AJ43: 0.092 | AK43: 0.18 | AL43: 1 | AM43: 1 | AN43: 0.2 | AO43: 1.5 | AP43: 1 | AQ43: 1 | AR43: 1 | AS43: 1 | AT43: 1 | AU43: 100 | AV43: 1 | AW43: 1 | AX43: 1
A44: ='Форма 4'!A1000 -> 27. | B44: 1 | C44: 1 | D44: 1 | E44: 1 | F44: 1 | G44: 1 | H44: 1 | I44: 1 | J44: 1 | K44: 0 | L44: 0 | M44: 100 | N44: 0 | O44: 0 | P44: 1 | Q44: 1 | R44: 0 | S44: 0 | T44: 1 | U44: 0 | V44: 0 | W44: 0 | X44: 0 | Y44: 0 | Z44: 0 | AA44: 0 | AB44: 0 | AC44: 0 | AD44: 0 | AE44: 0 | AF44: 0 | AG44: 1.7 | AH44: 1.6 | AI44: 1.29 | AJ44: 0.092 | AK44: 0.18 | AL44: 1 | AM44: 1 | AN44: 0.2 | AO44: 1.5 | AP44: 1 | AQ44: 1 | AR44: 1 | AS44: 1 | AT44: 1 | AU44: 100 | AV44: 1 | AW44: 1 | AX44: 1
A45: ='Форма 4'!A1020 -> 28. | B45: 1 | C45: 1 | D45: 1 | E45: 1 | F45: 1 | G45: 1 | H45: 1 | I45: 1 | J45: 1 | K45: 0 | L45: 0 | M45: 100 | N45: 0 | O45: 0 | P45: 1 | Q45: 1 | R45: 0 | S45: 0 | T45: 1 | U45: 0 | V45: 0 | W45: 0 | X45: 0 | Y45: 0 | Z45: 0 | AA45: 0 | AB45: 0 | AC45: 0 | AD45: 0 | AE45: 0 | AF45: 0 | AG45: 1.7 | AH45: 1.6 | AI45: 1.29 | AJ45: 0.092 | AK45: 0.18 | AL45: 1 | AM45: 1 | AN45: 0.2 | AO45: 1.5 | AP45: 1 | AQ45: 1 | AR45: 1 | AS45: 1 | AT45: 1 | AU45: 100 | AV45: 1 | AW45: 1 | AX45: 1
A46: ='Форма 4'!A1040 -> 29. | B46: 1 | C46: 1 | D46: 1 | E46: 1 | F46: 1 | G46: 1 | H46: 1 | I46: 1 | J46: 1 | K46: 0 | L46: 0 | M46: 100 | N46: 0 | O46: 0 | P46: 1 | Q46: 1 | R46: 0 | S46: 0 | T46: 1 | U46: 0 | V46: 0 | W46: 0 | X46: 0 | Y46: 0 | Z46: 0 | AA46: 0 | AB46: 0 | AC46: 0 | AD46: 0 | AE46: 0 | AF46: 0 | AG46: 1.7 | AH46: 1.6 | AI46: 1.29 | AJ46: 0.092 | AK46: 0.18 | AL46: 1 | AM46: 1 | AN46: 0.2 | AO46: 1.5 | AP46: 1 | AQ46: 1 | AR46: 1 | AS46: 1 | AT46: 1 | AU46: 100 | AV46: 1 | AW46: 1 | AX46: 1
B48: Раздел 5. Устройство тротуаров
A50: ='Форма 4'!A1219 -> 30. | B50: 1 | C50: 1 | D50: 1 | E50: 1 | F50: 1 | G50: 1 | H50: 1 | I50: 1 | J50: 1 | K50: 0 | L50: 0 | M50: 100 | N50: 0 | O50: 0 | P50: 1 | Q50: 1 | R50: 0 | S50: 0 | T50: 1 | U50: 0 | V50: 0 | W50: 0 | X50: 0 | Y50: 0 | Z50: 0 | AA50: 0 | AB50: 0 | AC50: 0 | AD50: 0 | AE50: 0 | AF50: 0 | AG50: 1.7 | AH50: 1.6 | AI50: 1.29 | AJ50: 0.092 | AK50: 0.18 | AL50: 1 | AM50: 1 | AN50: 0.2 | AO50: 1.5 | AP50: 1 | AQ50: 1 | AR50: 1 | AS50: 1 | AT50: 1 | AU50: 100 | AV50: 1 | AW50: 1 | AX50: 1
A51: ='Форма 4'!A1239 -> 31. | B51: 1 | C51: 1 | D51: 1 | E51: 1 | F51: 1 | G51: 1 | H51: 1 | I51: 1 | J51: 1 | K51: 0 | L51: 0 | M51: 100 | N51: 0 | O51: 0 | P51: 1 | Q51: 1 | R51: 0 | S51: 0 | T51: 1 | U51: 0 | V51: 0 | W51: 0 | X51: 0 | Y51: 0 | Z51: 0 | AA51: 0 | AB51: 0 | AC51: 0 | AD51: 0 | AE51: 0 | AF51: 0 | AG51: 1.7 | AH51: 1.6 | AI51: 1.29 | AJ51: 0.092 | AK51: 0.18 | AL51: 1 | AM51: 1 | AN51: 0.2 | AO51: 1.5 | AP51: 1 | AQ51: 1 | AR51: 1 | AS51: 1 | AT51: 1 | AU51: 100 | AV51: 1 | AW51: 1 | AX51: 1
A52: ='Форма 4'!A1259 -> 32. | B52: 1 | C52: 1 | D52: 1 | E52: 1 | F52: 1 | G52: 1 | H52: 1 | I52: 1 | J52: 1 | K52: 0 | L52: 0 | M52: 100 | N52: 0 | O52: 0 | P52: 1 | Q52: 1 | R52: 0 | S52: 0 | T52: 1 | U52: 0 | V52: 0 | W52: 0 | X52: 0 | Y52: 0 | Z52: 0 | AA52: 0 | AB52: 0 | AC52: 0 | AD52: 0 | AE52: 0 | AF52: 0 | AG52: 1.7 | AH52: 1.6 | AI52: 1.29 | AJ52: 0.092 | AK52: 0.18 | AL52: 1 | AM52: 1 | AN52: 0.2 | AO52: 1.5 | AP52: 1 | AQ52: 1 | AR52: 1 | AS52: 1 | AT52: 1 | AU52: 100 | AV52: 1 | AW52: 1 | AX52: 1
A53: ='Форма 4'!A1279 -> 33. | B53: 1 | C53: 1 | D53: 1 | E53: 1 | F53: 1 | G53: 1 | H53: 1 | I53: 1 | J53: 1 | K53: 0 | L53: 0 | M53: 100 | N53: 0 | O53: 0 | P53: 1 | Q53: 1 | R53: 0 | S53: 0 | T53: 1 | U53: 0 | V53: 0 | W53: 0 | X53: 0 | Y53: 0 | Z53: 0 | AA53: 0 | AB53: 0 | AC53: 0 | AD53: 0 | AE53: 0 | AF53: 0 | AG53: 1.7 | AH53: 1.6 | AI53: 1.29 | AJ53: 0.092 | AK53: 0.18 | AL53: 1 | AM53: 1 | AN53: 0.2 | AO53: 1.5 | AP53: 1 | AQ53: 1 | AR53: 1 | AS53: 1 | AT53: 1 | AU53: 100 | AV53: 1 | AW53: 1 | AX53: 1
A54: ='Форма 4'!A1298 -> 34. | B54: 1 | C54: 1 | D54: 1 | E54: 1 | F54: 1 | G54: 1 | H54: 1 | I54: 1 | J54: 1 | K54: 0 | L54: 0 | M54: 100 | N54: 0 | O54: 0 | P54: 1 | Q54: 1 | R54: 0 | S54: 0 | T54: 1 | U54: 0 | V54: 0 | W54: 0 | X54: 0 | Y54: 0 | Z54: 0 | AA54: 0 | AB54: 0 | AC54: 0 | AD54: 0 | AE54: 0 | AF54: 0 | AG54: 1.7 | AH54: 1.6 | AI54: 1.29 | AJ54: 0.092 | AK54: 0.18 | AL54: 1 | AM54: 1 | AN54: 0.2 | AO54: 1.5 | AP54: 1 | AQ54: 1 | AR54: 1 | AS54: 1 | AT54: 1 | AU54: 100 | AV54: 1 | AW54: 1 | AX54: 1
A55: ='Форма 4'!A1318 -> 35. | B55: 1 | C55: 1 | D55: 1 | E55: 1 | F55: 1 | G55: 1 | H55: 1 | I55: 1 | J55: 1 | K55: 0 | L55: 0 | M55: 100 | N55: 0 | O55: 0 | P55: 1 | Q55: 1 | R55: 0 | S55: 0 | T55: 1 | U55: 0 | V55: 0 | W55: 0 | X55: 0 | Y55: 0 | Z55: 0 | AA55: 0 | AB55: 0 | AC55: 0 | AD55: 0 | AE55: 0 | AF55: 0 | AG55: 1.7 | AH55: 1.6 | AI55: 1.29 | AJ55: 0.092 | AK55: 0.18 | AL55: 1 | AM55: 1 | AN55: 0.2 | AO55: 1.5 | AP55: 1 | AQ55: 1 | AR55: 1 | AS55: 1 | AT55: 1 | AU55: 100 | AV55: 1 | AW55: 1 | AX55: 1
A56: ='Форма 4'!A1338 -> 36. | B56: 1 | C56: 1 | D56: 1 | E56: 1 | F56: 1 | G56: 1 | H56: 1 | I56: 1 | J56: 1 | K56: 0 | L56: 0 | M56: 100 | N56: 0 | O56: 0 | P56: 1 | Q56: 1 | R56: 0 | S56: 0 | T56: 1 | U56: 0 | V56: 0 | W56: 0 | X56: 0 | Y56: 0 | Z56: 0 | AA56: 0 | AB56: 0 | AC56: 0 | AD56: 0 | AE56: 0 | AF56: 0 | AG56: 1.7 | AH56: 1.6 | AI56: 1.29 | AJ56: 0.092 | AK56: 0.18 | AL56: 1 | AM56: 1 | AN56: 0.2 | AO56: 1.5 | AP56: 1 | AQ56: 1 | AR56: 1 | AS56: 1 | AT56: 1 | AU56: 100 | AV56: 1 | AW56: 1 | AX56: 1
A57: ='Форма 4'!A1357 -> 37. | B57: 1 | C57: 1 | D57: 1 | E57: 1 | F57: 1 | G57: 1 | H57: 1 | I57: 1 | J57: 1 | K57: 0 | L57: 0 | M57: 100 | N57: 0 | O57: 0 | P57: 1 | Q57: 1 | R57: 0 | S57: 0 | T57: 1 | U57: 0 | V57: 0 | W57: 0 | X57: 0 | Y57: 0 | Z57: 0 | AA57: 0 | AB57: 0 | AC57: 0 | AD57: 0 | AE57: 0 | AF57: 0 | AG57: 1.7 | AH57: 1.6 | AI57: 1.29 | AJ57: 0.092 | AK57: 0.18 | AL57: 1 | AM57: 1 | AN57: 0.2 | AO57: 1.5 | AP57: 1 | AQ57: 1 | AR57: 1 | AS57: 1 | AT57: 1 | AU57: 100 | AV57: 1 | AW57: 1 | AX57: 1
A58: ='Форма 4'!A1377 -> 38. | B58: 1 | C58: 1 | D58: 1 | E58: 1 | F58: 1 | G58: 1 | H58: 1 | I58: 1 | J58: 1 | K58: 0 | L58: 0 | M58: 100 | N58: 0 | O58: 0 | P58: 1 | Q58: 1 | R58: 0 | S58: 0 | T58: 1 | U58: 0 | V58: 0 | W58: 0 | X58: 0 | Y58: 0 | Z58: 0 | AA58: 0 | AB58: 0 | AC58: 0 | AD58: 0 | AE58: 0 | AF58: 0 | AG58: 1.7 | AH58: 1.6 | AI58: 1.29 | AJ58: 0.092 | AK58: 0.18 | AL58: 1 | AM58: 1 | AN58: 0.2 | AO58: 1.5 | AP58: 1 | AQ58: 1 | AR58: 1 | AS58: 1 | AT58: 1 | AU58: 100 | AV58: 1 | AW58: 1 | AX58: 1
B60: Раздел 6. Восстановление газонов
A62: ='Форма 4'!A1555 -> 39. | B62: 1 | C62: 1 | D62: 1 | E62: 1 | F62: 1 | G62: 1 | H62: 1 | I62: 1 | J62: 1 | K62: 0 | L62: 0 | M62: 100 | N62: 0 | O62: 0 | P62: 1 | Q62: 1 | R62: 0 | S62: 0 | T62: 1 | U62: 0 | V62: 0 | W62: 0 | X62: 0 | Y62: 0 | Z62: 0 | AA62: 0 | AB62: 0 | AC62: 0 | AD62: 0 | AE62: 0 | AF62: 0 | AG62: 1.7 | AH62: 1.6 | AI62: 1.29 | AJ62: 0.092 | AK62: 0.18 | AL62: 1 | AM62: 1 | AN62: 0.2 | AO62: 1.5 | AP62: 1 | AQ62: 1 | AR62: 1 | AS62: 1 | AT62: 1 | AU62: 100 | AV62: 1 | AW62: 1 | AX62: 1
B64: Раздел 7. Наращивание колодцев
A66: ='Форма 4'!A1730 -> 40. | B66: 1 | C66: 0 | D66: 0.6 | E66: 0.6 | F66: 0.6 | G66: 1 | H66: 1 | I66: 1 | J66: 1 | K66: 0 | L66: 0 | M66: 100 | N66: 0 | O66: 0 | P66: 1 | Q66: 1 | R66: 0 | S66: 0 | T66: 1 | U66: 0 | V66: 0 | W66: 0 | X66: 0 | Y66: 0 | Z66: 0 | AA66: 0 | AB66: 0 | AC66: 0 | AD66: 0 | AE66: 0 | AF66: 0 | AG66: 1.7 | AH66: 1.6 | AI66: 1.29 | AJ66: 0.092 | AK66: 0.18 | AL66: 1 | AM66: 1 | AN66: 0.2 | AO66: 1.5 | AP66: 1 | AQ66: 1 | AR66: 1 | AS66: 1 | AT66: 1 | AU66: 100 | AV66: 1 | AW66: 1 | AX66: 1
A67: ='Форма 4'!A1749 -> 41. | B67: 1 | C67: 1 | D67: 1 | E67: 1 | F67: 1 | G67: 1 | H67: 1 | I67: 1 | J67: 1 | K67: 0 | L67: 0 | M67: 100 | N67: 0 | O67: 0 | P67: 1 | Q67: 1 | R67: 0 | S67: 0 | T67: 1 | U67: 0 | V67: 0 | W67: 0 | X67: 0 | Y67: 0 | Z67: 0 | AA67: 0 | AB67: 0 | AC67: 0 | AD67: 0 | AE67: 0 | AF67: 0 | AG67: 1.7 | AH67: 1.6 | AI67: 1.29 | AJ67: 0.092 | AK67: 0.18 | AL67: 1 | AM67: 1 | AN67: 0.2 | AO67: 1.5 | AP67: 1 | AQ67: 1 | AR67: 1 | AS67: 1 | AT67: 1 | AU67: 100 | AV67: 1 | AW67: 1 | AX67: 1
A68: ='Форма 4'!A1768 -> 42. | B68: 1 | C68: 1 | D68: 1 | E68: 1 | F68: 1 | G68: 1 | H68: 1 | I68: 1 | J68: 1 | K68: 0 | L68: 0 | M68: 100 | N68: 0 | O68: 0 | P68: 1 | Q68: 1 | R68: 0 | S68: 0 | T68: 1 | U68: 0 | V68: 0 | W68: 0 | X68: 0 | Y68: 0 | Z68: 0 | AA68: 0 | AB68: 0 | AC68: 0 | AD68: 0 | AE68: 0 | AF68: 0 | AG68: 1.7 | AH68: 1.6 | AI68: 1.29 | AJ68: 0.092 | AK68: 0.18 | AL68: 1 | AM68: 1 | AN68: 0.2 | AO68: 1.5 | AP68: 1 | AQ68: 1 | AR68: 1 | AS68: 1 | AT68: 1 | AU68: 100 | AV68: 1 | AW68: 1 | AX68: 1
A69: ='Форма 4'!A1788 -> 43. | B69: 1 | C69: 1 | D69: 1 | E69: 1 | F69: 1 | G69: 1 | H69: 1 | I69: 1 | J69: 1 | K69: 0 | L69: 0 | M69: 100 | N69: 0 | O69: 0 | P69: 1 | Q69: 1 | R69: 0 | S69: 0 | T69: 1 | U69: 0 | V69: 0 | W69: 0 | X69: 0 | Y69: 0 | Z69: 0 | AA69: 0 | AB69: 0 | AC69: 0 | AD69: 0 | AE69: 0 | AF69: 0 | AG69: 1.7 | AH69: 1.6 | AI69: 1.29 | AJ69: 0.092 | AK69: 0.18 | AL69: 1 | AM69: 1 | AN69: 0.2 | AO69: 1.5 | AP69: 1 | AQ69: 1 | AR69: 1 | AS69: 1 | AT69: 1 | AU69: 100 | AV69: 1 | AW69: 1 | AX69: 1

Sheet Определители
B1: О0 | C1: О1 | D1: О2 | E1: О3 | F1: О4 | G1: О5 | H1: О6 | I1: О7 | J1: О8
B3: N = < 9 * 13 * 64 >
B4: Кирова,97 .Собственники
B7: Раздел 1. Валка деревьев
A9: ='Форма 4'!A27 -> 1. | B9: 1 | C9: 1 | F9: 0 | I9: 2
A10: ='Форма 4'!A45 -> 2. | B10: 1 | C10: 1 | F10: 0 | I10: 2
A11: ='Форма 4'!A63 -> 3. | B11: 1 | C11: 1 | F11: 0 | I11: 2
A12: ='Форма 4'!A81 -> 4. | B12: 1 | C12: 1 | F12: 0 | I12: 2
A13: ='Форма 4'!A99 -> 5. | B13: 1 | C13: 1 | F13: 0 | I13: 2
A14: ='Форма 4'!A117 -> 6. | B14: 1 | C14: 1 | F14: 0 | I14: 2
A15: ='Форма 4'!A136 -> 7. | B15: 1 | C15: 1 | F15: 0 | G15: 3 | I15: ;
A16: ='Форма 4'!A155 -> 8. | B16: 1 | C16: 1 | F16: 0 | G16: 3 | I16: ;
B18: Раздел 2. Разборка бортовых камней и а/бетонного покрытия
A20: ='Форма 4'!A334 -> 9. | B20: 1 | C20: 1 | F20: 0 | I20: 2
A21: ='Форма 4'!A352 -> 10. | B21: 1 | C21: 1 | F21: 0 | G21: 3 | I21: ;
A22: ='Форма 4'!A371 -> 11. | B22: 1 | C22: 1 | F22: 0 | G22: 3 | I22: ;
B24: Раздел 3. Устройство новой дорожной одежды на уширениях и парковках
A26: ='Форма 4'!A550 -> 12. | B26: 1 | C26: 1 | F26: 0 | I26: 2
A27: ='Форма 4'!A569 -> 13. | B27: 1 | C27: 1 | F27: 0 | G27: 3 | I27: ;
A28: ='Форма 4'!A588 -> 14. | B28: 1 | C28: 1 | F28: 0 | G28: 3 | I28: ;
A29: ='Форма 4'!A607 -> 15. | B29: 1 | C29: 1 | F29: 0 | I29: 2
A30: ='Форма 4'!A626 -> 16. | B30: 1 | C30: 1 | F30: 0 | I30: 2
A31: ='Форма 4'!A646 -> 17. | B31: 1 | C31: 1 | F31: 0 | I31: 2
A32: ='Форма 4'!A666 -> 18. | B32: 1 | C32: 1 | F32: 0 | I32: 2
A33: ='Форма 4'!A685 -> 19. | B33: 1 | C33: 1 | F33: 0 | I33: 2
A34: ='Форма 4'!A705 -> 20. | B34: 1 | C34: 1 | F34: 0 | I34: 2
A35: ='Форма 4'!A723 -> 21. | B35: 1 | C35: 1 | F35: 0 | G35: 1 | I35: 2 | J35: 1
A36: ='Форма 4'!A742 -> 22. | B36: 1 | C36: 1 | F36: 0 | I36: 2
A37: ='Форма 4'!A760 -> 23. | B37: 1 | C37: 1 | F37: 0 | I37: 2
A38: ='Форма 4'!A779 -> 24. | B38: 1 | C38: 1 | F38: 0 | G38: 1 | I38: 2 | J38: 1
B40: Раздел 4. Установка бортовых камней
A42: ='Форма 4'!A959 -> 25. | B42: 1 | C42: 1 | F42: 0 | I42: 2
A43: ='Форма 4'!A979 -> 26. | B43: 1 | C43: 1 | F43: 0 | I43: 2
A44: ='Форма 4'!A1000 -> 27. | B44: 1 | C44: 1 | F44: 0 | I44: 2
A45: ='Форма 4'!A1020 -> 28. | B45: 1 | C45: 1 | F45: 0 | I45: 2
A46: ='Форма 4'!A1040 -> 29. | B46: 1 | C46: 1 | F46: 0 | I46: 2
B48: Раздел 5. Устройство тротуаров
A50: ='Форма 4'!A1219 -> 30. | B50: 1 | C50: 1 | F50: 0 | I50: 2
A51: ='Форма 4'!A1239 -> 31. | B51: 1 | C51: 1 | F51: 0 | I51: 2
A52: ='Форма 4'!A1259 -> 32. | B52: 1 | C52: 1 | F52: 0 | I52: 2
A53: ='Форма 4'!A1279 -> 33. | B53: 1 | C53: 1 | F53: 0 | I53: 2
A54: ='Форма 4'!A1298 -> 34. | B54: 1 | C54: 1 | F54: 0 | I54: 2
A55: ='Форма 4'!A1318 -> 35. | B55: 1 | C55: 1 | F55: 0 | I55: 2
A56: ='Форма 4'!A1338 -> 36. | B56: 1 | C56: 1 | F56: 0 | I56: 2
A57: ='Форма 4'!A1357 -> 37. | B57: 1 | C57: 1 | F57: 0 | I57: 2
A58: ='Форма 4'!A1377 -> 38. | B58: 1 | C58: 1 | F58: 0 | G58: 1 | I58: 2 | J58: 1
B60: Раздел 6. Восстановление газонов
A62: ='Форма 4'!A1555 -> 39. | B62: 1 | C62: 1 | F62: 0 | I62: 2
B64: Раздел 7. Наращивание колодцев
A66: ='Форма 4'!A1730 -> 40. | B66: 1 | C66: 1 | F66: 0 | I66: 2
A67: ='Форма 4'!A1749 -> 41. | B67: 1 | C67: 1 | F67: 0 | I67: 2
A68: ='Форма 4'!A1768 -> 42. | B68: 1 | C68: 1 | F68: 0 | I68: 2
A69: ='Форма 4'!A1788 -> 43. | B69: 1 | C69: 1 | F69: 0 | I69: 2

Sheet Базовые концовки
B3: N = < 9 * 13 * 64 >
B4: Кирова,97 .Собственники
B7: Раздел 1. Валка деревьев
B9: Наименование | C9: Вид | D9: Значение | E9: ЕИ | F9: Z1 | G9: Z2 | H9: Z3 | I9: Z4 | J9: Z5 | K9: Z6 | L9: Z7 | M9: Z8
A10: 1 | B10: . ИТОГО ПО СМЕТЕ | C10: А | D10: 0 | F10: =ROUND(SUM('Базовые цены с учетом расхода'!B9:B16),0) -> 1258 | G10: =ROUND(SUM('Базовые цены с учетом расхода'!C9:C16),0) -> 581 | H10: =ROUND(SUM('Базовые цены с учетом расхода'!D9:D16),0) -> 535 | I10: =ROUND(SUM('Базовые цены с учетом расхода'!E9:E16),0) -> 20 | J10: =ROUND(SUM('Базовые цены с учетом расхода'!I9:I16),8) -> 57.90499 | K10: =ROUND(SUM('Базовые цены с учетом расхода'!K9:K16),8) -> 1.44814 | L10: =ROUND(SUM('Базовые цены с учетом расхода'!F9:F16),0) -> 97
A11: 2 | B11: СТОИМОСТЬ ОБОРУДОВАНИЯ - | C11: Б | D11: 0 | F11: =ROUND(SUMIF(Определители!I9:I16,"= ",'Базовые цены с учетом расхода'!B9:B16),0) -> 0 | G11: =ROUND(SUMIF(Определители!I9:I16,"= ",'Базовые цены с учетом расхода'!C9:C16),0) -> 0 | H11: =ROUND(SUMIF(Определители!I9:I16,"= ",'Базовые цены с учетом расхода'!D9:D16),0) -> 0 | I11: =ROUND(SUMIF(Определители!I9:I16,"= ",'Базовые цены с учетом расхода'!E9:E16),0) -> 0 | J11: =ROUND(SUMIF(Определители!I9:I16,"= ",'Базовые цены с учетом расхода'!I9:I16),8) -> 0 | K11: =ROUND(SUMIF(Определители!I9:I16,"= ",'Базовые цены с учетом расхода'!K9:K16),8) -> 0 | L11: =ROUND(SUMIF(Определители!I9:I16,"= ",'Базовые цены с учетом расхода'!F9:F16),0) -> 0
A12: 3 | B12: . ЗАПАСНЫЕ ЧАСТИ - | C12: Б | D12: 0 | F12: =ROUND(СУММПРОИЗВЕСЛИ(0.01,Определители!I9:I16," ",'Базовые цены с учетом расхода'!B9:B16,Начисления!X9:X16,0),0) -> 0
A13: 4 | B13: . ТАРА И УПАКОВКА - | C13: Б | D13: 0 | F13: =ROUND(СУММПРОИЗВЕСЛИ(0.01,Определители!I9:I16," ",'Базовые цены с учетом расхода'!B9:B16,Начисления!Y9:Y16,0),0) -> 0
A14: 5 | B14: . ТРАНСПОРТНЫЕ РАСХОДЫ - | C14: Б | D14: 0 | F14: =ROUND(ТРАНСПРАСХОД(Определители!B9:B16,Определители!H9:H16,Определители!I9:I16,'Базовые цены с учетом расхода'!B9:B16,Начисления!Z9:Z16,Начисления!AA9:AA16),0) -> 0
A15: 6 | B15: . КОМПЛЕКТАЦИЯ - | C15: Б | D15: 0 | F15: =ROUND(СУММПРОИЗВЕСЛИ(0.01,Определители!I9:I16," ",'Базовые цены с учетом расхода'!B9:B16,Начисления!AC9:AC16,0),0) -> 0
A16: 7 | B16: . НАЦЕНКА СНАБА - | C16: Б | D16: 0 | F16: =ROUND(СУММПРОИЗВЕСЛИ(0.01,Определители!I9:I16," ",'Базовые цены с учетом расхода'!B9:B16,Начисления!AF9:AF16,0),0) -> 0
A17: 8 | B17: . ЗАГОТОВИТЕЛЬНО-СКЛАДСКИЕ РАСХОДЫ - | C17: Б | D17: 0 | F17: =ROUND(ЗАГОТСКЛАДРАСХОД(Определители!B9:B16,Определители!H9:H16,Определители!I9:I16,'Базовые цены с учетом расхода'!B9:B16,Начисления!X9:X16,Начисления!Y9:Y16,Начисления!Z9:Z16,Начисления!AA9:AA16,Начисления!AB9:AB16,Начисления!AC9:AC16,Начисления!AF9:AF16),0) -> 0
A18: 9 | B18: . ШЕФМОНТАЖ ПО ОБОРУДОВАНИЮ - | C18: Б | D18: 0 | F18: =ROUND(СУММПРОИЗВЕСЛИ(1,Определители!I9:I16," ",'Базовые цены с учетом расхода'!M9:M16,Начисления!I9:I16,0),0) -> 0
A19: 10 | B19: . ШЕФМОНТАЖ - | C19: ! | D19: 0 | F19: =ROUND((F18+F30+F59),0) -> 0
A20: 11 | B20: ВСЕГО, СТОИМОСТЬ ОБОРУДОВАНИЯ - | C20: ! | D20: 0 | F20: =ROUND((F11+F12+F13+F14+F15+F16+F17+F19),0) -> 0
A21: 12 | B21: Оборудование ТЦ | C21: k | D21: 1 | F21: =ROUND((F20)*D21,0) -> 0
A22: 13 | B22: СТОИМОСТЬ МОНТАЖНЫХ РАБОТ - | C22: Б | D22: 0 | F22: =ROUND(SUMIF(Определители!I9:I16,"=1",'Базовые цены с учетом расхода'!B9:B16),0) -> 0 | G22: =ROUND(SUMIF(Определители!I9:I16,"=1",'Базовые цены с учетом расхода'!C9:C16),0) -> 0 | H22: =ROUND(SUMIF(Определители!I9:I16,"=1",'Базовые цены с учетом расхода'!D9:D16),0) -> 0 | I22: =ROUND(SUMIF(Определители!I9:I16,"=1",'Базовые цены с учетом расхода'!E9:E16),0) -> 0 | J22: =ROUND(SUMIF(Определители!I9:I16,"=1",'Базовые цены с учетом расхода'!I9:I16),8) -> 0 | K22: =ROUND(SUMIF(Определители!I9:I16,"=1",'Базовые цены с учетом расхода'!K9:K16),8) -> 0 | L22: =ROUND(SUMIF(Определители!I9:I16,"=1",'Базовые цены с учетом расхода'!F9:F16),0) -> 0
A23: 14 | B23: . В ТОМ ЧИСЛЕ: | C23: Б | D23: 0
A24: 15 | B24: . ОТКЛОНЕНИЕ ПО ЗАРАБОТНОЙ ПЛАТЕ - | C24: Б | D24: 0 | G24: =ROUND(SUMIF(Определители!I9:I16,"=1",'Базовые цены с учетом расхода'!T9:T16),0) -> 0
A25: 16 | B25: . КОСВЕННЫЕ РАСХОДЫ - | C25: Б | D25: 0 | F25: =ROUND(SUMIF(Определители!I9:I16,"=1",'Базовые цены с учетом расхода'!U9:U16),0) -> 0
A26: 17 | B26: . МАТЕРИАЛЬНЫЕ РЕСУРСЫ НЕ УЧТЕННЫЕ В РАСЦЕНКАХ - | C26: Б | D26: 0 | F26: =ROUND(СУММЕСЛИ2(Определители!I9:I16,"1",Определители!G9:G16,"1",'Базовые цены с учетом расхода'!B9:B16),0) -> 0
A27: 18 | B27: . СТОИМОСТЬ ВОЗВРАЩАЕМЫХ МАТЕРИАЛОВ - | C27: Б | D27: 0 | F27: =ROUND(SUMIF(Определители!I9:I16,"=1",'Базовые цены с учетом расхода'!H9:H16),0) -> 0
A28: 19 | B28: . НАКЛАДНЫЕ РАСХОДЫ - | C28: Б | D28: 0 | F28: =ROUND(SUMIF(Определители!I9:I16,"=1",'Базовые цены с учетом расхода'!N9:N16),0) -> 0
A29: 20 | B29: . СМЕТНАЯ ПРИБЫЛЬ - | C29: Б | D29: 0 | F29: =ROUND(SUMIF(Определители!I9:I16,"=1",'Базовые цены с учетом расхода'!O9:O16),0) -> 0
A30: 21 | B30: . ШЕФМОНТАЖ - | C30: Б | D30: 0 | F30: =ROUND(СУММПРОИЗВЕСЛИ(1,Определители!I9:I16," ",'Базовые цены с учетом расхода'!M9:M16,Начисления!I9:I16,0),0) -> 0
A31: 22 | B31: ВСЕГО, СТОИМОСТЬ МОНТАЖНЫХ РАБОТ - | C31: ! | D31: 0 | F31: =ROUND((F22+F28+F29),0) -> 0
A32: 23 | B32: Монтажные работы БЦ ЭМ | C32: s | D32: 0 | F32: =ROUND((H22),0) -> 0
A33: 24 | B33: Монтажные работы БЦ ЗПМ | C33: s | D33: 0 | F33: =ROUND((I22),0) -> 0
A34: 25 | B34: Монтажные работы ТЦ ЗП | C34: k | D34: 21.324 | F34: =ROUND((G22)*D34,0) -> 0
A35: 26 | B35: Монтажные работы ТЦ ЗПМ | C35: k | D35: 21.324 | F35: =ROUND((F33)*D35,0) -> 0
A36: 27 | B36: Монтажные работы ТЦ ЭМ | C36: k | D36: 6.152 | F36: =ROUND((F32)*D36,0) -> 0
A37: 28 | B37: Монтажные работы ТЦ материалы | C37: k | D37: 6.32 | F37: =ROUND((L22)*D37,0) -> 0
A38: 29 | B38: Монтажные работы ТЦ НР | C38: k | D38: 21.324 | F38: =ROUND((F28)*D38,0) -> 0
A39: 30 | B39: Монтажные работы ТЦ СП | C39: k | D39: 21.324 | F39: =ROUND((F29)*D39,0) -> 0
A40: 31 | B40: Монтажные работы ТЦ всего | C40: s | D40: 0 | F40: =ROUND((F34+F36+F37+F38+F39),0) -> 0
A41: 32 | B41: СТОИМОСТЬ ОБЩЕСТРОИТЕЛЬНЫХ РАБОТ - | C41: Б | D41: 0 | F41: =ROUND(SUMIF(Определители!I9:I16,"=2",'Базовые цены с учетом расхода'!B9:B16),0) -> 1024 | G41: =ROUND(SUMIF(Определители!I9:I16,"=2",'Базовые цены с учетом расхода'!C9:C16),0) -> 563 | H41: =ROUND(SUMIF(Определители!I9:I16,"=2",'Базовые цены с учетом расхода'!D9:D16),0) -> 364 | I41: =ROUND(SUMIF(Определители!I9:I16,"=2",'Базовые цены с учетом расхода'!E9:E16),0) -> 11 | J41: =ROUND(SUMIF(Определители!I9:I16,"=2",'Базовые цены с учетом расхода'!I9:I16),8) -> 55.9369 | K41: =ROUND(SUMIF(Определители!I9:I16,"=2",'Базовые цены с учетом расхода'!K9:K16),8) -> 0.6718 | L41: =ROUND(SUMIF(Определители!I9:I16,"=2",'Базовые цены с учетом расхода'!F9:F16),0) -> 97
A42: 33 | B42: . В ТОМ ЧИСЛЕ: | C42: Б | D42: 0
A43: 34 | B43: . МАТЕРИАЛОВ - | C43: Б | D43: 0 | F43: =ROUND(СУММЕСЛИ2(Определители!I9:I16,"2",Определители!G9:G16,"1",'Базовые цены с учетом расхода'!B9:B16),0) -> 0
A44: 35 | B44: . СТОИМОСТЬ ВОЗВРАЩАЕМЫХ МАТЕРИАЛОВ - | C44: Б | D44: 0 | F44: =ROUND(SUMIF(Определители!I9:I16,"=2",'Базовые цены с учетом расхода'!H9:H16),0) -> 0
A45: 36 | B45: . НАКЛАДНЫЕ РАСХОДЫ - | C45: Б | D45: 0 | F45: =ROUND(SUMIF(Определители!I9:I16,"=2",'Базовые цены с учетом расхода'!N9:N16),0) -> 594
A46: 37 | B46: . СМЕТНАЯ ПРИБЫЛЬ - | C46: Б | D46: 0 | F46: =ROUND(SUMIF(Определители!I9:I16,"=2",'Базовые цены с учетом расхода'!O9:O16),0) -> 342
A47: 38 | B47: ВСЕГО, СТОИМОСТЬ ОБЩЕСТРОИТЕЛЬНЫХ РАБОТ - | C47: ! | D47: 0 | F47: =ROUND((F41+F45+F46),0) -> 1960
A48: 39 | B48: СТОИМОСТЬ МЕТАЛЛОМОНТАЖНЫХ РАБОТ - | C48: Б | D48: 0 | F48: =ROUND(SUMIF(Определители!I9:I16,"=3",'Базовые цены с учетом расхода'!B9:B16),0) -> 0 | G48: =ROUND(SUMIF(Определители!I9:I16,"=3",'Базовые цены с учетом расхода'!C9:C16),0) -> 0 | H48: =ROUND(SUMIF(Определители!I9:I16,"=3",'Базовые цены с учетом расхода'!D9:D16),0) -> 0 | I48: =ROUND(SUMIF(Определители!I9:I16,"=3",'Базовые цены с учетом расхода'!E9:E16),0) -> 0 | J48: =ROUND(SUMIF(Определители!I9:I16,"=3",'Базовые цены с учетом расхода'!I9:I16),8) -> 0 | K48: =ROUND(SUMIF(Определители!I9:I16,"=3",'Базовые цены с учетом расхода'!K9:K16),8) -> 0 | L48: =ROUND(SUMIF(Определители!I9:I16,"=3",'Базовые цены с учетом расхода'!F9:F16),0) -> 0
A49: 40 | B49: . СТОИМОСТЬ ВОЗВРАЩАЕМЫХ МАТЕРИАЛОВ - | C49: Б | D49: 0 | F49: =ROUND(SUMIF(Определители!I9:I16,"=3",'Базовые цены с учетом расхода'!H9:H16),0) -> 0
A50: 41 | B50: . НАКЛАДНЫЕ РАСХОДЫ - | C50: Б | D50: 0 | F50: =ROUND(SUMIF(Определители!I9:I16,"=3",'Базовые цены с учетом расхода'!N9:N16),0) -> 0
A51: 42 | B51: . СМЕТНАЯ ПРИБЫЛЬ - | C51: Б | D51: 0 | F51: =ROUND(SUMIF(Определители!I9:I16,"=3",'Базовые цены с учетом расхода'!O9:O16),0) -> 0
A52: 43 | B52: ВСЕГО, СТОИМОСТЬ МЕТАЛЛОМОНТАЖНЫХ РАБОТ - | C52: ! | D52: 0 | F52: =ROUND((F48+F50+F51),0) -> 0
A53: 44 | B53: СТОИМОСТЬ САНТЕХНИЧЕСКИХ РАБОТ - | C53: Б | D53: 0 | F53: =ROUND(SUMIF(Определители!I9:I16,"=4",'Базовые цены с учетом расхода'!B9:B16),0) -> 0 | G53: =ROUND(SUMIF(Определители!I9:I16,"=4",'Базовые цены с учетом расхода'!C9:C16),0) -> 0 | H53: =ROUND(SUMIF(Определители!I9:I16,"=4",'Базовые цены с учетом расхода'!D9:D16),0) -> 0 | I53: =ROUND(SUMIF(Определители!I9:I16,"=4",'Базовые цены с учетом расхода'!E9:E16),0) -> 0 | J53: =ROUND(SUMIF(Определители!I9:I16,"=4",'Базовые цены с учетом расхода'!I9:I16),8) -> 0 | K53: =ROUND(SUMIF(Определители!I9:I16,"=4",'Базовые цены с учетом расхода'!K9:K16),8) -> 0 | L53: =ROUND(SUMIF(Определители!I9:I16,"=4",'Базовые цены с учетом расхода'!F9:F16),0) -> 0
A54: 45 | B54: . В ТОМ ЧИСЛЕ: | C54: Б | D54: 0
A55: 46 | B55: . СДАЧА И ИСПЫТАНИЕ - | C55: Б | D55: 0 | F55: =ROUND(SUMIF(Определители!I9:I16,"=4",'Базовые цены с учетом расхода'!AJ9:AJ16),0) -> 0 | G55: =ROUND(SUMIF(Определители!I9:I16,"=4",'Базовые цены с учетом расхода'!AI9:AI16),0) -> 0 | H55: =ROUND(SUMIF(Определители!I9:I16,"=4",'Базовые цены с учетом расхода'!AH9:AH16),0) -> 0 | I55: =ROUND(SUMIF(Определители!I9:I16,"=4",'Базовые цены с учетом расхода'!V9:V16),0) -> 0
A56: 47 | B56: . СТОИМОСТЬ ВОЗВРАЩАЕМЫХ МАТЕРИАЛОВ - | C56: Б | D56: 0 | F56: =ROUND(SUMIF(Определители!I9:I16,"=4",'Базовые цены с учетом расхода'!H9:H16),0) -> 0
A57: 48 | B57: . НАКЛАДНЫЕ РАСХОДЫ - | C57: Б | D57: 0 | F57: =ROUND(SUMIF(Определители!I9:I16,"=4",'Базовые цены с учетом расхода'!N9:N16),0) -> 0
A58: 49 | B58: . СМЕТНАЯ ПРИБЫЛЬ - | C58: Б | D58: 0 | F58: =ROUND(SUMIF(Определители!I9:I16,"=4",'Базовые цены с учетом расхода'!O9:O16),0) -> 0
A59: 50 | B59: . ШЕФМОНТАЖ - | C59: Б | D59: 0 | F59: =ROUND(СУММПРОИЗВЕСЛИ(1,Определители!I9:I16," ",'Базовые цены с учетом расхода'!M9:M16,Начисления!I9:I16,0),0) -> 0
A60: 51 | B60: ВСЕГО, СТОИМОСТЬ САНТЕХНИЧЕСКИХ РАБОТ - | C60: ! | D60: 0 | F60: =ROUND((F53+F57+F58),0) -> 0
A61: 52 | B61: СТОИМОСТЬ БУРО-ВЗРЫВНЫХ РАБОТ - | C61: Б | D61: 0 | F61: =ROUND(SUMIF(Определители!I9:I16,"=5",'Базовые цены с учетом расхода'!B9:B16),0) -> 0 | G61: =ROUND(SUMIF(Определители!I9:I16,"=5",'Базовые цены с учетом расхода'!C9:C16),0) -> 0 | H61: =ROUND(SUMIF(Определители!I9:I16,"=5",'Базовые цены с учетом расхода'!D9:D16),0) -> 0 | I61: =ROUND(SUMIF(Определители!I9:I16,"=5",'Базовые цены с учетом расхода'!E9:E16),0) -> 0 | J61: =ROUND(SUMIF(Определители!I9:I16,"=5",'Базовые цены с учетом расхода'!I9:I16),8) -> 0 | K61: =ROUND(SUMIF(Определители!I9:I16,"=5",'Базовые цены с учетом расхода'!K9:K16),8) -> 0 | L61: =ROUND(SUMIF(Определители!I9:I16,"=5",'Базовые цены с учетом расхода'!F9:F16),0) -> 0
A62: 53 | B62: . СТОИМОСТЬ ВОЗВРАЩАЕМЫХ МАТЕРИАЛОВ - | C62: Б | D62: 0 | F62: =ROUND(SUMIF(Определители!I9:I16,"=5",'Базовые цены с учетом расхода'!H9:H16),0) -> 0
A63: 54 | B63: . НАКЛАДНЫЕ РАСХОДЫ - | C63: Б | D63: 0 | F63: =ROUND(SUMIF(Определители!I9:I16,"=5",'Базовые цены с учетом расхода'!N9:N16),0) -> 0
A64: 55 | B64: . СМЕТНАЯ ПРИБЫЛЬ - | C64: Б | D64: 0 | F64: =ROUND(SUMIF(Определители!I9:I16,"=5",'Базовые цены с учетом расхода'!O9:O16),0) -> 0
A65: 56 | B65: ВСЕГО, СТОИМОСТЬ БУРО-ВЗРЫВНЫХ РАБОТ - | C65: ! | D65: 0 | F65: =ROUND((F61+F63+F64),0) -> 0
A66: 57 | B66: СТОИМОСТЬ ГОРНОПРОХОДЧЕСКИХ РАБОТ - | C66: Б | D66: 0 | F66: =ROUND(SUMIF(Определители!I9:I16,"=6",'Базовые цены с учетом расхода'!B9:B16),0) -> 0 | G66: =ROUND(SUMIF(Определители!I9:I16,"=6",'Базовые цены с учетом расхода'!C9:C16),0) -> 0 | H66: =ROUND(SUMIF(Определители!I9:I16,"=6",'Базовые цены с учетом расхода'!D9:D16),0) -> 0 | I66: =ROUND(SUMIF(Определители!I9:I16,"=6",'Базовые цены с учетом расхода'!E9:E16),0) -> 0 | J66: =ROUND(SUMIF(Определители!I9:I16,"=6",'Базовые цены с учетом расхода'!I9:I16),8) -> 0 | K66: =ROUND(SUMIF(Определители!I9:I16,"=6",'Базовые цены с учетом расхода'!K9:K16),8) -> 0 | L66: =ROUND(SUMIF(Определители!I9:I16,"=6",'Базовые цены с учетом расхода'!F9:F16),0) -> 0
A67: 58 | B67: . СТОИМОСТЬ ВОЗВРАЩАЕМЫХ МАТЕРИАЛОВ - | C67: Б | D67: 0 | F67: =ROUND(SUMIF(Определители!I9:I16,"=6",'Базовые цены с учетом расхода'!H9:H16),0) -> 0
A68: 59 | B68: . НАКЛАДНЫЕ РАСХОДЫ - | C68: Б | D68: 0 | F68: =ROUND(SUMIF(Определители!I9:I16,"=6",'Базовые цены с учетом расхода'!N9:N16),0) -> 0
A69: 60 | B69: . СМЕТНАЯ ПРИБЫЛЬ - | C69: Б | D69: 0 | F69: =ROUND(SUMIF(Определители!I9:I16,"=6",'Базовые цены с учетом расхода'!O9:O16),0) -> 0
A70: 61 | B70: ВСЕГО, СТОИМОСТЬ ГОРНОПРОХОДЧЕСКИХ РАБОТ - | C70: ! | D70: 0 | F70: =ROUND((F66+F68+F69),0) -> 0
A71: 62 | B71: СТОИМОСТЬ РЕСТАВРАЦИОННЫХ РАБОТ - | C71: Б | D71: 0 | F71: =ROUND(SUMIF(Определители!I9:I16,"=7",'Базовые цены с учетом расхода'!B9:B16),0) -> 0 | G71: =ROUND(SUMIF(Определители!I9:I16,"=7",'Базовые цены с учетом расхода'!C9:C16),0) -> 0 | H71: =ROUND(SUMIF(Определители!I9:I16,"=7",'Базовые цены с учетом расхода'!D9:D16),0) -> 0 | I71: =ROUND(SUMIF(Определители!I9:I16,"=7",'Базовые цены с учетом расхода'!E9:E16),0) -> 0 | J71: =ROUND(SUMIF(Определители!I9:I16,"=7",'Базовые цены с учетом расхода'!I9:I16),8) -> 0 | K71: =ROUND(SUMIF(Определители!I9:I16,"=7",'Базовые цены с учетом расхода'!K9:K16),8) -> 0 | L71: =ROUND(SUMIF(Определители!I9:I16,"=7",'Базовые цены с учетом расхода'!F9:F16),0) -> 0
A72: 63 | B72: . В ТОМ ЧИСЛЕ: | C72: Б | D72: 0
A73: 64 | B73: . МАТЕРИАЛЫ - | C73: Б | D73: 0 | F73: =ROUND(СУММЕСЛИ2(Определители!I9:I16,"2",Определители!G9:G16,"1",'Базовые цены с учетом расхода'!B9:B16),0) -> 0
A74: 65 | B74: . СТОИМОСТЬ ВОЗВРАЩАЕМЫХ МАТЕРИАЛОВ - | C74: Б | D74: 0 | F74: =ROUND(SUMIF(Определители!I9:I16,"=7",'Базовые цены с учетом расхода'!H9:H16),0) -> 0
A75: 66 | B75: . НАКЛАДНЫЕ РАСХОДЫ - | C75: Б | D75: 0 | F75: =ROUND(SUMIF(Определители!I9:I16,"=7",'Базовые цены с учетом расхода'!N9:N16),0) -> 0
A76: 67 | B76: . СМЕТНАЯ ПРИБЫЛЬ - | C76: Б | D76: 0 | F76: =ROUND(SUMIF(Определители!I9:I16,"=7",'Базовые цены с учетом расхода'!O9:O16),0) -> 0
A77: 68 | B77: ВСЕГО, СТОИМОСТЬ РЕСТАВРАЦИОННЫХ РАБОТ - | C77: ! | D77: 0 | F77: =ROUND((F71+F75+F76),0) -> 0
A78: 69 | B78: Строительные работы БЦ ЭМ | C78: s | D78: 0 | F78: =ROUND((H41+H48+H53+H61+H66+H71),0) -> 364
A79: 70 | B79: Строительные работы БЦ ЗПМ | C79: s | D79: 0 | F79: =ROUND((I41+I48+I53+I61+I66+I71),0) -> 11
A80: 71 | B80: Строительные работы ТЦ ЗП | C80: k | D80: 21.324 | F80: =ROUND((G41+G48+G53+G61+G66+G71)*D80,0) -> 12005
A81: 72 | B81: Строительные работы ТЦ ЗПМ | C81: k | D81: 21.324 | F81: =ROUND((F79)*D81,0) -> 235
A82: 73 | B82: Строительные работы ТЦ ЭМ | C82: k | D82: 6.152 | F82: =ROUND((F78)*D82,0) -> 2239
A83: 74 | B83: Строительные работы ТЦ материалы | C83: k | D83: 6.32 | F83: =ROUND((L41+L48+L53+L61+L66+L71)*D83,0) -> 613
A84: 75 | B84: Строительные работы ТЦ НР | C84: k | D84: 21.324 | F84: =ROUND((F45+F50+F57+F63+F68+F75)*D84,0) -> 12666
A85: 76 | B85: Строительные работы ТЦ СП | C85: k | D85: 21.324 | F85: =ROUND((F46+F51+F58+F64+F69+F76)*D85,0) -> 7293
A86: 77 | B86: Строительные работы ТЦ всего | C86: s | D86: 0 | F86: =ROUND((F80+F82+F83+F84+F85),0) -> 34816
A87: 78 | B87: СТОИМОСТЬ ПЕРЕВОЗКИ ГРУЗОВ - | C87: Б | D87: 0 | F87: =ROUND(SUMIF(Определители!I9:I16,"=;",'Базовые цены с учетом расхода'!B9:B16),0) -> 234 | G87: =ROUND(SUMIF(Определители!I9:I16,"=;",'Базовые цены с учетом расхода'!C9:C16),0) -> 18 | H87: =ROUND(SUMIF(Определители!I9:I16,"=;",'Базовые цены с учетом расхода'!D9:D16),0) -> 171 | I87: =ROUND(SUMIF(Определители!I9:I16,"=;",'Базовые цены с учетом расхода'!E9:E16),0) -> 9 | J87: =ROUND(SUMIF(Определители!I9:I16,"=;",'Базовые цены с учетом расхода'!I9:I16),8) -> 1.96809 | K87: =ROUND(SUMIF(Определители!I9:I16,"=;",'Базовые цены с учетом расхода'!K9:K16),8) -> 0.77634 | L87: =ROUND(SUMIF(Определители!I9:I16,"=;",'Базовые цены с учетом расхода'!F9:F16),0) -> 0
A88: 79 | B88: СТОИМОСТЬ ПОГРУЗКИ-РАЗГРУЗКИ | C88: m | D88: 0 | F88: =ROUND((F87-F106-F107-F108),0) -> 129 | G88: =ROUND((G87-G106-G107-G108),0) -> 18 | H88: =ROUND((H87-H106-H107-H108),0) -> 66 | I88: =ROUND((I87-I106-I107-I108),0) -> 9 | J88: =ROUND((J87-J106-J107-J108),8) -> 1.96809 | K88: =ROUND((K87-K106-K107-K108),8) -> 0.77634 | L88: =ROUND((L87-L106-L107-L108),0) -> 0
A89: 80 | B89: . В Т.Ч. НАКЛАДНЫЕ РАСХОДЫ - | C89: Б | D89: 0 | F89: =ROUND(SUMIF(Определители!I9:I16,"=;",'Базовые цены с учетом расхода'!AF9:AF16),0) -> 28
A90: 81 | B90: . В Т.Ч. СМЕТНАЯ ПРИБЫЛЬ - | C90: Б | D90: 0 | F90: =ROUND(SUMIF(Определители!I9:I16,"=;",'Базовые цены с учетом расхода'!AG9:AG16),0) -> 17
A91: 82 | B91: . НАКЛАДНЫЕ РАСХОДЫ - | C91: Б | D91: 0 | F91: =ROUND(SUMIF(Определители!I9:I16,"=;",'Базовые цены с учетом расхода'!N9:N16),0) -> 0
A92: 83 | B92: . СМЕТНАЯ ПРИБЫЛЬ - | C92: Б | D92: 0 | F92: =ROUND(SUMIF(Определители!I9:I16,"=;",'Базовые цены с учетом расхода'!O9:O16),0) -> 0
A93: 84 | B93: ВСЕГО, СТОИМОСТЬ ПЕРЕВОЗКИ ГРУЗОВ - | C93: ! | D93: 0 | F93: =ROUND((F87+F91+F92),0) -> 234
A94: 85 | B94: ВСЕГО, СТОИМОСТЬ ПОГРУЗКИ-РАЗГРУЗКИ - | C94: s | D94: 0 | F94: =ROUND((F88+F91+F92),0) -> 129
A95: 86 | B95: Погрузка-разгрузка БЦ ЭМ | C95: s | D95: 0 | F95: =ROUND((H88),0) -> 66
A96: 87 | B96: Погрузка-разгрузка БЦ ЗПМ | C96: s | D96: 0 | F96: =ROUND((I88),0) -> 9
A97: 88 | B97: Погрузка-разгрузка ТЦ ЗП | C97: k | D97: 21.324 | F97: =ROUND((G88)*D97,0) -> 384
A98: 89 | B98: Погрузка-разгрузка ТЦ ЗПМ | C98: k | D98: 21.324 | F98: =ROUND((I88)*D98,0) -> 192
A99: 90 | B99: Погрузка-разгрузка ТЦ ЭМ | C99: k | D99: 6.152 | F99: =ROUND((F95)*D99,0) -> 406
A100: 91 | B100: Погрузка-разгрузка ТЦ материалы | C100: k | D100: 6.32 | F100: =ROUND((L87)*D100,0) -> 0
A101: 92 | B101: Погрузка-разгрузка ТЦ в т.ч. НР | C101: k | D101: 21.324 | F101: =ROUND((F89)*D101,0) -> 597
A102: 93 | B102: Погрузка-разгрузка ТЦ в т.ч. СП | C102: k | D102: 21.324 | F102: =ROUND((F90)*D102,0) -> 363
A103: 94 | B103: Погрузка-разгрузка ТЦ НР | C103: k | D103: 21.324 | F103: =ROUND((F91)*D103,0) -> 0
A104: 95 | B104: Погрузка-разгрузка ТЦ СП | C104: k | D104: 21.324 | F104: =ROUND((F92)*D104,0) -> 0
A105: 96 | B105: Погрузка-разгрузка ТЦ всего | C105: s | D105: 0 | F105: =ROUND((F97+F99+F100+F103+F104+F101+F102),0) -> 1750
A106: 97 | B106: ПЕРЕВОЗКА (таб.6) | C106: f | D106: 0
A107: 98 | B107: ПЕРЕВОЗКА (таб.7) | C107: f | D107: 0
A108: 99 | B108: ПЕРЕВОЗКА (таб.8) | C108: f | D108: 0 | F108: 105 | H108: 105
A109: 100 | B109: Перевозка (таб.6) ТЦ | C109: k | D109: 1 | F109: =ROUND((F106)*D109,0) -> 0
A110: 101 | B110: Перевозка (таб.7) ТЦ | C110: k | D110: 1 | F110: =ROUND((F107)*D110,0) -> 0
A111: 102 | B111: Перевозка (таб.8) ТЦ | C111: k | D111: 10.144 | F111: =ROUND((F108)*D111,0) -> 1065
A112: 103 | B112: Перевозка ТЦ всего | C112: s | D112: 0 | F112: =ROUND((F109+F110+F111),0) -> 1065
A113: 104 | B113: СТОИМОСТЬ ПУСКОНАЛАДОЧНЫХ РАБОТ - | C113: Б | D113: 0 | F113: =ROUND(SUMIF(Определители!I9:I16,"=9",'Базовые цены с учетом расхода'!B9:B16),0) -> 0 | G113: =ROUND(SUMIF(Определители!I9:I16,"=9",'Базовые цены с учетом расхода'!C9:C16),0) -> 0 | H113: =ROUND(SUMIF(Определители!I9:I16,"=9",'Базовые цены с учетом расхода'!D9:D16),0) -> 0 | I113: =ROUND(SUMIF(Определители!I9:I16,"=9",'Базовые цены с учетом расхода'!E9:E16),0) -> 0 | J113: =ROUND(SUMIF(Определители!I9:I16,"=9",'Базовые цены с учетом расхода'!I9:I16),8) -> 0 | K113: =ROUND(SUMIF(Определители!I9:I16,"=9",'Базовые цены с учетом расхода'!K9:K16),8) -> 0 | L113: =ROUND(SUMIF(Определители!I9:I16,"=9",'Базовые цены с учетом расхода'!F9:F16),0) -> 0
A114: 105 | B114: . НАКЛАДНЫЕ РАСХОДЫ - | C114: Б | D114: 0 | F114: =ROUND(SUMIF(Определители!I9:I16,"=9",'Базовые цены с учетом расхода'!N9:N16),0) -> 0
A115: 106 | B115: . СМЕТНАЯ ПРИБЫЛЬ - | C115: Б | D115: 0 | F115: =ROUND(SUMIF(Определители!I9:I16,"=9",'Базовые цены с учетом расхода'!O9:O16),0) -> 0
A116: 107 | B116: ВСЕГО, СТОИМОСТЬ ПУСКОНАЛАДОЧНЫХ РАБОТ - | C116: ! | D116: 0 | F116: =ROUND((F113+F114+F115),0) -> 0
A117: 108 | B117: Пусконаладочные работы ТЦ ЗП | C117: k | D117: 1 | F117: =ROUND((G113)*D117,0) -> 0
A118: 109 | B118: Пусконаладочные работы ТЦ НР | C118: k | D118: 1 | F118: =ROUND((F114)*D118,0) -> 0
A119: 110 | B119: Пусконаладочные работы ТЦ СП | C119: k | D119: 1 | F119: =ROUND((F115)*D119,0) -> 0
A120: 111 | B120: Пусконаладочные работы ТЦ всего | C120: s | D120: 0 | F120: =ROUND((F117+F118+F119),0) -> 0
A121: 112 | B121: СТОИМОСТЬ ПРОЧИХ РАБОТ (с НР и СП) - | C121: Б | D121: 0 | F121: =ROUND(SUMIF(Определители!I9:I16,"=:",'Базовые цены с учетом расхода'!B9:B16),0) -> 0 | G121: =ROUND(SUMIF(Определители!I9:I16,"=:",'Базовые цены с учетом расхода'!C9:C16),0) -> 0 | H121: =ROUND(SUMIF(Определители!I9:I16,"=:",'Базовые цены с учетом расхода'!D9:D16),0) -> 0 | I121: =ROUND(SUMIF(Определители!I9:I16,"=:",'Базовые цены с учетом расхода'!E9:E16),0) -> 0 | J121: =ROUND(SUMIF(Определители!I9:I16,"=:",'Базовые цены с учетом расхода'!I9:I16),8) -> 0 | K121: =ROUND(SUMIF(Определители!I9:I16,"=:",'Базовые цены с учетом расхода'!K9:K16),8) -> 0 | L121: =ROUND(SUMIF(Определители!I9:I16,"=:",'Базовые цены с учетом расхода'!F9:F16),0) -> 0
A122: 113 | B122: . СТОИМОСТЬ ВОЗВРАЩАЕМЫХ МАТЕРИАЛОВ - | C122: Б | D122: 0 | F122: =ROUND(SUMIF(Определители!I9:I16,"=:",'Базовые цены с учетом расхода'!H9:H16),0) -> 0
A123: 114 | B123: . НАКЛАДНЫЕ РАСХОДЫ - | C123: Б | D123: 0 | F123: =ROUND(SUMIF(Определители!I9:I16,"=:",'Базовые цены с учетом расхода'!N9:N16),0) -> 0
A124: 115 | B124: . СМЕТНАЯ ПРИБЫЛЬ - | C124: Б | D124: 0 | F124: =ROUND(SUMIF(Определители!I9:I16,"=:",'Базовые цены с учетом расхода'!O9:O16),0) -> 0
A125: 116 | B125: ВСЕГО, СТОИМОСТЬ ПРОЧИХ РАБОТ (с НР и СП) - | C125: ! | D125: 0 | F125: =ROUND((F121+F123+F124),0) -> 0
A126: 117 | B126: ВСЕГО, СТОИМОСТЬ ПРОЧИХ РАБОТ (без НР и СП) - | C126: Б | D126: 0 | F126: =ROUND(SUMIF(Определители!I9:I16,"=8",'Базовые цены с учетом расхода'!B9:B16),0) -> 0 | G126: =ROUND(SUMIF(Определители!I9:I16,"=8",'Базовые цены с учетом расхода'!C9:C16),0) -> 0 | H126: =ROUND(SUMIF(Определители!I9:I16,"=8",'Базовые цены с учетом расхода'!D9:D16),0) -> 0 | I126: =ROUND(SUMIF(Определители!I9:I16,"=8",'Базовые цены с учетом расхода'!E9:E16),0) -> 0 | J126: =ROUND(SUMIF(Определители!I9:I16,"=8",'Базовые цены с учетом расхода'!I9:I16),8) -> 0 | K126: =ROUND(SUMIF(Определители!I9:I16,"=8",'Базовые цены с учетом расхода'!K9:K16),8) -> 0 | L126: =ROUND(SUMIF(Определители!I9:I16,"=8",'Базовые цены с учетом расхода'!F9:F16),0) -> 0
A127: 118 | B127: . СТОИМОСТЬ ВОЗВРАЩАЕМЫХ МАТЕРИАЛОВ - | C127: Б | D127: 0 | F127: =ROUND(SUMIF(Определители!I9:I16,"=8",'Базовые цены с учетом расхода'!H9:H16),0) -> 0
A128: 119 | B128: Прочие работы БЦ ЭМ | C128: s | D128: 0 | F128: =ROUND((H121+H126),0) -> 0
A129: 120 | B129: Прочие работы БЦ ЗПМ | C129: s | D129: 0 | F129: =ROUND((I121+I126),0) -> 0
A130: 121 | B130: Прочие работы ТЦ ЗП | C130: k | D130: 1 | F130: =ROUND((G121+G126)*D130,0) -> 0
A131: 122 | B131: Прочие работы ТЦ ЗПМ | C131: k | D131: 1 | F131: =ROUND((F129)*D131,0) -> 0
A132: 123 | B132: Прочие работы ТЦ ЭМ | C132: k | D132: 1 | F132: =ROUND((F128)*D132,0) -> 0
A133: 124 | B133: Прочие работы ТЦ материалы | C133: k | D133: 1 | F133: =ROUND((L121+L126)*D133,0) -> 0
A134: 125 | B134: Прочие работы ТЦ НР | C134: k | D134: 1 | F134: =ROUND((F123)*D134,0) -> 0
A135: 126 | B135: Прочие работы ТЦ СП | C135: k | D135: 1 | F135: =ROUND((F124)*D135,0) -> 0
A136: 127 | B136: Прочие работы ТЦ всего | C136: s | D136: 0 | F136: =ROUND((F130+F132+F133+F134+F135),0) -> 0
A137: 128 | B137: . ВСЕГО ПО СМЕТЕ | C137: ! | D137: 0 | F137: =ROUND((F20+F31+F47+F52+F60+F65+F70+F77+F93+F116+F125+F126),0) -> 2194 | G137: =ROUND((G20+G31+G47+G52+G60+G65+G70+G77+G93+G116+G125+G126),0) -> 0 | H137: =ROUND((H20+H31+H47+H52+H60+H65+H70+H77+H93+H116+H125+H126),0) -> 0 | I137: =ROUND((I20+I31+I47+I52+I60+I65+I70+I77+I93+I116+I125+I126),0) -> 0 | J137: =ROUND((J20+J31+J47+J52+J60+J65+J70+J77+J93+J116+J125+J126),8) -> 0 | K137: =ROUND((K20+K31+K47+K52+K60+K65+K70+K77+K93+K116+K125+K126),8) -> 0 | L137: =ROUND((L20+L31+L47+L52+L60+L65+L70+L77+L93+L116+L125+L126),0) -> 0
A138: 129 | B138: ВСЕГО СТОИМОСТЬ ВОЗВРАЩАЕМЫХ МАТЕРИАЛОВ - | C138: ! | D138: 0 | F138: =ROUND((F27+F44+F49+F56+F62+F67+F74+F122+F127),0) -> 0
A139: 130 | B139: ВСЕГО НАКЛАДНЫЕ РАСХОДЫ | C139: ! | D139: 0 | F139: =ROUND((F28+F45+F50+F57+F63+F68+F75+F91+F114+F123),0) -> 594
A140: 131 | B140: ВСЕГО НАКЛАДНЫЕ РАСХОДЫ | C140: s | D140: 0 | F140: =ROUND((F139+F89),0) -> 622
A141: 132 | B141: ВСЕГО СМЕТНАЯ ПРИБЫЛЬ | C141: ! | D141: 0 | F141: =ROUND((F29+F46+F51+F58+F64+F69+F76+F92+F115+F124),0) -> 342
A142: 133 | B142: ВСЕГО СМЕТНАЯ ПРИБЫЛЬ | C142: s | D142: 0 | F142: =ROUND((F141+F90),0) -> 359
A143: 134 | B143: в т.ч. Вспомогательные материалы на монтаж | C143: h | D143: 0 | F143: =ROUND(SUM('Базовые цены с учетом расхода'!X9:X16),0) -> 0 | L143: =ROUND(SUM('Базовые цены с учетом расхода'!X9:X16),0) -> 0
A144: 135 | B144: в т.ч. Вспомогательные материалы от ОЗП | C144: h | D144: 0 | F144: =ROUND(SUM('Базовые цены с учетом расхода'!AE9:AE16),0) -> 0
A145: 136 | B145: Оплата основных рабочих | C145: h | D145: 0 | F145: =ROUND(SUM('Базовые цены с учетом расхода'!C9:C16),0) -> 581
A146: 137 | B146: Оплата механизаторов | C146: h | D146: 0 | F146: =ROUND(SUM('Базовые цены с учетом расхода'!E9:E16),0) -> 20
A147: 138 | B147: Стоимость механизмов | C147: h | D147: 0 | F147: =ROUND(SUM('Базовые цены с учетом расхода'!D9:D16),0) -> 535
A148: 139 | B148: Сметная стоимость материалов | C148: h | D148: 0 | F148: =ROUND(SUM('Базовые цены с учетом расхода'!F9:F16),0) -> 97 | L148: =ROUND(SUM('Базовые цены с учетом расхода'!F9:F16),0) -> 97
A149: 140 | B149: Трудозатраты осн. рабочих | C149: h | D149: 0 | J149: =ROUND(SUM('Базовые цены с учетом расхода'!I9:I16),8) -> 57.90499
A150: 141 | B150: Трудозатраты механизаторов | C150: h | D150: 0 | J150: =ROUND(SUM('Базовые цены с учетом расхода'!K9:K16),8) -> 1.44814
A151: 142 | B151: Нормативная трудоемкость | C151: s | D151: 0 | J151: =ROUND((J149+J150),8) -> 59.35313
A152: 143 | B152: Оплата основных рабочих ТЦ | C152: s | D152: 0 | F152: =ROUND((F34+F80+F97+F130+F117),0) -> 12389
A153: 144 | B153: Оплата механизаторов ТЦ | C153: s | D153: 0 | F153: =ROUND((F35+F81+F98+F131),0) -> 427
A154: 145 | B154: Стоимость механизмов ТЦ | C154: s | D154: 0 | F154: =ROUND((F36+F82+F99+F132),0) -> 2645
A155: 146 | B155: Стоимость материалов ТЦ | C155: s | D155: 0 | F155: =ROUND((F37+F83+F100+F133),0) -> 613
A156: 147 | B156: Оборудование ТЦ | C156: s | D156: 0 | F156: =ROUND((F21),0) -> 0
A157: 148 | B157: Перевозка ТЦ | C157: s | D157: 0 | F157: =ROUND((F112),0) -> 1065
A158: 149 | B158: ИТОГО ТЦ | C158: s | D158: 0 | F158: =ROUND((F152+F154+F155+F156+F157),0) -> 16712
A159: 150 | B159: В Т.Ч. НАКЛАДНЫЕ РАСХОДЫ ТЦ | C159: s | D159: 0 | F159: =ROUND((F101),0) -> 597
A160: 151 | B160: В Т.Ч. СМЕТНАЯ ПРИБЫЛЬ ТЦ | C160: s | D160: 0 | F160: =ROUND((F102),0) -> 363
A161: 152 | B161: НАКЛАДНЫЕ РАСХОДЫ ТЦ | C161: s | D161: 0 | F161: =ROUND((F38+F84+F103+F118+F134+F101),0) -> 13263
A162: 153 | B162: СМЕТНАЯ ПРИБЫЛЬ ТЦ | C162: s | D162: 0 | F162: =ROUND((F39+F85+F104+F135+F119+F102),0) -> 7656
A163: 154 | B163: ВСЕГО ТЦ | C163: s | D163: 0 | F163: =ROUND((F158+F161+F162),0) -> 37631
B165: Раздел 2. Разборка бортовых камней и а/бетонного покрытия
B167: Наименование | C167: Вид | D167: Значение | E167: ЕИ | F167: Z1 | G167: Z2 | H167: Z3 | I167: Z4 | J167: Z5 | K167: Z6 | L167: Z7 | M167: Z8
A168: 1 | B168: . ИТОГО ПО СМЕТЕ | C168: А | D168: 0 | F168: =ROUND(SUM('Базовые цены с учетом расхода'!B20:B22),0) -> 2525 | G168: =ROUND(SUM('Базовые цены с учетом расхода'!C20:C22),0) -> 1154 | H168: =ROUND(SUM('Базовые цены с учетом расхода'!D20:D22),0) -> 1301 | I168: =ROUND(SUM('Базовые цены с учетом расхода'!E20:E22),0) -> 180 | J168: =ROUND(SUM('Базовые цены с учетом расхода'!I20:I22),8) -> 115.7205 | K168: =ROUND(SUM('Базовые цены с учетом расхода'!K20:K22),8) -> 14.9158 | L168: =ROUND(SUM('Базовые цены с учетом расхода'!F20:F22),0) -> 0
A169: 2 | B169: СТОИМОСТЬ ОБОРУДОВАНИЯ - | C169: Б | D169: 0 | F169: =ROUND(SUMIF(Определители!I20:I22,"= ",'Базовые цены с учетом расхода'!B20:B22),0) -> 0 | G169: =ROUND(SUMIF(Определители!I20:I22,"= ",'Базовые цены с учетом расхода'!C20:C22),0) -> 0 | H169: =ROUND(SUMIF(Определители!I20:I22,"= ",'Базовые цены с учетом расхода'!D20:D22),0) -> 0 | I169: =ROUND(SUMIF(Определители!I20:I22,"= ",'Базовые цены с учетом расхода'!E20:E22),0) -> 0 | J169: =ROUND(SUMIF(Определители!I20:I22,"= ",'Базовые цены с учетом расхода'!I20:I22),8) -> 0 | K169: =ROUND(SUMIF(Определители!I20:I22,"= ",'Базовые цены с учетом расхода'!K20:K22),8) -> 0 | L169: =ROUND(SUMIF(Определители!I20:I22,"= ",'Базовые цены с учетом расхода'!F20:F22),0) -> 0
A170: 3 | B170: . ЗАПАСНЫЕ ЧАСТИ - | C170: Б | D170: 0 | F170: =ROUND(СУММПРОИЗВЕСЛИ(0.01,Определители!I20:I22," ",'Базовые цены с учетом расхода'!B20:B22,Начисления!X20:X22,0),0) -> 0
A171: 4 | B171: . ТАРА И УПАКОВКА - | C171: Б | D171: 0 | F171: =ROUND(СУММПРОИЗВЕСЛИ(0.01,Определители!I20:I22," ",'Базовые цены с учетом расхода'!B20:B22,Начисления!Y20:Y22,0),0) -> 0
A172: 5 | B172: . ТРАНСПОРТНЫЕ РАСХОДЫ - | C172: Б | D172: 0 | F172: =ROUND(ТРАНСПРАСХОД(Определители!B20:B22,Определители!H20:H22,Определители!I20:I22,'Базовые цены с учетом расхода'!B20:B22,Начисления!Z20:Z22,Начисления!AA20:AA22),0) -> 0
A173: 6 | B173: . КОМПЛЕКТАЦИЯ - | C173: Б | D173: 0 | F173: =ROUND(СУММПРОИЗВЕСЛИ(0.01,Определители!I20:I22," ",'Базовые цены с учетом расхода'!B20:B22,Начисления!AC20:AC22,0),0) -> 0
A174: 7 | B174: . НАЦЕНКА СНАБА - | C174: Б | D174: 0 | F174: =ROUND(СУММПРОИЗВЕСЛИ(0.01,Определители!I20:I22," ",'Базовые цены с учетом расхода'!B20:B22,Начисления!AF20:AF22,0),0) -> 0
A175: 8 | B175: . ЗАГОТОВИТЕЛЬНО-СКЛАДСКИЕ РАСХОДЫ - | C175: Б | D175: 0 | F175: =ROUND(ЗАГОТСКЛАДРАСХОД(Определители!B20:B22,Определители!H20:H22,Определители!I20:I22,'Базовые цены с учетом расхода'!B20:B22,Начисления!X20:X22,Начисления!Y20:Y22,Начисления!Z20:Z22,Начисления!AA20:AA22,Начисления!AB20:AB22,Начисления!AC20:AC22,Начисления!AF20:AF22),0) -> 0
A176: 9 | B176: . ШЕФМОНТАЖ ПО ОБОРУДОВАНИЮ - | C176: Б | D176: 0 | F176: =ROUND(СУММПРОИЗВЕСЛИ(1,Определители!I20:I22," ",'Базовые цены с учетом расхода'!M20:M22,Начисления!I20:I22,0),0) -> 0
A177: 10 | B177: . ШЕФМОНТАЖ - | C177: ! | D177: 0 | F177: =ROUND((F176+F188+F217),0) -> 0
A178: 11 | B178: ВСЕГО, СТОИМОСТЬ ОБОРУДОВАНИЯ - | C178: ! | D178: 0 | F178: =ROUND((F169+F170+F171+F172+F173+F174+F175+F177),0) -> 0
A179: 12 | B179: Оборудование ТЦ | C179: k | D179: 1 | F179: =ROUND((F178)*D179,0) -> 0
A180: 13 | B180: СТОИМОСТЬ МОНТАЖНЫХ РАБОТ - | C180: Б | D180: 0 | F180: =ROUND(SUMIF(Определители!I20:I22,"=1",'Базовые цены с учетом расхода'!B20:B22),0) -> 0 | G180: =ROUND(SUMIF(Определители!I20:I22,"=1",'Базовые цены с учетом расхода'!C20:C22),0) -> 0 | H180: =ROUND(SUMIF(Определители!I20:I22,"=1",'Базовые цены с учетом расхода'!D20:D22),0) -> 0 | I180: =ROUND(SUMIF(Определители!I20:I22,"=1",'Базовые цены с учетом расхода'!E20:E22),0) -> 0 | J180: =ROUND(SUMIF(Определители!I20:I22,"=1",'Базовые цены с учетом расхода'!I20:I22),8) -> 0 | K180: =ROUND(SUMIF(Определители!I20:I22,"=1",'Базовые цены с учетом расхода'!K20:K22),8) -> 0 | L180: =ROUND(SUMIF(Определители!I20:I22,"=1",'Базовые цены с учетом расхода'!F20:F22),0) -> 0
A181: 14 | B181: . В ТОМ ЧИСЛЕ: | C181: Б | D181: 0
A182: 15 | B182: . ОТКЛОНЕНИЕ ПО ЗАРАБОТНОЙ ПЛАТЕ - | C182: Б | D182: 0 | G182: =ROUND(SUMIF(Определители!I20:I22,"=1",'Базовые цены с учетом расхода'!T20:T22),0) -> 0
A183: 16 | B183: . КОСВЕННЫЕ РАСХОДЫ - | C183: Б | D183: 0 | F183: =ROUND(SUMIF(Определители!I20:I22,"=1",'Базовые цены с учетом расхода'!U20:U22),0) -> 0
A184: 17 | B184: . МАТЕРИАЛЬНЫЕ РЕСУРСЫ НЕ УЧТЕННЫЕ В РАСЦЕНКАХ - | C184: Б | D184: 0 | F184: =ROUND(СУММЕСЛИ2(Определители!I20:I22,"1",Определители!G20:G22,"1",'Базовые цены с учетом расхода'!B20:B22),0) -> 0
A185: 18 | B185: . СТОИМОСТЬ ВОЗВРАЩАЕМЫХ МАТЕРИАЛОВ - | C185: Б | D185: 0 | F185: =ROUND(SUMIF(Определители!I20:I22,"=1",'Базовые цены с учетом расхода'!H20:H22),0) -> 0
A186: 19 | B186: . НАКЛАДНЫЕ РАСХОДЫ - | C186: Б | D186: 0 | F186: =ROUND(SUMIF(Определители!I20:I22,"=1",'Базовые цены с учетом расхода'!N20:N22),0) -> 0
A187: 20 | B187: . СМЕТНАЯ ПРИБЫЛЬ - | C187: Б | D187: 0 | F187: =ROUND(SUMIF(Определители!I20:I22,"=1",'Базовые цены с учетом расхода'!O20:O22),0) -> 0
A188: 21 | B188: . ШЕФМОНТАЖ - | C188: Б | D188: 0 | F188: =ROUND(СУММПРОИЗВЕСЛИ(1,Определители!I20:I22," ",'Базовые цены с учетом расхода'!M20:M22,Начисления!I20:I22,0),0) -> 0
A189: 22 | B189: ВСЕГО, СТОИМОСТЬ МОНТАЖНЫХ РАБОТ - | C189: ! | D189: 0 | F189: =ROUND((F180+F186+F187),0) -> 0
A190: 23 | B190: Монтажные работы БЦ ЭМ | C190: s | D190: 0 | F190: =ROUND((H180),0) -> 0
A191: 24 | B191: Монтажные работы БЦ ЗПМ | C191: s | D191: 0 | F191: =ROUND((I180),0) -> 0
A192: 25 | B192: Монтажные работы ТЦ ЗП | C192: k | D192: 21.324 | F192: =ROUND((G180)*D192,0) -> 0
A193: 26 | B193: Монтажные работы ТЦ ЗПМ | C193: k | D193: 21.324 | F193: =ROUND((F191)*D193,0) -> 0
A194: 27 | B194: Монтажные работы ТЦ ЭМ | C194: k | D194: 6.152 | F194: =ROUND((F190)*D194,0) -> 0
A195: 28 | B195: Монтажные работы ТЦ материалы | C195: k | D195: 6.32 | F195: =ROUND((L180)*D195,0) -> 0
A196: 29 | B196: Монтажные работы ТЦ НР | C196: k | D196: 21.324 | F196: =ROUND((F186)*D196,0) -> 0
A197: 30 | B197: Монтажные работы ТЦ СП | C197: k | D197: 21.324 | F197: =ROUND((F187)*D197,0) -> 0
A198: 31 | B198: Монтажные работы ТЦ всего | C198: s | D198: 0 | F198: =ROUND((F192+F194+F195+F196+F197),0) -> 0
A199: 32 | B199: СТОИМОСТЬ ОБЩЕСТРОИТЕЛЬНЫХ РАБОТ - | C199: Б | D199: 0 | F199: =ROUND(SUMIF(Определители!I20:I22,"=2",'Базовые цены с учетом расхода'!B20:B22),0) -> 2158 | G199: =ROUND(SUMIF(Определители!I20:I22,"=2",'Базовые цены с учетом расхода'!C20:C22),0) -> 1125 | H199: =ROUND(SUMIF(Определители!I20:I22,"=2",'Базовые цены с учетом расхода'!D20:D22),0) -> 1033 | I199: =ROUND(SUMIF(Определители!I20:I22,"=2",'Базовые цены с учетом расхода'!E20:E22),0) -> 165 | J199: =ROUND(SUMIF(Определители!I20:I22,"=2",'Базовые цены с учетом расхода'!I20:I22),8) -> 112.6282 | K199: =ROUND(SUMIF(Определители!I20:I22,"=2",'Базовые цены с учетом расхода'!K20:K22),8) -> 13.696 | L199: =ROUND(SUMIF(Определители!I20:I22,"=2",'Базовые цены с учетом расхода'!F20:F22),0) -> 0
A200: 33 | B200: . В ТОМ ЧИСЛЕ: | C200: Б | D200: 0
A201: 34 | B201: . МАТЕРИАЛОВ - | C201: Б | D201: 0 | F201: =ROUND(СУММЕСЛИ2(Определители!I20:I22,"2",Определители!G20:G22,"1",'Базовые цены с учетом расхода'!B20:B22),0) -> 0
A202: 35 | B202: . СТОИМОСТЬ ВОЗВРАЩАЕМЫХ МАТЕРИАЛОВ - | C202: Б | D202: 0 | F202: =ROUND(SUMIF(Определители!I20:I22,"=2",'Базовые цены с учетом расхода'!H20:H22),0) -> 0
A203: 36 | B203: . НАКЛАДНЫЕ РАСХОДЫ - | C203: Б | D203: 0 | F203: =ROUND(SUMIF(Определители!I20:I22,"=2",'Базовые цены с учетом расхода'!N20:N22),0) -> 1342
A204: 37 | B204: . СМЕТНАЯ ПРИБЫЛЬ - | C204: Б | D204: 0 | F204: =ROUND(SUMIF(Определители!I20:I22,"=2",'Базовые цены с учетом расхода'!O20:O22),0) -> 774
A205: 38 | B205: ВСЕГО, СТОИМОСТЬ ОБЩЕСТРОИТЕЛЬНЫХ РАБОТ - | C205: ! | D205: 0 | F205: =ROUND((F199+F203+F204),0) -> 4274
A206: 39 | B206: СТОИМОСТЬ МЕТАЛЛОМОНТАЖНЫХ РАБОТ - | C206: Б | D206: 0 | F206: =ROUND(SUMIF(Определители!I20:I22,"=3",'Базовые цены с учетом расхода'!B20:B22),0) -> 0 | G206: =ROUND(SUMIF(Определители!I20:I22,"=3",'Базовые цены с учетом расхода'!C20:C22),0) -> 0 | H206: =ROUND(SUMIF(Определители!I20:I22,"=3",'Базовые цены с учетом расхода'!D20:D22),0) -> 0 | I206: =ROUND(SUMIF(Определители!I20:I22,"=3",'Базовые цены с учетом расхода'!E20:E22),0) -> 0 | J206: =ROUND(SUMIF(Определители!I20:I22,"=3",'Базовые цены с учетом расхода'!I20:I22),8) -> 0 | K206: =ROUND(SUMIF(Определители!I20:I22,"=3",'Базовые цены с учетом расхода'!K20:K22),8) -> 0 | L206: =ROUND(SUMIF(Определители!I20:I22,"=3",'Базовые цены с учетом расхода'!F20:F22),0) -> 0
A207: 40 | B207: . СТОИМОСТЬ ВОЗВРАЩАЕМЫХ МАТЕРИАЛОВ - | C207: Б | D207: 0 | F207: =ROUND(SUMIF(Определители!I20:I22,"=3",'Базовые цены с учетом расхода'!H20:H22),0) -> 0
... 1049 more rows
